Ref No,Fund Type,Dept,Cost Centre Description    ,Description    ,Creditor Name    ,GL Code Net Amount,Payment date        ,
2,Revenue,CCHD,Bed Purchasing - Elderly - South,Permanent Nursing,.,1705.28, 10-Jun-2014,
3,Revenue,CCHD,Bed purchasing - Elderly S117 - South,Permanent Nursing,.,2395.8, 10-Jun-2014,
4,Revenue,CCHD,Bed Purchasing - Elderly - South,Permanent Nursing,.,2227.8, 10-Jun-2014,
5,Revenue,CCHD,Bed Purchasing - Elderly MH - South,Respite Planned - Nursing,.,1478.22, 10-Jun-2014,
6,Revenue,CCHD,Bed purchasing - Under 65s PWLD - North,Permanent Residential,1 St Georges House,27955.04, 10-Jun-2014,
7,Revenue,CCHD,Breakthrough and Inclusion Work,Other Supplies & Services,121Turnaround Limited,5480.38, 23-Jun-2014,
8,Revenue,CCHD,Home Care - Elderly - South,Other Small Contracts,3 Trees Community Support Ltd,196.68, 10-Jun-2014,
9,Revenue,CCHD,Home Care - Elderly - North,Other Small Contracts,3 Trees Community Support Ltd,1863.99, 10-Jun-2014,
10,Revenue,CCHD,Day Care - North,Private & Voluntary Day Care,3 Trees Community Support Ltd,53.64, 10-Jun-2014,
11,Revenue,CCHD,Home Care - Elderly - South,Other Small Contracts,3 Trees Community Support Ltd,201.15, 10-Jun-2014,
12,Revenue,CCHD,Home Care - Elderly - North,Other Small Contracts,3 Trees Community Support Ltd,2726.7, 10-Jun-2014,
13,Revenue,CCHD,Day Care - North,Private & Voluntary Day Care,3 Trees Community Support Ltd,53.64, 10-Jun-2014,
14,Revenue,CCHD,Home Care - Elderly - South,Other Small Contracts,3 Trees Community Support Ltd,89.4, 10-Jun-2014,
15,Revenue,CCHD,Home Care - Elderly - North,Other Small Contracts,3 Trees Community Support Ltd,2597.07, 10-Jun-2014,
16,Revenue,CCHD,Day Care - North,Private & Voluntary Day Care,3 Trees Community Support Ltd,53.64, 10-Jun-2014,
17,Revenue,CCHD,Home Care - Elderly - South,Other Small Contracts,3 Trees Community Support Ltd,196.68, 30-Jun-2014,
18,Revenue,CCHD,Home Care - Elderly - North,Other Small Contracts,3 Trees Community Support Ltd,1622.61, 30-Jun-2014,
19,Revenue,CCHD,Day Care - North,Private & Voluntary Day Care,3 Trees Community Support Ltd,53.64, 30-Jun-2014,
20,Revenue,CCHD,Home Care - Elderly - South,Other Small Contracts,3 Trees Community Support Ltd,196.68, 30-Jun-2014,
21,Revenue,CCHD,Home Care - Elderly - North,Other Small Contracts,3 Trees Community Support Ltd,1555.56, 30-Jun-2014,
22,Revenue,CCHD,Day Care - North,Private & Voluntary Day Care,3 Trees Community Support Ltd,53.64, 30-Jun-2014,
23,Revenue,CCHD,Supported Living - South,Private & Voluntary Home Care,3 Trees Community Support Ltd,828.84, 20-Jun-2014,
24,Revenue,CCHD,Supported Living - South,Private & Voluntary Home Care,3 Trees Community Support Ltd,1575.97, 23-Jun-2014,
25,Revenue,CCHD,Purchase of Non-Res Care - North,Private & Voluntary Day Care,3 Trees Community Support Ltd,1933.2, 30-Jun-2014,
26,Revenue,CCHD,Purchase of Non-Res Care - North,Private & Voluntary Day Care,3 Trees Community Support Ltd,1384.03, 23-Jun-2014,
27,Revenue,CCHD,Purchase of Non-Res Care - North,Private & Voluntary Day Care,3 Trees Community Support Ltd,7504.9, 30-Jun-2014,
28,Revenue,CCHD,Supported Living - South,Private & Voluntary Home Care,3 Trees Community Support Ltd,7598.48, 13-Jun-2014,
29,Revenue,CCHD,Supported Living - North,Private & Voluntary Home Care,3 Trees Community Support Ltd,7711.72, 30-Jun-2014,
30,Revenue,CCHD,Bed Purchasing - Under 65s PWLD - South,Permanent Residential,5Th Floor Harlech Court,16062.2, 10-Jun-2014,
31,Revenue,CCHD,Bed purchasing - Under 65s PWLD - North,Permanent Residential,5Th Floor Harlech Court,13647.88, 10-Jun-2014,
32,Revenue,CCHD,Bed purchasing - Under 65s PWLD - North,Permanent Residential,5Th Floor Harlech Court,13962.28, 10-Jun-2014,
33,Revenue,CCHD,Bed purchasing - Under 65s PWLD - North,Permanent Residential,5Th Floor Harlech Court,16589.72, 10-Jun-2014,
34,Revenue,CCHD,Bed purchasing - Under 65s PWLD - North,Permanent Residential,5Th Floor Harlech Court,15754.12, 10-Jun-2014,
35,Revenue,CCHD,Bed Purchasing - Under 65s PWLD - South,Permanent Nursing,5Th Floor Harlech Court,9898.88, 10-Jun-2014,
36,Revenue,CCHD,Bed purchasing - S28A Under 65 - South,Permanent Residential,5Th Floor Harlech Court,18497.78, 10-Jun-2014,
37,Revenue,CCHD,Bed purchasing - S28A Under 65 - South,Permanent Residential,5Th Floor Harlech Court,10570.16, 10-Jun-2014,
38,Revenue,CCHD,Bed purchasing - S28A Under 65 - South,Permanent Residential,5Th Floor Harlech Court,12355.24, 10-Jun-2014,
39,Revenue,CCHD,Bed Purchasing - Under 65s PWLD - South,Permanent Nursing,5Th Floor Harlech Court,10240.88, 10-Jun-2014,
40,Revenue,CCHD,Direct Payments - Phys Dis - North,Grants to Voluntary Bodies,A4E Management Limited,432, 06-Jun-2014,
41,Revenue,CCHD,Direct Payments - Phys Dis - North,Grants to Voluntary Bodies,A4E Management Limited,23434.92, 27-Jun-2014,
42,Revenue,CCHD,Direct Payments - Phys Dis - North,Grants to Voluntary Bodies,A4E Management Limited,434.52, 27-Jun-2014,
43,Revenue,CCHD,Bed Purchasing - Frenchay Hospital,Permanent Nursing,Aabletone Nursing Home,814.88, 10-Jun-2014,
44,Revenue,CCHD,Bed purchasing - Phys Dis - North,Permanent Nursing,ABI Development Limited,6970.24, 10-Jun-2014,
45,Revenue,CCHD,Bed and Breakfast,Storage & Removal,Ablemove-Wottons,420, 26-Jun-2014,
46,Revenue,CCHD,Day Care - South,Private & Voluntary Day Care,About Me Care and Support Limited,1192.6, 24-Jun-2014,
47,Revenue,CCHD,Day Care - South,Private & Voluntary Day Care,About Me Care and Support Limited,780.15, 24-Jun-2014,
48,Revenue,CCHD,Day Care - South,Private & Voluntary Day Care,About Me Care and Support Limited,1289.27, 30-Jun-2014,
49,Revenue,CCHD,Bed purchasing - Under 65s PWLD - North,Permanent Residential,Acorn Care Providers,5829.6, 10-Jun-2014,
50,Revenue,CCHD,Home Care - Elderly - South,Other Small Contracts,Agincare Chippenham,1189.4, 16-Jun-2014,
51,Revenue,CCHD,Home Care - Elderly - South,Other Small Contracts,Agincare Chippenham,1307.2, 16-Jun-2014,
52,Revenue,CCHD,Home Care - Elderly - South,Other Small Contracts,Agincare Chippenham,1178, 16-Jun-2014,
53,Revenue,CCHD,Home Care - Elderly - South,Other Small Contracts,Agincare Chippenham,1333.8, 16-Jun-2014,
54,Revenue,CCHD,Home Care - Elderly - South,Other Small Contracts,Agincare Chippenham,1398.4, 16-Jun-2014,
55,Revenue,CCHD,Home Care - Elderly - South,Other Small Contracts,Agincare UK Limited,733.4, 16-Jun-2014,
56,Revenue,CCHD,Home Care - Elderly - North,Other Small Contracts,Agincare UK Limited,79.8, 16-Jun-2014,
57,Revenue,CCHD,Elderly MH Day Care North,Private & Voluntary Day Care,Agincare UK Limited,53.2, 16-Jun-2014,
58,Revenue,CCHD,Home Care - Elderly - South,Other Small Contracts,Agincare UK Limited,722, 16-Jun-2014,
59,Revenue,CCHD,Home Care - Elderly - North,Other Small Contracts,Agincare UK Limited,79.8, 16-Jun-2014,
60,Revenue,CCHD,Elderly MH Day Care North,Private & Voluntary Day Care,Agincare UK Limited,53.2, 16-Jun-2014,
61,Revenue,CCHD,Home Care - Elderly - South,Other Small Contracts,Agincare UK Limited,699.2, 16-Jun-2014,
62,Revenue,CCHD,Home Care - Elderly - North,Other Small Contracts,Agincare UK Limited,79.8, 16-Jun-2014,
63,Revenue,CCHD,Elderly MH Day Care North,Private & Voluntary Day Care,Agincare UK Limited,41.8, 16-Jun-2014,
64,Revenue,CCHD,Home Care - Elderly - South,Other Small Contracts,Agincare UK Limited,737.2, 16-Jun-2014,
65,Revenue,CCHD,Home Care - Elderly - North,Other Small Contracts,Agincare UK Limited,76, 16-Jun-2014,
66,Revenue,CCHD,Elderly MH Day Care North,Private & Voluntary Day Care,Agincare UK Limited,60.8, 16-Jun-2014,
67,Revenue,CCHD,Home Care - Elderly - South,Other Small Contracts,Agincare UK Limited,718.2, 30-Jun-2014,
68,Revenue,CCHD,Home Care - Elderly - North,Other Small Contracts,Agincare UK Limited,83.6, 30-Jun-2014,
69,Revenue,CCHD,Elderly MH Day Care North,Private & Voluntary Day Care,Agincare UK Limited,53.2, 30-Jun-2014,
70,Revenue,CCHD,Home Care - Elderly - North,Other Small Contracts,Agincare UK Nutfield,1037.4, 16-Jun-2014,
71,Revenue,CCHD,Home Care - Elderly - North,Other Small Contracts,Agincare UK Nutfield,908.2, 16-Jun-2014,
72,Revenue,CCHD,Home Care - Elderly - North,Other Small Contracts,Agincare UK Nutfield,946.2, 16-Jun-2014,
73,Revenue,CCHD,Home Care - Elderly - South,Other Small Contracts,Agincare UK Nutfield,15.2, 16-Jun-2014,
74,Revenue,CCHD,Home Care - Elderly - North,Other Small Contracts,Agincare UK Nutfield,1090.6, 16-Jun-2014,
75,Revenue,CCHD,Home Care - Elderly - South,Other Small Contracts,Agincare UK Nutfield,15.2, 16-Jun-2014,
76,Revenue,CCHD,Home Care - Elderly - North,Other Small Contracts,Agincare UK Nutfield,1117.2, 16-Jun-2014,
77,Revenue,CCHD,Home Care - Elderly - South,Other Small Contracts,Agincare UK Nutfield,7.6, 16-Jun-2014,
78,Revenue,CCHD,Home Care - Elderly - North,Other Small Contracts,Agincare UK Nutfield,1121, 16-Jun-2014,
79,Revenue,CCHD,Home Care - Elderly - North,Other Small Contracts,Agincare UK Nutfield,1299.6, 16-Jun-2014,
80,Revenue,CCHD,S117 Placements PCT,Permanent Residential,Alexandra House,6977.4, 10-Jun-2014,
81,Revenue,CCHD,Bed Purchasing - Under 65s PWLD - South,Permanent Residential,Alexandra House,6158.4, 10-Jun-2014,
82,Revenue,CCHD,Section 117 Placements MH Younger,Permanent Residential,Alexandra House,6495.6, 10-Jun-2014,
83,Revenue,CCHD,Home Care - Elderly - South,Other Small Contracts,AliMo Care Ltd,512.13, 06-Jun-2014,
84,Revenue,CCHD,Home Care - Elderly - North,Other Small Contracts,AliMo Care Ltd,1635.4, 06-Jun-2014,
85,Revenue,CCHD,Home Care - Elderly - South,Other Small Contracts,AliMo Care Ltd,714.5, 11-Jun-2014,
86,Revenue,CCHD,Home Care - Elderly - North,Other Small Contracts,AliMo Care Ltd,1647.79, 11-Jun-2014,
87,Revenue,CCHD,Home Care - Elderly - South,Other Small Contracts,AliMo Care Ltd,718.63, 19-Jun-2014,
88,Revenue,CCHD,Home Care - Elderly - North,Other Small Contracts,AliMo Care Ltd,1627.14, 19-Jun-2014,
89,Revenue,CCHD,Home Care - Elderly - South,Other Small Contracts,AliMo Care Ltd,821.87, 27-Jun-2014,
90,Revenue,CCHD,Home Care - Elderly - North,Other Small Contracts,AliMo Care Ltd,1602.36, 27-Jun-2014,
91,Revenue,CCHD,Children & Young People?s Health,Project Funding,All About Food,600, 26-Jun-2014,
92,Revenue,CCHD,Sexual Health,Other Supplies & Services,Almondsbury Surgery,650.38, 16-Jun-2014,
93,Revenue,CCHD,Bed Purchasing - Southmead Hospital,Permanent Nursing,Ambleside Nusing Ho!,1443.84, 10-Jun-2014,
94,Revenue,CCHD,Bed purchasing - Under 65s PWLD - North,Permanent Residential,Ark Care Homes Ltd,10314.64, 10-Jun-2014,
95,Revenue,CCHD,Bed Purchasing - Elderly - South,Permanent Residential,Ashbourne House Care Home Limited,1122.44, 10-Jun-2014,
96,Revenue,CCHD,Home Care - Elderly - South,Other Small Contracts,Ashley Commercial Finance Ltd,1121.73, 16-Jun-2014,
97,Revenue,CCHD,Home Care - Elderly - North,Other Small Contracts,Ashley Commercial Finance Ltd,3298.47, 16-Jun-2014,
98,Revenue,CCHD,Home Care - Elderly - South,Other Small Contracts,Ashley Commercial Finance Ltd,1138.41, 16-Jun-2014,
99,Revenue,CCHD,Home Care - Elderly - North,Other Small Contracts,Ashley Commercial Finance Ltd,3381.87, 16-Jun-2014,
100,Revenue,CCHD,Home Care - Elderly - South,Other Small Contracts,Ashley Commercial Finance Ltd,863.19, 16-Jun-2014,
101,Revenue,CCHD,Home Care - Elderly - North,Other Small Contracts,Ashley Commercial Finance Ltd,3415.23, 16-Jun-2014,
102,Revenue,CCHD,Home Care - Elderly - South,Other Small Contracts,Ashley Commercial Finance Ltd,829.83, 16-Jun-2014,
103,Revenue,CCHD,Home Care - Elderly - North,Other Small Contracts,Ashley Commercial Finance Ltd,3194.22, 16-Jun-2014,
104,Revenue,CCHD,Home Care - Elderly - South,Other Small Contracts,Ashley Commercial Finance Ltd,859.02, 30-Jun-2014,
105,Revenue,CCHD,Home Care - Elderly - North,Other Small Contracts,Ashley Commercial Finance Ltd,3377.7, 30-Jun-2014,
106,Revenue,CCHD,Home Care - Elderly - South,Other Small Contracts,Ashley Commercial Finance Ltd,875.7, 30-Jun-2014,
107,Revenue,CCHD,Home Care - Elderly - North,Other Small Contracts,Ashley Commercial Finance Ltd,3452.76, 30-Jun-2014,
108,Revenue,CCHD,Home Care - Elderly - South,Other Small Contracts,Ashley Commercial Finance Ltd,884.04, 30-Jun-2014,
109,Revenue,CCHD,Home Care - Elderly - North,Other Small Contracts,Ashley Commercial Finance Ltd,3477.78, 30-Jun-2014,
110,Revenue,CCHD,Bed and Breakfast,Bed & Breakfast,Ashley Guest Houses Limited,570, 04-Jun-2014,
111,Revenue,CCHD,Bed and Breakfast,Bed & Breakfast,Ashley Guest Houses Limited,420, 11-Jun-2014,
112,Revenue,CCHD,Bed and Breakfast,Bed & Breakfast,Ashley Guest Houses Limited,540, 18-Jun-2014,
113,Revenue,CCHD,Bed and Breakfast,Bed & Breakfast,Ashley Guest Houses Limited,510, 25-Jun-2014,
114,Revenue,CCHD,Bed purchasing - Under 65s PWLD - North,Permanent Residential,Aspects 2 Limited,6358.44, 10-Jun-2014,
115,Revenue,CCHD,Supported Living - South,Private & Voluntary Home Care,Aspirations Support Bristol Limited,4933.5, 16-Jun-2014,
116,Revenue,CCHD,Purchase of Non-Res Care - South,Private & Voluntary Day Care,Aspirations Support Bristol Limited,2499.48, 16-Jun-2014,
117,Revenue,CCHD,Supported Living - South,Private & Voluntary Home Care,Aspirations Support Bristol Limited,564.2, 16-Jun-2014,
118,Revenue,CCHD,Day Care - South,Private & Voluntary Day Care,Aspirations Support Bristol Limited,610.83, 24-Jun-2014,
119,Revenue,CCHD,Bed Purchasing - Under 65s PWLD - South,Permanent Residential,Autism Specialised Care Homes,5611.16, 10-Jun-2014,
120,Revenue,CCHD,Younger Adult Mental Health,Computer Equipment - Purchase,Avon & Wiltshire Mental Health,10230, 09-Jun-2014,
121,Revenue,CCHD,Purchase of Non-Res Care - North,Private & Voluntary Day Care,Avon Autistic Foundation Limited,3378.04, 20-Jun-2014,
122,Revenue,CCHD,Purchase of Non-Res Care - North,Private & Voluntary Day Care,Avon Autistic Foundation Limited,2301.6, 23-Jun-2014,
123,Revenue,CCHD,Day Care - North,Private & Voluntary Day Care,Avonedge Limited,1200, 05-Jun-2014,
124,Revenue,CCHD,Purchase of RAC places,Other L.A.'s - General,Bath & North East Somerset Dist Council,3955.37, 05-Jun-2014,
125,Revenue,CCHD,Purchase of RAC places,Other L.A.'s - General,Bath & North East Somerset Dist Council,10597.58, 19-Jun-2014,
126,Revenue,CCHD,Purchase of RAC places,Other L.A.'s - General,Bath & North East Somerset Dist Council,7569.7, 19-Jun-2014,
127,Revenue,CCHD,Purchase of RAC places,Other L.A.'s - General,Bath & North East Somerset Dist Council,6055.76, 23-Jun-2014,
128,Revenue,CCHD,Bed Purchasing - Frenchay Hospital,Permanent Nursing,Bayview Nursing & Residential Home,1482.4, 10-Jun-2014,
129,Revenue,CCHD,Swift Dump Code,Permanent Residential,Beaufort Grange Care Home,3176.93, 10-Jun-2014,
130,Revenue,CCHD,Bed Purchasing - Elderly - North,Permanent Nursing,Beaufort Grange Care Home,1528.2, 10-Jun-2014,
131,Revenue,CCHD,Bed Purchasing - Elderly - North,Permanent Residential,Beaufort House,1900.32, 10-Jun-2014,
132,Revenue,CCHD,Bed purchasing - Elderly MH - North,Permanent Residential,Beaufort House,1537.92, 10-Jun-2014,
133,Revenue,CCHD,Bed Purchasing - Elderly - North,Permanent Residential,Beaufort House,1489.71, 10-Jun-2014,
134,Revenue,CCHD,Bed Purchasing - Elderly - North,Permanent Residential,Beaufort House,1390.4, 10-Jun-2014,
135,Revenue,CCHD,Bed purchasing - Elderly MH - North,Permanent Residential,Beaufort House,1396.12, 10-Jun-2014,
136,Revenue,CCHD,Bed Purchasing - Elderly - North,Permanent Residential,Beaufort House,1860.64, 10-Jun-2014,
137,Revenue,CCHD,Bed Purchasing - Elderly - North,Permanent Residential,Beaufort House,1755.08, 10-Jun-2014,
138,Revenue,CCHD,Bed purchasing - Elderly MH - North,Permanent Residential,Beaufort House,1706.44, 10-Jun-2014,
139,Revenue,CCHD,Bed purchasing - Elderly PWLD - South,Permanent Residential,Bedrock Lodge,2949.44, 10-Jun-2014,
140,Revenue,CCHD,Section 117 Placements MH Younger,Permanent Residential,Bedrock Lodge,1864.88, 10-Jun-2014,
141,Revenue,CCHD,Bed Purchasing - Elderly - North,Permanent Nursing,Beech House,2378.48, 10-Jun-2014,
142,Revenue,CCHD,Bed Purchasing - Southmead Hospital,Permanent Nursing,Beech House,1660.64, 10-Jun-2014,
143,Revenue,CCHD,South Glos Users in South Glos Homes,Permanent Nursing,Beech House,2180.12, 10-Jun-2014,
144,Revenue,CCHD,South Glos Users in South Glos Homes,Permanent Nursing,Beech House,871.28, 10-Jun-2014,
145,Revenue,CCHD,Bed purchasing - Elderly MH - North,Permanent Nursing,Beech House,1653.8, 10-Jun-2014,
146,Revenue,CCHD,Swift Dump Code,Permanent Residential,Beech House,1354.63, 10-Jun-2014,
147,Revenue,CCHD,Swift Dump Code,Permanent Residential,Beech House,521.31, 10-Jun-2014,
148,Revenue,CCHD,South Glos Users in South Glos Homes,Permanent Nursing,Beech House,2666.32, 10-Jun-2014,
149,Revenue,CCHD,South Glos Users in South Glos Homes,Permanent Nursing,Beech House,871.28, 10-Jun-2014,
150,Revenue,CCHD,Bed Purchasing - Elderly - North,Permanent Nursing,Beech House,2540.84, 10-Jun-2014,
151,Revenue,CCHD,South Glos Users in South Glos Homes,Permanent Nursing,Beech House,1050.85, 10-Jun-2014,
152,Revenue,CCHD,South Glos Users in South Glos Homes,Permanent Nursing,Beech House,871.28, 10-Jun-2014,
153,Revenue,CCHD,Bed Purchasing - Elderly - North,Permanent Residential,Beech House,1900, 10-Jun-2014,
154,Revenue,CCHD,Bed Purchasing - Elderly - North,Permanent Nursing,Beech House,2127.2, 10-Jun-2014,
155,Revenue,CCHD,Bed Purchasing - Elderly - North,Permanent Nursing,Beech House,720.44, 10-Jun-2014,
156,Revenue,CCHD,Bed Purchasing - Elderly - North,Permanent Residential,Beech House,1394.08, 10-Jun-2014,
157,Revenue,CCHD,Bed Purchasing - Elderly - North,Permanent Nursing,Beech House,1699.12, 10-Jun-2014,
158,Revenue,CCHD,Bed Purchasing - Elderly - North,Permanent Nursing,Blossom Field,1859.76, 10-Jun-2014,
159,Revenue,CCHD,Bed Purchasing - Elderly S117- North,Permanent Nursing,Blossom Field,1992, 10-Jun-2014,
160,Revenue,CCHD,Bed Purchasing - Elderly - North,Permanent Nursing,Blossom Field,1935.64, 10-Jun-2014,
161,Revenue,CCHD,Bed Purchasing - Elderly - North,Permanent Nursing,Blossom Field,2337, 10-Jun-2014,
162,Revenue,CCHD,Bed purchasing - Elderly MH - North,Permanent Nursing,Blossom Field,1420.72, 10-Jun-2014,
163,Revenue,CCHD,Bed Purchasing - Elderly - South,Permanent Nursing,Blossom Field,1909.84, 10-Jun-2014,
164,Revenue,CCHD,Bed Purchasing - Southmead Hospital,Permanent Nursing,Blossom Fields,3032.52, 16-Jun-2014,
165,Revenue,CCHD,Bed Purchasing - Elderly - North,Permanent Nursing,Blossom Fields,2588.96, 16-Jun-2014,
166,Revenue,CCHD,Bed Purchasing - Elderly - North,Permanent Nursing,Blossom Fields,2093.16, 16-Jun-2014,
167,Revenue,CCHD,Training - Adult Services,Training Expenses,Bob Dawson,1350, 20-Jun-2014,
168,Revenue,CCHD,Training - Adult Services,Training Expenses,Bournemouth University,550, 20-Jun-2014,
169,Revenue,CCHD,Bed purchasing - Under 65s PWLD - North,Permanent Residential,Bradbury House,8760.16, 10-Jun-2014,
170,Revenue,CCHD,Bed Purchasing - Elderly - North,Permanent Residential,Bradley House,1533.8, 10-Jun-2014,
171,Revenue,CCHD,Home Care - Elderly - North,Other Small Contracts,Bradley House Home Care Services,1327.97, 10-Jun-2014,
172,Revenue,CCHD,Day Care - North,Private & Voluntary Day Care,Bradley House Home Care Services,102.48, 10-Jun-2014,
173,Revenue,CCHD,Home Care - Elderly - North,Other Small Contracts,Bradley House Home Care Services,1276.73, 10-Jun-2014,
174,Revenue,CCHD,Day Care - North,Private & Voluntary Day Care,Bradley House Home Care Services,102.48, 10-Jun-2014,
175,Revenue,CCHD,Home Care - Elderly - North,Other Small Contracts,Bradley House Home Care Services,1293.81, 16-Jun-2014,
176,Revenue,CCHD,Day Care - North,Private & Voluntary Day Care,Bradley House Home Care Services,102.48, 16-Jun-2014,
177,Revenue,CCHD,Home Care - Elderly - North,Other Small Contracts,Bradley House Home Care Services,1289.54, 30-Jun-2014,
178,Revenue,CCHD,Day Care - North,Private & Voluntary Day Care,Bradley House Home Care Services,102.48, 30-Jun-2014,
179,Revenue,CCHD,Sexual Health,Other Supplies & Services,Bradley Stoke Surgery,1538.22, 16-Jun-2014,
180,Revenue,CCHD,Woodleaze,"Provisions (Food, etc)",Brake Bros,1068, 12-Jun-2014,
181,Revenue,CCHD,Alexandra Way,"Provisions (Food, etc)",Brake Bros,767.65, 16-Jun-2014,
182,Revenue,CCHD,Alexandra Way,"Provisions (Food, etc)",Brake Bros,967.32, 16-Jun-2014,
183,Revenue,CCHD,Alexandra Way,"Provisions (Food, etc)",Brake Bros,620.97, 25-Jun-2014,
184,Revenue,CCHD,Woodleaze,"Provisions (Food, etc)",Brake Bros,507.59, 19-Jun-2014,
185,Revenue,CCHD,South Glos Users in South Glos Homes,Permanent Nursing,Brandon Trust,2988.66, 10-Jun-2014,
186,Revenue,CCHD,Bed Purchasing - S28A - Over 65- North,Permanent Residential,Brandon Trust,10839.78, 10-Jun-2014,
187,Revenue,CCHD,Bed Purchasing - Under 65s PWLD - South,Permanent Residential,Brandon Trust,10268.44, 10-Jun-2014,
188,Revenue,CCHD,Bed Purchasing - Under 65s PWLD - South,Permanent Residential,Brandon Trust,4036.12, 10-Jun-2014,
189,Revenue,CCHD,Bed purchasing - Elderly PWLD - South,Permanent Residential,Brandon Trust,3459.92, 10-Jun-2014,
190,Revenue,CCHD,Bed Purchasing - LD S28A- Over 65- South,Permanent Nursing,Brandon Trust,4860.44, 10-Jun-2014,
191,Revenue,CCHD,Bed Purchasing - Under 65s PWLD - South,Permanent Nursing,Brandon Trust,5036.84, 10-Jun-2014,
192,Revenue,CCHD,Bed purchasing - S28A Under 65 - South,Permanent Nursing,Brandon Trust,5359.12, 10-Jun-2014,
193,Revenue,CCHD,Bed purchasing - S28A Under 65 - South,Permanent Residential,Brandon Trust,4901.16, 10-Jun-2014,
194,Revenue,CCHD,Bed purchasing - S28A Under 65 - South,Permanent Nursing,Brandon Trust,5359.12, 10-Jun-2014,
195,Revenue,CCHD,Bed Purchasing - LD S28A- Over 65- South,Permanent Nursing,Brandon Trust,5182.72, 10-Jun-2014,
196,Revenue,CCHD,Bed Purchasing - LD S28A- Over 65- South,Permanent Nursing,Brandon Trust,4849.76, 10-Jun-2014,
197,Revenue,CCHD,Bed Purchasing - Under 65s PWLD - South,Permanent Residential,Brandon Trust,3273.48, 10-Jun-2014,
198,Revenue,CCHD,Bed Purchasing - S28A - Over 65- North,Permanent Nursing,Brandon Trust,4810.28, 10-Jun-2014,
199,Revenue,CCHD,Bed purchasing - S28A Under 65 - South,Permanent Residential,Brandon Trust,5202.76, 10-Jun-2014,
200,Revenue,CCHD,Bed purchasing - S28A Under 65 - South,Permanent Residential,Brandon Trust,5258.44, 10-Jun-2014,
201,Revenue,CCHD,Bed Purchasing - S28A - Over 65- North,Permanent Residential,Brandon Trust,10996.28, 10-Jun-2014,
202,Revenue,CCHD,Bed purchasing - S28A Under 65 - South,Permanent Nursing,Brandon Trust,5399.12, 10-Jun-2014,
203,Revenue,CCHD,Bed purchasing - S28A Under 65 - South,Permanent Nursing,Brandon Trust,5359.12, 10-Jun-2014,
204,Revenue,CCHD,Bed purchasing -S28A  Under 65 - North,Permanent Nursing,Brandon Trust,4783.16, 10-Jun-2014,
205,Revenue,CCHD,Bed purchasing - S28A Under 65 - South,Permanent Residential,Brandon Trust,5258.44, 10-Jun-2014,
206,Revenue,CCHD,Bed Purchasing - LD S28A- Over 65- South,Permanent Residential,Brandon Trust,4748.2, 10-Jun-2014,
207,Revenue,CCHD,Bed Purchasing - Under 65s PWLD - South,Permanent Residential,Brandon Trust,4143.86, 10-Jun-2014,
208,Revenue,CCHD,Bed Purchasing - Elderly - North,Permanent Residential,Bridge House Care Home,1003.08, 10-Jun-2014,
209,Revenue,CCHD,Bed Purchasing - Elderly - North,Permanent Residential,Bridge House Care Home,1167.32, 10-Jun-2014,
210,Revenue,CCHD,Bed Purchasing - Elderly - North,Respite Planned - Residential,Bridge House Care Home,1822.86, 10-Jun-2014,
211,Revenue,CCHD,Bed Purchasing - Elderly - North,Respite Planned - Residential,Bridge House Care Home,580, 10-Jun-2014,
212,Revenue,CCHD,Bed Purchasing - Elderly MH - South,Permanent Residential,Brightbow,2095.28, 10-Jun-2014,
213,Revenue,CCHD,MH Purchasing - Younger,Permanent Residential,Brightbow,1493.96, 10-Jun-2014,
214,Revenue,CCHD,Purchase of RAC places,Other L.A.'s - General,Bristol City Council,1845.31, 05-Jun-2014,
215,Revenue,CCHD,Planning and Partnerships Team,Other Supplies & Services,Bristol City Council,5523.8, 13-Jun-2014,
216,Revenue,CCHD,Purchase of Day Centre places,Other L.A.'s - General,Bristol City Council,756.77, 26-Jun-2014,
217,Revenue,CCHD,Purchase of RAC places,Other L.A.'s - General,Bristol City Council,3623.51, 26-Jun-2014,
218,Revenue,CCHD,Purchase of RAC places,Other L.A.'s - General,Bristol City Council,6217.46, 26-Jun-2014,
219,Revenue,CCHD,Supported Living - North,Private & Voluntary Home Care,Bristol Houses UK Limited,1056.6, 20-Jun-2014,
220,Revenue,CCHD,Day Care - North,Private & Voluntary Day Care,Bristol Houses UK Limited,1549.68, 20-Jun-2014,
221,Revenue,CCHD,Day Care - North,Private & Voluntary Day Care,Bristol Houses UK Limited,2394.96, 20-Jun-2014,
222,Revenue,CCHD,Supported Living - North,Private & Voluntary Home Care,Bristol Houses UK Limited,605.6, 20-Jun-2014,
223,Revenue,CCHD,Supported Living - North,Private & Voluntary Home Care,Bristol Houses UK Limited,931.11, 20-Jun-2014,
224,Revenue,CCHD,Day Care - North,Private & Voluntary Day Care,Bristol Houses UK Limited,605.6, 05-Jun-2014,
225,Revenue,CCHD,Day Care - North,Private & Voluntary Day Care,Bristol Houses UK Limited,601.82, 20-Jun-2014,
226,Revenue,CCHD,Supported Living - North,Private & Voluntary Home Care,Bristol Houses UK Limited,656.84, 20-Jun-2014,
227,Revenue,CCHD,Bed and Breakfast,Bed & Breakfast,Bristol Housing & Support Limited,650, 12-Jun-2014,
228,Revenue,CCHD,Bed and Breakfast,Bed & Breakfast,Bristol Housing & Support Limited,680, 19-Jun-2014,
229,Revenue,CCHD,Bed and Breakfast,Bed & Breakfast,Bristol Housing & Support Limited,930, 20-Jun-2014,
230,Revenue,CCHD,Bed and Breakfast,Bed & Breakfast,Bristol Housing & Support Limited,1050, 23-Jun-2014,
231,Revenue,CCHD,Bed and Breakfast,Bed & Breakfast,Bristol Housing & Support Limited,1050, 30-Jun-2014,
232,Revenue,CCHD,Day Care - South,Private & Voluntary Day Care,Britannia House,914.88, 10-Jun-2014,
233,Revenue,CCHD,Day Care - South,Private & Voluntary Day Care,Britannia House,686.16, 10-Jun-2014,
234,Revenue,CCHD,Day Care - North,Private & Voluntary Day Care,Britannia House,914.88, 10-Jun-2014,
235,Revenue,CCHD,Day Care - South,Private & Voluntary Day Care,Britannia House,686.16, 10-Jun-2014,
236,Revenue,CCHD,Day Care - North,Private & Voluntary Day Care,Britannia House,914.88, 10-Jun-2014,
237,Revenue,CCHD,Day Care - South,Private & Voluntary Day Care,Britannia House,571.8, 10-Jun-2014,
238,Revenue,CCHD,Day Care - South,Private & Voluntary Day Care,Britannia House,1143.6, 10-Jun-2014,
239,Revenue,CCHD,Home Care - Elderly - South,Other Small Contracts,Britannia House,686.16, 10-Jun-2014,
240,Revenue,CCHD,Day Care - South,Private & Voluntary Day Care,Britannia House,686.16, 10-Jun-2014,
241,Revenue,CCHD,Day Care - South,Private & Voluntary Day Care,Britannia House,686.16, 10-Jun-2014,
242,Revenue,CCHD,Home Care - Elderly - North,Private & Voluntary Home Care,Brunelcare,23160, 02-Jun-2014,
243,Revenue,CCHD,Home Care - Elderly - North,Private & Voluntary Home Care,Brunelcare,23160, 09-Jun-2014,
244,Revenue,CCHD,Home Care - Elderly - North,Private & Voluntary Home Care,Brunelcare,23160, 16-Jun-2014,
245,Revenue,CCHD,Home Care - Elderly - North,Private & Voluntary Home Care,Brunelcare,23160, 23-Jun-2014,
246,Revenue,CCHD,Home Care - Elderly - North,Private & Voluntary Home Care,Brunelcare,23160, 30-Jun-2014,
247,Revenue,CCHD,Bed Purchasing - Elderly MH - South,Permanent Nursing,Brunelcare,1500.41, 23-Jun-2014,
248,Revenue,CCHD,Bed Purchasing - Elderly - South,Permanent Nursing,Brunelcare,1534.77, 23-Jun-2014,
249,Revenue,CCHD,Bed Purchasing - Elderly - South,Permanent Nursing,Brunelcare,1251.67, 23-Jun-2014,
250,Revenue,CCHD,Bed Purchasing - Elderly MH - South,Permanent Nursing,Brunelcare,1531.92, 23-Jun-2014,
251,Revenue,CCHD,Bed Purchasing - Elderly - South,Permanent Nursing,Brunelcare,1576.49, 23-Jun-2014,
252,Revenue,CCHD,Bed Purchasing - Frenchay Hospital,Permanent Nursing,Brunelcare,1595.92, 23-Jun-2014,
253,Revenue,CCHD,Bed Purchasing - Elderly MH - South,Permanent Nursing,Brunelcare,1564.66, 23-Jun-2014,
254,Revenue,CCHD,Bed Purchasing - Elderly - South,Permanent Nursing,Brunelcare,1576.32, 23-Jun-2014,
255,Revenue,CCHD,Bed Purchasing - Elderly - South,Permanent Nursing,Brunelcare,1542.45, 23-Jun-2014,
256,Revenue,CCHD,Bed purchasing - Elderly S117 - South,Permanent Nursing,Brunelcare,2001.46, 23-Jun-2014,
257,Revenue,CCHD,Bed Purchasing - Frenchay Hospital,Permanent Nursing,Brunelcare,1167.83, 23-Jun-2014,
258,Revenue,CCHD,Bed Purchasing - Frenchay Hospital,Permanent Nursing,Brunelcare,707.59, 23-Jun-2014,
259,Revenue,CCHD,Bed Purchasing - Southmead Hospital,Permanent Nursing,Brunelcare,1311.26, 23-Jun-2014,
260,Revenue,CCHD,Bed Purchasing - Elderly - South,Permanent Nursing,Brunelcare,1401.39, 23-Jun-2014,
261,Revenue,CCHD,Bed Purchasing - Elderly - South,Permanent Nursing,Brunelcare,1174.63, 23-Jun-2014,
262,Revenue,CCHD,Bed Purchasing - Frenchay Hospital,Permanent Nursing,Brunelcare,1240.32, 23-Jun-2014,
263,Revenue,CCHD,Bed Purchasing - Elderly - South,Permanent Nursing,Brunelcare,1114.7, 23-Jun-2014,
264,Revenue,CCHD,Bed Purchasing - Frenchay Hospital,Permanent Nursing,Brunelcare,1268.91, 23-Jun-2014,
265,Revenue,CCHD,Bed Purchasing - Elderly - South,Permanent Nursing,Brunelcare,1576.49, 23-Jun-2014,
266,Revenue,CCHD,Bed Purchasing - Southmead Hospital,Permanent Nursing,Brunelcare,1401.39, 23-Jun-2014,
267,Revenue,CCHD,Bed Purchasing - Elderly - South,Permanent Nursing,Brunelcare,1401.39, 23-Jun-2014,
268,Revenue,CCHD,Bed Purchasing - Elderly - North,Permanent Nursing,Brunelcare,1401.39, 23-Jun-2014,
269,Revenue,CCHD,Bed Purchasing - Southmead Hospital,Permanent Nursing,Brunelcare,1401.39, 23-Jun-2014,
270,Revenue,CCHD,Bed Purchasing - Frenchay Hospital,Permanent Nursing,Brunelcare,1318.56, 23-Jun-2014,
271,Revenue,CCHD,Bed Purchasing - Elderly S117- North,Permanent Nursing,Brunelcare,2001.46, 23-Jun-2014,
272,Revenue,CCHD,Bed Purchasing - Southmead Hospital,Permanent Nursing,Brunelcare,1144.15, 23-Jun-2014,
273,Revenue,CCHD,Bed Purchasing - Elderly - South,Permanent Nursing,Brunelcare,684.89, 23-Jun-2014,
274,Revenue,CCHD,Bed Purchasing - Elderly - South,Permanent Nursing,Brunelcare,875.87, 23-Jun-2014,
275,Revenue,CCHD,Bed Purchasing - Elderly - South,Permanent Nursing,Brunelcare,1826.37, 23-Jun-2014,
276,Revenue,CCHD,South Glos Users in South Glos Homes,Permanent Nursing,Brunelcare,517.58, 23-Jun-2014,
277,Revenue,CCHD,Bed purchasing - Elderly S117 - South,Permanent Nursing,Brunelcare,2001.46, 23-Jun-2014,
278,Revenue,CCHD,Bed Purchasing - Elderly MH - South,Permanent Nursing,Brunelcare,1938.03, 30-Jun-2014,
279,Revenue,CCHD,Bed Purchasing - Elderly - South,Permanent Nursing,Brunelcare,1982.41, 30-Jun-2014,
280,Revenue,CCHD,Bed Purchasing - Elderly - South,Permanent Nursing,Brunelcare,1616.74, 30-Jun-2014,
281,Revenue,CCHD,Bed purchasing - Elderly MH - North,Permanent Nursing,Brunelcare,1978.73, 30-Jun-2014,
282,Revenue,CCHD,Bed Purchasing - Elderly - South,Permanent Nursing,Brunelcare,2036.3, 30-Jun-2014,
283,Revenue,CCHD,Bed Purchasing - Elderly MH - South,Permanent Nursing,Brunelcare,2021.02, 30-Jun-2014,
284,Revenue,CCHD,Bed Purchasing - Elderly - South,Permanent Nursing,Brunelcare,2036.08, 30-Jun-2014,
285,Revenue,CCHD,Bed Purchasing - Elderly - South,Permanent Nursing,Brunelcare,835.49, 30-Jun-2014,
286,Revenue,CCHD,Bed Purchasing - Elderly - South,Permanent Nursing,Brunelcare,1369.77, 30-Jun-2014,
287,Revenue,CCHD,Bed Purchasing - Elderly S117- North,Permanent Nursing,Brunelcare,2585.22, 30-Jun-2014,
288,Revenue,CCHD,Bed purchasing - Elderly S117 - South,Permanent Nursing,Brunelcare,2585.22, 30-Jun-2014,
289,Revenue,CCHD,Bed Purchasing - Frenchay Hospital,Permanent Nursing,Brunelcare,1810.13, 30-Jun-2014,
290,Revenue,CCHD,Bed Purchasing - Frenchay Hospital,Permanent Nursing,Brunelcare,913.97, 30-Jun-2014,
291,Revenue,CCHD,Bed Purchasing - Southmead Hospital,Permanent Nursing,Brunelcare,1693.71, 30-Jun-2014,
292,Revenue,CCHD,Bed Purchasing - Elderly - South,Permanent Nursing,Brunelcare,1810.13, 30-Jun-2014,
293,Revenue,CCHD,Bed Purchasing - Elderly - South,Permanent Nursing,Brunelcare,1517.23, 30-Jun-2014,
294,Revenue,CCHD,Bed Purchasing - Frenchay Hospital,Permanent Nursing,Brunelcare,1602.08, 30-Jun-2014,
295,Revenue,CCHD,Bed Purchasing - Elderly - South,Permanent Nursing,Brunelcare,1439.82, 30-Jun-2014,
296,Revenue,CCHD,Bed Purchasing - Frenchay Hospital,Permanent Nursing,Brunelcare,1639.01, 30-Jun-2014,
297,Revenue,CCHD,Bed Purchasing - Elderly - South,Permanent Nursing,Brunelcare,2036.3, 30-Jun-2014,
298,Revenue,CCHD,Bed Purchasing - Southmead Hospital,Permanent Nursing,Brunelcare,1810.13, 30-Jun-2014,
299,Revenue,CCHD,Bed Purchasing - Elderly - South,Permanent Nursing,Brunelcare,1810.13, 30-Jun-2014,
300,Revenue,CCHD,Bed Purchasing - Elderly - North,Permanent Nursing,Brunelcare,1810.13, 30-Jun-2014,
301,Revenue,CCHD,Bed Purchasing - Southmead Hospital,Permanent Nursing,Brunelcare,1810.13, 30-Jun-2014,
302,Revenue,CCHD,Bed Purchasing - Frenchay Hospital,Permanent Nursing,Brunelcare,1703.14, 30-Jun-2014,
303,Revenue,CCHD,Bed Purchasing - Elderly S117- North,Permanent Nursing,Brunelcare,2585.22, 30-Jun-2014,
304,Revenue,CCHD,Bed Purchasing - Southmead Hospital,Permanent Nursing,Brunelcare,1477.86, 30-Jun-2014,
305,Revenue,CCHD,Bed Purchasing - Elderly - South,Permanent Nursing,Brunelcare,1810.13, 30-Jun-2014,
306,Revenue,CCHD,Bed Purchasing - Elderly - South,Permanent Nursing,Brunelcare,2359.06, 30-Jun-2014,
307,Revenue,CCHD,S75 CCG Interim Beds,Permanent Nursing,Brunelcare,8957.1, 06-Jun-2014,
308,Revenue,CCHD,Home Care - Elderly - South,Other Small Contracts,Brunelcare,2913.12, 30-Jun-2014,
309,Revenue,CCHD,Home Care - Elderly - North,Other Small Contracts,Brunelcare,4161.6, 30-Jun-2014,
310,Revenue,CCHD,Day Care - South,Private & Voluntary Day Care,Brunelcare,24.48, 30-Jun-2014,
311,Revenue,CCHD,Day Care - North,Private & Voluntary Day Care,Brunelcare,53.04, 30-Jun-2014,
312,Revenue,CCHD,Home Care - Elderly - South,Other Small Contracts,Brunelcare,2949.84, 30-Jun-2014,
313,Revenue,CCHD,Home Care - Elderly - North,Other Small Contracts,Brunelcare,4124.88, 30-Jun-2014,
314,Revenue,CCHD,Day Care - South,Private & Voluntary Day Care,Brunelcare,24.48, 30-Jun-2014,
315,Revenue,CCHD,Day Care - North,Private & Voluntary Day Care,Brunelcare,48.96, 30-Jun-2014,
316,Revenue,CCHD,Home Care - Elderly - South,Other Small Contracts,Brunelcare,3092.64, 30-Jun-2014,
317,Revenue,CCHD,Home Care - Elderly - North,Other Small Contracts,Brunelcare,3929.04, 30-Jun-2014,
318,Revenue,CCHD,Day Care - South,Private & Voluntary Day Care,Brunelcare,28.56, 30-Jun-2014,
319,Revenue,CCHD,Day Care - North,Private & Voluntary Day Care,Brunelcare,53.04, 30-Jun-2014,
320,Revenue,CCHD,Information Systems - Software,Computer Equipment - Purchase,BT Global Services Solutions,983.59, 09-Jun-2014,
321,Revenue,CCHD,Bed purchasing - Phys Dis - North,Permanent Nursing,Bupa Care Services  Bridge House,5938.28, 10-Jun-2014,
322,Revenue,CCHD,South Glos Users in South Glos Homes,Permanent Nursing,Bupa Care Services  Bridge House,610.44, 10-Jun-2014,
323,Revenue,CCHD,Bed purchasing - Elderly MH - North,Permanent Residential,Bupa Care Services  Bridge House,1987.24, 10-Jun-2014,
324,Revenue,CCHD,Supported Living - North,Private & Voluntary Home Care,Camphill Communities Thornbury Limited,2290.92, 04-Jun-2014,
325,Revenue,CCHD,Supported Living - North,Private & Voluntary Home Care,Camphill Communities Thornbury Limited,2049.76, 04-Jun-2014,
326,Revenue,CCHD,Supported Living - North,Private & Voluntary Home Care,Camphill Communities Thornbury Limited,2016.48, 04-Jun-2014,
327,Revenue,CCHD,Supported Living - North,Private & Voluntary Home Care,Camphill Communities Thornbury Limited,2563.76, 20-Jun-2014,
328,Revenue,CCHD,Supported Living - North,Private & Voluntary Home Care,Camphill Communities Thornbury Limited,2132.92, 11-Jun-2014,
329,Revenue,CCHD,Supported Living - North,Private & Voluntary Home Care,Camphill Communities Thornbury Limited,2450.96, 11-Jun-2014,
330,Revenue,CCHD,Supported Living - North,Private & Voluntary Home Care,Camphill Communities Thornbury Limited,2479.4, 12-Jun-2014,
331,Revenue,CCHD,Supported Living - North,Private & Voluntary Home Care,Camphill Communities Thornbury Limited,2237.32, 12-Jun-2014,
332,Revenue,CCHD,Supported Living - North,Private & Voluntary Home Care,Camphill Communities Thornbury Limited,1792.96, 12-Jun-2014,
333,Revenue,CCHD,Supported Living - North,Private & Voluntary Home Care,Camphill Communities Thornbury Limited,2303.08, 12-Jun-2014,
334,Revenue,CCHD,Supported Living - North,Private & Voluntary Home Care,Camphill Communities Thornbury Limited,2203.08, 12-Jun-2014,
335,Revenue,CCHD,Supported Living - North,Private & Voluntary Home Care,Camphill Communities Thornbury Limited,2793.8, 19-Jun-2014,
336,Revenue,CCHD,Supported Living - North,Private & Voluntary Home Care,Camphill Communities Thornbury Limited,2563.51, 25-Jun-2014,
337,Revenue,CCHD,Supported Living - North,Private & Voluntary Home Care,Camphill Communities Thornbury Limited,2664.75, 25-Jun-2014,
338,Revenue,CCHD,Supported Living - North,Private & Voluntary Home Care,Camphill Communities Thornbury Limited,1869.42, 27-Jun-2014,
339,Revenue,CCHD,Bed Purchasing - Elderly S117- North,Permanent Residential,Canjayor,2334.04, 10-Jun-2014,
340,Revenue,CCHD,Home Care - Elderly - South,Other Small Contracts,Care 1st Homecare,4926.6, 12-Jun-2014,
341,Revenue,CCHD,Home Care - Elderly - North,Other Small Contracts,Care 1st Homecare,2759.4, 12-Jun-2014,
342,Revenue,CCHD,Home care - Elderly MH - North,Other Small Contracts,Care 1st Homecare,67.2, 12-Jun-2014,
343,Revenue,CCHD,Bed Purchasing - PWLD S 117 Placements,Permanent Residential,Care Community Ltd,7647.92, 10-Jun-2014,
344,Revenue,CCHD,Home Care - Elderly - North,Other Small Contracts,Care Horizons Limited,2151.71, 16-Jun-2014,
345,Revenue,CCHD,Day Care - South,Private & Voluntary Day Care,Care Horizons Limited,120.15, 16-Jun-2014,
346,Revenue,CCHD,Home Care - Elderly - North,Other Small Contracts,Care Horizons Limited,2151.7, 16-Jun-2014,
347,Revenue,CCHD,Day Care - South,Private & Voluntary Day Care,Care Horizons Limited,249.2, 16-Jun-2014,
348,Revenue,CCHD,Home Care - Elderly - North,Other Small Contracts,Care Horizons Limited,2148.54, 16-Jun-2014,
349,Revenue,CCHD,Day Care - South,Private & Voluntary Day Care,Care Horizons Limited,195.8, 16-Jun-2014,
350,Revenue,CCHD,Home Care - Elderly - North,Other Small Contracts,Care Horizons Limited,2148.55, 16-Jun-2014,
351,Revenue,CCHD,Day Care - South,Private & Voluntary Day Care,Care Horizons Limited,249.2, 16-Jun-2014,
352,Revenue,CCHD,Supported Living - North,Private & Voluntary Home Care,Care Horizons Limited,5908.57, 23-Jun-2014,
353,Revenue,CCHD,Purchase of Non-Res Care - North,Private & Voluntary Day Care,Care Horizons Limited,1833.2, 23-Jun-2014,
354,Revenue,CCHD,Purchase of Non-Res Care - North,Private & Voluntary Day Care,Care Horizons Limited,1208.83, 23-Jun-2014,
355,Revenue,CCHD,Purchase of Non-Res Care - North,Private & Voluntary Day Care,Care Horizons Limited,1585.79, 23-Jun-2014,
356,Revenue,CCHD,Supported Living - South,Private & Voluntary Home Care,Care Horizons Limited,1716.85, 24-Jun-2014,
357,Revenue,CCHD,Supported Living - North,Private & Voluntary Home Care,Care Horizons Limited,5453.31, 06-Jun-2014,
358,Revenue,CCHD,Training - Adult Services,Training Expenses,Care Learning LimitedDO NOT USE,12000, 09-Jun-2014,
359,Revenue,CCHD,Home Care - Elderly - South,Other Small Contracts,Care UK,5229.28, 10-Jun-2014,
360,Revenue,CCHD,Home Care - Elderly - North,Other Small Contracts,Care UK,2120.72, 10-Jun-2014,
361,Revenue,CCHD,Day Care - South,Private & Voluntary Day Care,Care UK,196, 10-Jun-2014,
362,Revenue,CCHD,Day Care - North,Private & Voluntary Day Care,Care UK,479.3, 10-Jun-2014,
363,Revenue,CCHD,Home care - Elderly MH - North,Other Small Contracts,Care UK,599.76, 10-Jun-2014,
364,Revenue,CCHD,Elderly MH Day Care North,Private & Voluntary Day Care,Care UK,141.12, 10-Jun-2014,
365,Revenue,CCHD,Home Care - Elderly - South,Other Small Contracts,Care UK,5123.44, 10-Jun-2014,
366,Revenue,CCHD,Home Care - Elderly - North,Other Small Contracts,Care UK,1936.48, 10-Jun-2014,
367,Revenue,CCHD,Day Care - South,Private & Voluntary Day Care,Care UK,196, 10-Jun-2014,
368,Revenue,CCHD,Day Care - North,Private & Voluntary Day Care,Care UK,436.12, 10-Jun-2014,
369,Revenue,CCHD,Home care - Elderly MH - North,Other Small Contracts,Care UK,611.52, 10-Jun-2014,
370,Revenue,CCHD,Elderly MH Day Care North,Private & Voluntary Day Care,Care UK,148.96, 10-Jun-2014,
371,Revenue,CCHD,Home Care - Elderly - South,Private & Voluntary Day Care,Care UK,196, 30-Jun-2014,
372,Revenue,CCHD,Home Care - Elderly - South,Other Small Contracts,Care UK,5119.52, 30-Jun-2014,
373,Revenue,CCHD,Home Care - Elderly - North,Other Small Contracts,Care UK,1987.44, 30-Jun-2014,
374,Revenue,CCHD,Day Care - North,Private & Voluntary Day Care,Care UK,407.68, 30-Jun-2014,
375,Revenue,CCHD,Home care - Elderly MH - North,Other Small Contracts,Care UK,603.68, 30-Jun-2014,
376,Revenue,CCHD,Elderly MH Day Care North,Private & Voluntary Day Care,Care UK,137.2, 30-Jun-2014,
377,Revenue,CCHD,Home Care - Elderly - South,Other Small Contracts,Carers R Us (Bristol) Limited,171.57, 16-Jun-2014,
378,Revenue,CCHD,Home Care - Elderly - North,Other Small Contracts,Carers R Us (Bristol) Limited,989.52, 16-Jun-2014,
379,Revenue,CCHD,Home Care - Elderly - South,Other Small Contracts,Carers R Us (Bristol) Limited,243.39, 16-Jun-2014,
380,Revenue,CCHD,Home Care - Elderly - North,Other Small Contracts,Carers R Us (Bristol) Limited,973.56, 16-Jun-2014,
381,Revenue,CCHD,Home Care - Elderly - South,Other Small Contracts,Carers R Us (Bristol) Limited,251.37, 16-Jun-2014,
382,Revenue,CCHD,Home Care - Elderly - North,Other Small Contracts,Carers R Us (Bristol) Limited,953.61, 16-Jun-2014,
383,Revenue,CCHD,Home Care - Elderly - South,Other Small Contracts,Carers R Us (Bristol) Limited,243.39, 16-Jun-2014,
384,Revenue,CCHD,Home Care - Elderly - North,Other Small Contracts,Carers R Us (Bristol) Limited,1041.39, 16-Jun-2014,
385,Revenue,CCHD,Home Care - Elderly - South,Other Small Contracts,Carewatch (Bristol),1011.5, 16-Jun-2014,
386,Revenue,CCHD,Home Care - Elderly - North,Other Small Contracts,Carewatch (Bristol),1283.5, 16-Jun-2014,
387,Revenue,CCHD,Home Care - Elderly - South,Other Small Contracts,Carewatch (Bristol),977.5, 16-Jun-2014,
388,Revenue,CCHD,Home Care - Elderly - North,Other Small Contracts,Carewatch (Bristol),1279.25, 16-Jun-2014,
389,Revenue,CCHD,Elderly MH Day Care South,Private & Voluntary Day Care,Caring Home Healthcare Group Limited,1200, 13-Jun-2014,
390,Revenue,CCHD,Elderly MH Day Care South,Private & Voluntary Day Care,Caring Home Healthcare Group Limited,600, 13-Jun-2014,
391,Revenue,CCHD,Bed Purchasing - Elderly - South,Permanent Residential,Cepen Lodge Care Home,2208.48, 10-Jun-2014,
392,Revenue,CCHD,Home Care - Elderly - South,Other Small Contracts,Cherish Able Care Limited,6305.04, 05-Jun-2014,
393,Revenue,CCHD,Home Care - Elderly - North,Other Small Contracts,Cherish Able Care Limited,137.61, 05-Jun-2014,
394,Revenue,CCHD,Home Care - Elderly - South,Other Small Contracts,Cherish Able Care Limited,6396.78, 12-Jun-2014,
395,Revenue,CCHD,Home Care - Elderly - North,Other Small Contracts,Cherish Able Care Limited,137.61, 12-Jun-2014,
396,Revenue,CCHD,Home Care - Elderly - South,Other Small Contracts,Cherish Able Care Limited,6267.51, 20-Jun-2014,
397,Revenue,CCHD,Home Care - Elderly - North,Other Small Contracts,Cherish Able Care Limited,137.61, 20-Jun-2014,
398,Revenue,CCHD,Home Care - Elderly - South,Other Small Contracts,Cherish Able Care Limited,6196.62, 27-Jun-2014,
399,Revenue,CCHD,Home Care - Elderly - North,Other Small Contracts,Cherish Able Care Limited,75.06, 27-Jun-2014,
400,Revenue,CCHD,Bed purchasing -S28A  Under 65 - North,Permanent Residential,Chescombe Lodge,8697, 10-Jun-2014,
401,Revenue,CCHD,Training - Adult Services,Training Expenses,Chris Garnier,550, 19-Jun-2014,
402,Revenue,CCHD,Sexual Health,Other Supplies & Services,Christchurch Family Medical  Centre,1042.68, 16-Jun-2014,
403,Revenue,CCHD,NHS Health Checks & Tobacco Control,Other Supplies & Services,Christchurch Family Medical  Centre,570, 23-Jun-2014,
404,Revenue,CCHD,Bed purchasing - Under 65s PWLD - North,Permanent Residential,Church House,10507.68, 10-Jun-2014,
405,Revenue,CCHD,Bed purchasing - Under 65s PWLD - North,Permanent Residential,Church House,5863.56, 10-Jun-2014,
406,Revenue,CCHD,Section 117 Placements MH Younger,Permanent Residential,Church House,7307.08, 10-Jun-2014,
407,Revenue,CCHD,Supported Living - North,Private & Voluntary Home Care,Cintre Community Limited,554.12, 16-Jun-2014,
408,Revenue,CCHD,Supported Living - North,Private & Voluntary Home Care,Cintre Community Limited,520.02, 27-Jun-2014,
409,Revenue,CCHD,Bed Purchasing - Under 65s PWLD - South,Permanent Residential,Citibase Watford,7012, 10-Jun-2014,
410,Revenue,CCHD,Bed Purchasing - PWLD S 117 Placements,Permanent Residential,Citibase Watford,8932.12, 10-Jun-2014,
411,Revenue,CCHD,Bed Purchasing - Under 65s PWLD - South,Permanent Residential,Citibase Watford,5454.64, 10-Jun-2014,
412,Revenue,CCHD,Home Care - Elderly - South,Other Small Contracts,Cleeve Care Group,619.5, 06-Jun-2014,
413,Revenue,CCHD,Home Care - Elderly - North,Other Small Contracts,Cleeve Care Group,941.5, 06-Jun-2014,
414,Revenue,CCHD,Home Care - Elderly - South,Other Small Contracts,Cleeve Care Group,731.5, 13-Jun-2014,
415,Revenue,CCHD,Home Care - Elderly - North,Other Small Contracts,Cleeve Care Group,640.5, 13-Jun-2014,
416,Revenue,CCHD,Home Care - Elderly - South,Other Small Contracts,Cleeve Care Group,602, 19-Jun-2014,
417,Revenue,CCHD,Home Care - Elderly - North,Other Small Contracts,Cleeve Care Group,598.5, 19-Jun-2014,
418,Revenue,CCHD,Home Care - Elderly - South,Other Small Contracts,Cleeve Care Group,595, 27-Jun-2014,
419,Revenue,CCHD,Home Care - Elderly - North,Other Small Contracts,Cleeve Care Group,668.5, 27-Jun-2014,
420,Revenue,CCHD,Bed Purchasing - Southmead Hospital,Permanent Residential,Cleeve Lodge,1457.16, 10-Jun-2014,
421,Revenue,CCHD,Bed Purchasing - Elderly - North,Permanent Nursing,Cleeve Lodge,1874.24, 10-Jun-2014,
422,Revenue,CCHD,Bed Purchasing - Elderly - South,Permanent Residential,Cleeve Lodge,1792.6, 10-Jun-2014,
423,Revenue,CCHD,Bed Purchasing - Elderly - South,Permanent Residential,Cleeve Lodge,2291.88, 10-Jun-2014,
424,Revenue,CCHD,Bed Purchasing - Elderly - North,Permanent Residential,Cleeve Lodge,1393.6, 10-Jun-2014,
425,Revenue,CCHD,Bed Purchasing - Elderly - South,Permanent Residential,Cleeve Lodge,1806.32, 10-Jun-2014,
426,Revenue,CCHD,User Involvement,Premises Hire,Cleve Rugby Football Club Limited,642, 20-Jun-2014,
427,Revenue,CCHD,Sexual Health,Other Supplies & Services,Close Farm Surgery,612, 02-Jun-2014,
428,Revenue,CCHD,Sexual Health,Other Supplies & Services,Close Farm Surgery,629.74, 16-Jun-2014,
429,Revenue,CCHD,Bed Purchasing - Elderly - South,Permanent Residential,Collingwood Residential Home,1309.24, 10-Jun-2014,
430,Revenue,CCHD,Bed Purchasing - Elderly - South,Permanent Residential,Collingwood Residential Home,1427.48, 10-Jun-2014,
431,Revenue,CCHD,Bed Purchasing - Elderly - South,Permanent Residential,Collingwood Residential Home,1448.6, 10-Jun-2014,
432,Revenue,CCHD,Bed Purchasing - Elderly MH - South,Permanent Residential,Collingwood Residential Home,1323.04, 10-Jun-2014,
433,Revenue,CCHD,Bed Purchasing - Elderly - South,Permanent Residential,Collingwood Residential Home,1199.84, 10-Jun-2014,
434,Revenue,CCHD,Bed Purchasing - Elderly - South,Permanent Residential,Collingwood Residential Home,1280.2, 10-Jun-2014,
435,Revenue,CCHD,Bed Purchasing - Elderly - South,Permanent Residential,Collingwood Residential Home,1423.2, 10-Jun-2014,
436,Revenue,CCHD,Sexual Health,Other Supplies & Services,Concord Medical Centre,990, 02-Jun-2014,
437,Revenue,CCHD,Sexual Health,Other Supplies & Services,Concord Medical Centre,3169.38, 16-Jun-2014,
438,Revenue,CCHD,Sexual Health,Other Supplies & Services,Coniston Medical Practice,640.08, 16-Jun-2014,
439,Revenue,CCHD,Bed and Breakfast,Bed & Breakfast,Connolly & Callaghan Limited,459.9, 12-Jun-2014,
440,Revenue,CCHD,Bed and Breakfast,Bed & Breakfast,Connolly & Callaghan Limited,648.9, 12-Jun-2014,
441,Revenue,CCHD,Bed and Breakfast,Bed & Breakfast,Connolly & Callaghan Limited,459.9, 12-Jun-2014,
442,Revenue,CCHD,Bed and Breakfast,Bed & Breakfast,Connolly & Callaghan Limited,428.4, 12-Jun-2014,
443,Revenue,CCHD,Bed and Breakfast,Bed & Breakfast,Connolly & Callaghan Limited,428.4, 12-Jun-2014,
444,Revenue,CCHD,Bed and Breakfast,Bed & Breakfast,Connolly & Callaghan Limited,459.9, 12-Jun-2014,
445,Revenue,CCHD,Bed and Breakfast,Bed & Breakfast,Connolly & Callaghan Limited,648.9, 12-Jun-2014,
446,Revenue,CCHD,Bed and Breakfast,Bed & Breakfast,Connolly & Callaghan Limited,459.9, 12-Jun-2014,
447,Revenue,CCHD,Bed and Breakfast,Bed & Breakfast,Connolly & Callaghan Limited,459.9, 12-Jun-2014,
448,Revenue,CCHD,Bed and Breakfast,Bed & Breakfast,Connolly & Callaghan Limited,428.4, 12-Jun-2014,
449,Revenue,CCHD,Bed and Breakfast,Bed & Breakfast,Connolly & Callaghan Limited,428.4, 12-Jun-2014,
450,Revenue,CCHD,Bed and Breakfast,Bed & Breakfast,Connolly & Callaghan Limited,617.4, 12-Jun-2014,
451,Revenue,CCHD,Bed and Breakfast,Bed & Breakfast,Connolly & Callaghan Limited,459.9, 17-Jun-2014,
452,Revenue,CCHD,Bed and Breakfast,Bed & Breakfast,Connolly & Callaghan Limited,648.9, 17-Jun-2014,
453,Revenue,CCHD,Bed and Breakfast,Bed & Breakfast,Connolly & Callaghan Limited,459.9, 17-Jun-2014,
454,Revenue,CCHD,Bed and Breakfast,Bed & Breakfast,Connolly & Callaghan Limited,428.4, 17-Jun-2014,
455,Revenue,CCHD,Bed and Breakfast,Bed & Breakfast,Connolly & Callaghan Limited,428.4, 17-Jun-2014,
456,Revenue,CCHD,Bed and Breakfast,Bed & Breakfast,Connolly & Callaghan Limited,617.4, 17-Jun-2014,
457,Revenue,CCHD,Bed and Breakfast,Bed & Breakfast,Connolly & Callaghan Limited,459.9, 20-Jun-2014,
458,Revenue,CCHD,Bed and Breakfast,Bed & Breakfast,Connolly & Callaghan Limited,648.9, 20-Jun-2014,
459,Revenue,CCHD,Bed and Breakfast,Bed & Breakfast,Connolly & Callaghan Limited,459.9, 20-Jun-2014,
460,Revenue,CCHD,Bed and Breakfast,Bed & Breakfast,Connolly & Callaghan Limited,428.4, 20-Jun-2014,
461,Revenue,CCHD,Bed and Breakfast,Bed & Breakfast,Connolly & Callaghan Limited,468.9, 20-Jun-2014,
462,Revenue,CCHD,Bed and Breakfast,Bed & Breakfast,Connolly & Callaghan Limited,617.4, 20-Jun-2014,
463,Revenue,CCHD,Bed and Breakfast,Bed & Breakfast,Connolly & Callaghan Limited,648.9, 23-Jun-2014,
464,Revenue,CCHD,Bed and Breakfast,Bed & Breakfast,Connolly & Callaghan Limited,459.9, 23-Jun-2014,
465,Revenue,CCHD,Bed and Breakfast,Bed & Breakfast,Connolly & Callaghan Limited,585.9, 23-Jun-2014,
466,Revenue,CCHD,Bed and Breakfast,Bed & Breakfast,Connolly & Callaghan Limited,428.4, 23-Jun-2014,
467,Revenue,CCHD,Bed and Breakfast,Bed & Breakfast,Connolly & Callaghan Limited,585.9, 23-Jun-2014,
468,Revenue,CCHD,Bed and Breakfast,Bed & Breakfast,Connolly & Callaghan Limited,617.4, 23-Jun-2014,
469,Revenue,CCHD,Bed Purchasing - Frenchay Hospital,Permanent Residential,Coombs Wood House,965, 10-Jun-2014,
470,Revenue,CCHD,Training - Adult Services,Training Expenses,COT Annual Conference,526, 12-Jun-2014,
471,Revenue,CCHD,Training - Adult Services,Training Expenses,COT Annual Conference,526, 10-Jun-2014,
472,Revenue,CCHD,Tenancy Start Up Scheme,Other Supplies & Services,Countrywide R L Limited,1430, 20-Jun-2014,
473,Revenue,CCHD,Sexual Health,Other Supplies & Services,Courtside Surgery,1056, 02-Jun-2014,
474,Revenue,CCHD,Sexual Health,Other Supplies & Services,Courtside Surgery,1125.28, 16-Jun-2014,
475,Revenue,CCHD,NHS Health Checks & Tobacco Control,Other Supplies & Services,Courtside Surgery,980, 23-Jun-2014,
476,Revenue,CCHD,Bed Purchasing - S28A - Over 65- North,Permanent Residential,Cream Ii Ltd  Longrun House,8039.76, 10-Jun-2014,
477,Revenue,CCHD,Bed Purchasing - Under 65s PWLD - South,Permanent Residential,Cream Ii Ltd  Longrun House,5628.52, 10-Jun-2014,
478,Revenue,CCHD,Bed purchasing -S28A  Under 65 - North,Permanent Residential,Creedy Court,9290.24, 10-Jun-2014,
479,Revenue,CCHD,Bed Purchasing - S28A - Over 65- North,Permanent Residential,Creedy Court,7726.88, 10-Jun-2014,
480,Revenue,CCHD,Bed purchasing - Under 65s PWLD - North,Permanent Residential,Creedy Court,42545.04, 06-Jun-2014,
481,Revenue,CCHD,Purchase of Non-Res Care - South,Private & Voluntary Day Care,Daneswood,1472.68, 16-Jun-2014,
482,Revenue,CCHD,Bed Purchasing - Under 65s PWLD - South,Permanent Residential,Daneswood,11009.48, 10-Jun-2014,
483,Revenue,CCHD,Bed purchasing - Under 65s PWLD - North,Permanent Residential,Daneswood,9114.88, 10-Jun-2014,
484,Revenue,CCHD,Bed Purchasing - PWLD S 117 Placements,Permanent Nursing,Danshell Healthcare Group,11529, 10-Jun-2014,
485,Revenue,CCHD,Learning Difficulties PSL,Other Supplies & Services,Darren Bush,2016.44, 20-Jun-2014,
486,Revenue,CCHD,Tenancy Start Up Scheme,Fees & Charges Income - General,Darren Neaves,1350, 09-Jun-2014,
487,Revenue,CCHD,SLA Grants - Support Serv,Grants to Voluntary Bodies,Delia Robins,500, 30-Jun-2014,
488,Revenue,CCHD,Purchase of RAC places,Other L.A.'s - General,Derbyshire County Council,7433.49, 05-Jun-2014,
489,Revenue,CCHD,Purchase of Non-Res Care - North,Private & Voluntary Day Care,Design 4 Life Ltd,1551.6, 23-Jun-2014,
490,Revenue,CCHD,Purchase of Non-Res Care - North,Private & Voluntary Day Care,Design 4 Life Ltd,905.1, 23-Jun-2014,
491,Revenue,CCHD,Bed Purchasing - Under 65s PWLD - South,Permanent Residential,Devon & Cornwall Autistic Community Trus,8796.92, 10-Jun-2014,
492,Revenue,CCHD,Home Care - Elderly - South,Other Small Contracts,Dhek Bhal,464.64, 10-Jun-2014,
493,Revenue,CCHD,Home Care - Elderly - North,Other Small Contracts,Dhek Bhal,198.44, 10-Jun-2014,
494,Revenue,CCHD,Home Care - Elderly - South,Other Small Contracts,Dhek Bhal,464.64, 10-Jun-2014,
495,Revenue,CCHD,Home Care - Elderly - North,Other Small Contracts,Dhek Bhal,193.6, 10-Jun-2014,
496,Revenue,CCHD,Home Care - Elderly - South,Other Small Contracts,Dhek Bhal,411.4, 30-Jun-2014,
497,Revenue,CCHD,Home Care - Elderly - North,Other Small Contracts,Dhek Bhal,188.76, 30-Jun-2014,
498,Revenue,CCHD,Home Care - Elderly - South,Other Small Contracts,Dhek Bhal,464.64, 30-Jun-2014,
499,Revenue,CCHD,Home Care - Elderly - North,Other Small Contracts,Dhek Bhal,193.6, 30-Jun-2014,
500,Revenue,CCHD,Home Care - Elderly - South,Other Small Contracts,Dhek Bhal,474.32, 30-Jun-2014,
501,Revenue,CCHD,Home Care - Elderly - North,Other Small Contracts,Dhek Bhal,188.76, 30-Jun-2014,
502,Revenue,CCHD,Bed Purchasing - Under 65s PWLD - South,Permanent Residential,Dimensions (Uk),4880, 10-Jun-2014,
503,Revenue,CCHD,Supported Living - South,Private & Voluntary Home Care,Dimensions (UK) Ltd,7748.4, 30-Jun-2014,
504,Revenue,CCHD,Cambrian Green Day Service,"Provisions (Food, etc)",Douglas Liddell,510, 04-Jun-2014,
505,Revenue,CCHD,Cambrian Green Day Service,"Provisions (Food, etc)",Douglas Liddell,520, 02-Jun-2014,
506,Revenue,CCHD,Cambrian Green Day Service,"Provisions (Food, etc)",Douglas Liddell,575, 13-Jun-2014,
507,Revenue,CCHD,Cambrian Green Day Service,"Provisions (Food, etc)",Douglas Liddell,575, 19-Jun-2014,
508,Revenue,CCHD,Sexual Health,Other Supplies & Services,Dr A Kerr,526.52, 16-Jun-2014,
509,Revenue,CCHD,Sexual Health,Other Supplies & Services,Dr Norman,1338, 02-Jun-2014,
510,Revenue,CCHD,Sexual Health,Other Supplies & Services,Dr Norman,2312.5, 16-Jun-2014,
511,Revenue,CCHD,NHS Health Checks & Tobacco Control,Other Supplies & Services,Dr Norman,680, 23-Jun-2014,
512,Revenue,CCHD,Sexual Health,Other Supplies & Services,Dr P Taylor & Partners,1452, 02-Jun-2014,
513,Revenue,CCHD,Sexual Health,Other Supplies & Services,Dr P Taylor & Partners,2498.34, 16-Jun-2014,
514,Revenue,CCHD,NHS Health Checks & Tobacco Control,Other Supplies & Services,Dr P Taylor & Partners,970, 23-Jun-2014,
515,Revenue,CCHD,Sexual Health,Other Supplies & Services,Dr Robertson,648, 02-Jun-2014,
516,Revenue,CCHD,MH Purchasing - Younger,Permanent Residential,Dunraven House,1854.32, 10-Jun-2014,
517,Revenue,CCHD,Bed and Breakfast,Other Supplies & Services,E J Bartlett,651, 03-Jun-2014,
518,Revenue,CCHD,Bed and Breakfast,Other Supplies & Services,E J Bartlett,434, 03-Jun-2014,
519,Revenue,CCHD,Bed and Breakfast,Bed & Breakfast,E J Bartlett,651, 10-Jun-2014,
520,Revenue,CCHD,Bed and Breakfast,Bed & Breakfast,E J Bartlett,434, 10-Jun-2014,
521,Revenue,CCHD,Bed and Breakfast,Bed & Breakfast,E J Bartlett,490, 10-Jun-2014,
522,Revenue,CCHD,Bed and Breakfast,Bed & Breakfast,E J Bartlett,651, 17-Jun-2014,
523,Revenue,CCHD,Bed and Breakfast,Bed & Breakfast,E J Bartlett,434, 17-Jun-2014,
524,Revenue,CCHD,Bed and Breakfast,Bed & Breakfast,E J Bartlett,490, 17-Jun-2014,
525,Revenue,CCHD,Bed and Breakfast,Bed & Breakfast,E J Bartlett,651, 24-Jun-2014,
526,Revenue,CCHD,Bed and Breakfast,Bed & Breakfast,E J Bartlett,837, 24-Jun-2014,
527,Revenue,CCHD,Bed and Breakfast,Bed & Breakfast,E J Bartlett,434, 24-Jun-2014,
528,Revenue,CCHD,Bed and Breakfast,Bed & Breakfast,E J Bartlett,490, 24-Jun-2014,
529,Revenue,CCHD,Bed purchasing - Under 65s PWLD - North,Permanent Residential,East Court,2213.44, 10-Jun-2014,
530,Revenue,CCHD,Day Care - South,Private & Voluntary Day Care,Easton Community Centre,520.56, 10-Jun-2014,
531,Revenue,CCHD,Day Care - South,Private & Voluntary Day Care,Easton Community Centre,520.56, 10-Jun-2014,
532,Revenue,CCHD,Younger MH non-res purchasing,Private & Voluntary Day Care,Easton Community Centre,520.56, 10-Jun-2014,
533,Revenue,CCHD,Day Care - South,Private & Voluntary Day Care,Easton Community Centre,520.56, 10-Jun-2014,
534,Revenue,CCHD,Bed purchasing - Under 65s PWLD - North,Permanent Residential,Eclipse Office Park,4927.45, 10-Jun-2014,
535,Revenue,CCHD,Bed Purchasing - Elderly - South,Permanent Residential,Eclipse Office Park,1429.36, 10-Jun-2014,
536,Revenue,CCHD,Bed Purchasing - Under 65s PWLD - South,Permanent Residential,Eclipse Office Park,5681.84, 10-Jun-2014,
537,Revenue,CCHD,Bed purchasing - Elderly PWLD - North,Permanent Residential,Eclipse Office Park,3435.28, 10-Jun-2014,
538,Revenue,CCHD,Bed Purchasing - Under 65s PWLD - South,Permanent Residential,Eclipse Office Park,4867.92, 10-Jun-2014,
539,Revenue,CCHD,Bed Purchasing - Under 65s PWLD - South,Permanent Residential,Eclipse Office Park,5442.48, 10-Jun-2014,
540,Revenue,CCHD,Bed Purchasing - Under 65s PWLD - South,Permanent Nursing,Eclipse Office Park,2818.52, 10-Jun-2014,
541,Revenue,CCHD,Bed purchasing - Elderly MH - North,Permanent Nursing,Eclipse Office Park,1447.24, 10-Jun-2014,
542,Revenue,CCHD,Bed Purchasing - Elderly MH - South,Permanent Residential,Eclipse Office Park,3605.96, 10-Jun-2014,
543,Revenue,CCHD,Bed purchasing - Elderly S117 - South,Permanent Nursing,Eclipse Office Park,1992, 10-Jun-2014,
544,Revenue,CCHD,Section 117 Placements MH Younger,Permanent Residential,Eclipse Office Park,1356, 10-Jun-2014,
545,Revenue,CCHD,Bed purchasing - Elderly S117 - South,Permanent Nursing,Eclipse Office Park,1992, 10-Jun-2014,
546,Revenue,CCHD,Bed Purchasing - Elderly - South,Permanent Nursing,Eclipse Office Park,1431.72, 10-Jun-2014,
547,Revenue,CCHD,Bed Purchasing - Elderly - South,Permanent Nursing,Eclipse Office Park,2618.35, 10-Jun-2014,
548,Revenue,CCHD,Bed Purchasing - Elderly - South,Permanent Nursing,Eclipse Office Park,1496.2, 10-Jun-2014,
549,Revenue,CCHD,Bed Purchasing - Elderly - North,Permanent Nursing,Eclipse Office Park,1421.72, 10-Jun-2014,
550,Revenue,CCHD,Bed purchasing - Elderly PWLD - South,Permanent Residential,Eclipse Office Park,4125.12, 10-Jun-2014,
551,Revenue,CCHD,Bed purchasing -S28A  Under 65 - North,Permanent Nursing,Eclipse Office Park,5411.96, 10-Jun-2014,
552,Revenue,CCHD,Bed purchasing -S28A  Under 65 - North,Permanent Nursing,Eclipse Office Park,9998.38, 10-Jun-2014,
553,Revenue,CCHD,Bed purchasing -S28A  Under 65 - North,Permanent Nursing,Eclipse Office Park,73190.52, 10-Jun-2014,
554,Revenue,CCHD,Bed purchasing -S28A  Under 65 - North,Permanent Residential,Eclipse Office Park,5334.12, 10-Jun-2014,
555,Revenue,CCHD,Bed purchasing - S28A Under 65 - South,Permanent Residential,Eclipse Office Park,5527.88, 10-Jun-2014,
556,Revenue,CCHD,Bed Purchasing - Elderly MH - South,Permanent Residential,Eclipse Office Park,1302.92, 10-Jun-2014,
557,Revenue,CCHD,Bed Purchasing - Under 65s PWLD - South,Permanent Residential,Eclipse Office Park,5018.44, 10-Jun-2014,
558,Revenue,CCHD,Bed Purchasing - Under 65s PWLD - South,Permanent Residential,Eclipse Office Park,9686.18, 10-Jun-2014,
559,Revenue,CCHD,Bed Purchasing - Under 65s PWLD - South,Permanent Residential,Eclipse Office Park,5534.96, 10-Jun-2014,
560,Revenue,CCHD,Bed purchasing - S28A Under 65 - South,Permanent Nursing,Eclipse Office Park,7294.32, 10-Jun-2014,
561,Revenue,CCHD,MH Purchasing - Younger,Permanent Residential,Eclipse Office Park,860.2, 10-Jun-2014,
562,Revenue,CCHD,Bed purchasing - Elderly PWLD - South,Permanent Residential,Eclipse Office Park,5124.6, 10-Jun-2014,
563,Revenue,CCHD,Bed purchasing - Elderly PWLD - South,Permanent Residential,Eclipse Office Park,10663.62, 10-Jun-2014,
564,Revenue,CCHD,Bed purchasing - Elderly PWLD - North,Permanent Residential,Eclipse Office Park,3010.44, 10-Jun-2014,
565,Revenue,CCHD,Bed purchasing -S28A  Under 65 - North,Permanent Residential,Eclipse Office Park,5258.04, 10-Jun-2014,
566,Revenue,CCHD,Bed purchasing -S28A  Under 65 - North,Permanent Residential,Eclipse Office Park,7058.72, 10-Jun-2014,
567,Revenue,CCHD,Bed purchasing -S28A  Under 65 - North,Permanent Nursing,Eclipse Office Park,6244.88, 10-Jun-2014,
568,Revenue,CCHD,Bed Purchasing - Under 65s PWLD - South,Permanent Residential,Eclipse Office Park,7902.16, 10-Jun-2014,
569,Revenue,CCHD,Bed Purchasing - Under 65s PWLD - South,Permanent Residential,Eclipse Office Park,4515.52, 10-Jun-2014,
570,Revenue,CCHD,Bed Purchasing - Elderly - South,Permanent Residential,Eclipse Office Park,3210.16, 10-Jun-2014,
571,Revenue,CCHD,Bed purchasing -S28A  Under 65 - North,Permanent Residential,Eclipse Office Park,6755.12, 10-Jun-2014,
572,Revenue,CCHD,Bed purchasing - S28A Under 65 - South,Permanent Residential,Eclipse Office Park,4525.88, 10-Jun-2014,
573,Revenue,CCHD,Bed Purchasing - S28A - Over 65- North,Permanent Residential,Eclipse Office Park,6604.52, 10-Jun-2014,
574,Revenue,CCHD,Bed Purchasing - LD S28A- Over 65- South,Permanent Residential,Eclipse Office Park,4176.64, 10-Jun-2014,
575,Revenue,CCHD,Bed purchasing -S28A  Under 65 - North,Permanent Residential,Eclipse Office Park,7058.72, 10-Jun-2014,
576,Revenue,CCHD,Bed purchasing -S28A  Under 65 - North,Permanent Residential,Eclipse Office Park,7058.72, 10-Jun-2014,
577,Revenue,CCHD,Bed Purchasing - LD S28A- Over 65- South,Permanent Residential,Eclipse Office Park,4098.32, 10-Jun-2014,
578,Revenue,CCHD,Bed purchasing - S28A Under 65 - South,Permanent Residential,Eclipse Office Park,4867.92, 10-Jun-2014,
579,Revenue,CCHD,Bed purchasing - S28A Under 65 - South,Permanent Residential,Eclipse Office Park,4761.36, 10-Jun-2014,
580,Revenue,CCHD,Bed purchasing - S28A Under 65 - South,Permanent Residential,Eclipse Office Park,3663.96, 10-Jun-2014,
581,Revenue,CCHD,Bed Purchasing - LD S28A- Over 65- South,Permanent Residential,Eclipse Office Park,5091.12, 10-Jun-2014,
582,Revenue,CCHD,Bed Purchasing - LD S28A- Over 65- South,Permanent Residential,Eclipse Office Park,5031.12, 10-Jun-2014,
583,Revenue,CCHD,Bed Purchasing - LD S28A- Over 65- South,Permanent Residential,Eclipse Office Park,5187.16, 10-Jun-2014,
584,Revenue,CCHD,Bed Purchasing - LD S28A- Over 65- South,Permanent Residential,Eclipse Office Park,4353.28, 10-Jun-2014,
585,Revenue,CCHD,Bed Purchasing - LD S28A- Over 65- South,Permanent Residential,Eclipse Office Park,5170.2, 10-Jun-2014,
586,Revenue,CCHD,Bed purchasing -S28A  Under 65 - North,Permanent Nursing,Eclipse Office Park,6328.12, 10-Jun-2014,
587,Revenue,CCHD,Bed Purchasing - S28A - Over 65- North,Permanent Residential,Eclipse Office Park,7085.02, 10-Jun-2014,
588,Revenue,CCHD,Section 117 Placements MH Younger,Permanent Residential,Eclipse Office Park,1356, 10-Jun-2014,
589,Revenue,CCHD,Bed purchasing - Elderly MH - North,Permanent Residential,Eclipse Office Park,860.2, 10-Jun-2014,
590,Revenue,CCHD,Bed purchasing - S28A Under 65 - South,Permanent Residential,Eclipse Office Park,5415.92, 10-Jun-2014,
591,Revenue,CCHD,Bed purchasing - Elderly PWLD - North,Permanent Residential,Eclipse Office Park,4307.44, 10-Jun-2014,
592,Revenue,CCHD,Bed purchasing - Elderly MH - North,Permanent Nursing,Eclipse Office Park,1104.48, 10-Jun-2014,
593,Revenue,CCHD,Bed Purchasing - Under 65s PWLD - South,Permanent Residential,Eclipse Office Park,4271.52, 10-Jun-2014,
594,Revenue,CCHD,Bed purchasing -S28A  Under 65 - North,Permanent Residential,Eclipse Office Park,5675.56, 10-Jun-2014,
595,Revenue,CCHD,Bed Purchasing - S28A - Over 65- North,Permanent Residential,Eclipse Office Park,3599.08, 10-Jun-2014,
596,Revenue,CCHD,Bed Purchasing - Elderly S117- North,Permanent Residential,Eclipse Office Park,1756, 10-Jun-2014,
597,Revenue,CCHD,MH Purchasing - Younger,Permanent Residential,Eclipse Office Park,1036.6, 10-Jun-2014,
598,Revenue,CCHD,Bed Purchasing - S28A - Over 65- North,Permanent Residential,Eclipse Office Park,3214.56, 10-Jun-2014,
599,Revenue,CCHD,Bed Purchasing - LD S28A- Over 65- South,Permanent Residential,Eclipse Office Park,3882.08, 10-Jun-2014,
600,Revenue,CCHD,Bed purchasing - S28A Under 65 - South,Permanent Residential,Eclipse Office Park,5471.56, 10-Jun-2014,
601,Revenue,CCHD,Bed purchasing - S28A Under 65 - South,Permanent Nursing,Eclipse Office Park,5364.24, 10-Jun-2014,
602,Revenue,CCHD,Bed Purchasing - LD S28A- Over 65- South,Permanent Nursing,Eclipse Office Park,5225.52, 10-Jun-2014,
603,Revenue,CCHD,Bed Purchasing - LD S28A- Over 65- South,Permanent Residential,Eclipse Office Park,4802.88, 10-Jun-2014,
604,Revenue,CCHD,Bed Purchasing - LD S28A- Over 65- South,Permanent Residential,Eclipse Office Park,4524.76, 10-Jun-2014,
605,Revenue,CCHD,Bed Purchasing - LD S28A- Over 65- South,Permanent Residential,Eclipse Office Park,4599.84, 10-Jun-2014,
606,Revenue,CCHD,Bed Purchasing - Under 65s PWLD - South,Permanent Residential,Eclipse Office Park,10377.32, 10-Jun-2014,
607,Revenue,CCHD,Bed purchasing - S28A Under 65 - South,Permanent Residential,Eclipse Office Park,6053.44, 10-Jun-2014,
608,Revenue,CCHD,Bed purchasing - S28A Under 65 - South,Permanent Residential,Eclipse Office Park,11684.47, 10-Jun-2014,
609,Revenue,CCHD,Bed purchasing - S28A Under 65 - South,Permanent Residential,Eclipse Office Park,1410.24, 10-Jun-2014,
610,Revenue,CCHD,Bed Purchasing - LD S28A- Over 65- South,Permanent Residential,Eclipse Office Park,4667.16, 10-Jun-2014,
611,Revenue,CCHD,Bed Purchasing - S28A - Over 65- North,Permanent Residential,Eclipse Office Park,4750.44, 10-Jun-2014,
612,Revenue,CCHD,Bed Purchasing - Elderly S117- North,Permanent Nursing,Eclipse Office Park,1816, 10-Jun-2014,
613,Revenue,CCHD,Bed Purchasing - S28A - Over 65- North,Permanent Residential,Eclipse Office Park,4588.52, 10-Jun-2014,
614,Revenue,CCHD,Bed Purchasing - S28A - Over 65- North,Permanent Residential,Eclipse Office Park,4759.28, 10-Jun-2014,
615,Revenue,CCHD,Bed purchasing - S28A Under 65 - South,Permanent Residential,Eclipse Office Park,4756.28, 10-Jun-2014,
616,Revenue,CCHD,Bed Purchasing - S28A - Over 65- North,Permanent Residential,Eclipse Office Park,4503.16, 10-Jun-2014,
617,Revenue,CCHD,Bed purchasing -S28A  Under 65 - North,Permanent Residential,Eclipse Office Park,7058.72, 10-Jun-2014,
618,Revenue,CCHD,Bed purchasing -S28A  Under 65 - North,Permanent Residential,Eclipse Office Park,9628.2, 10-Jun-2014,
619,Revenue,CCHD,Bed Purchasing - S28A - Over 65- North,Permanent Residential,Eclipse Office Park,3133.72, 10-Jun-2014,
620,Revenue,CCHD,Bed Purchasing - S28A - Over 65- North,Permanent Residential,Eclipse Office Park,3266.96, 10-Jun-2014,
621,Revenue,CCHD,Bed purchasing - Under 65s PWLD - North,Permanent Residential,Eclipse Office Park,6773.16, 10-Jun-2014,
622,Revenue,CCHD,Bed Purchasing - Elderly - South,Permanent Residential,Eclipse Office Park,1318.68, 10-Jun-2014,
623,Revenue,CCHD,MH Purchasing - Younger,Permanent Nursing,Eclipse Office Park,937.76, 10-Jun-2014,
624,Revenue,CCHD,MH Purchasing - Younger,Permanent Nursing,Eclipse Office Park,952.2, 10-Jun-2014,
625,Revenue,CCHD,Bed purchasing - Elderly PWLD - South,Permanent Residential,Eclipse Office Park,3254.24, 10-Jun-2014,
626,Revenue,CCHD,Bed purchasing - S28A Under 65 - South,Permanent Residential,Eclipse Office Park,5919.12, 10-Jun-2014,
627,Revenue,CCHD,Bed purchasing - S28A Under 65 - South,Permanent Residential,Eclipse Office Park,6010.16, 10-Jun-2014,
628,Revenue,CCHD,Bed Purchasing - LD S28A- Over 65- South,Permanent Residential,Eclipse Office Park,4353.28, 10-Jun-2014,
629,Revenue,CCHD,Bed Purchasing - Under 65s PWLD - South,Permanent Residential,Eclipse Office Park,5919.52, 10-Jun-2014,
630,Revenue,CCHD,Bed Purchasing - LD S28A- Over 65- South,Permanent Nursing,Eclipse Office Park,4528.36, 10-Jun-2014,
631,Revenue,CCHD,Bed Purchasing - LD S28A- Over 65- South,Permanent Nursing,Eclipse Office Park,5225.52, 10-Jun-2014,
632,Revenue,CCHD,Bed Purchasing - LD S28A- Over 65- South,Permanent Residential,Eclipse Office Park,3609.44, 10-Jun-2014,
633,Revenue,CCHD,Bed Purchasing - LD S28A- Over 65- South,Permanent Residential,Eclipse Office Park,4343.36, 10-Jun-2014,
634,Revenue,CCHD,Bed Purchasing - Elderly MH - South,Permanent Residential,Eclipse Office Park,1224.16, 10-Jun-2014,
635,Revenue,CCHD,Bed purchasing -S28A  Under 65 - North,Permanent Nursing,Eclipse Office Park,7675.92, 10-Jun-2014,
636,Revenue,CCHD,Bed Purchasing - Frenchay Hospital,Permanent Nursing,Eclipse Office Park,2311.68, 10-Jun-2014,
637,Revenue,CCHD,Bed Purchasing - Frenchay Hospital,Permanent Nursing,Eclipse Office Park,1348.48, 10-Jun-2014,
638,Revenue,CCHD,Bed Purchasing - Under 65s PWLD - South,Permanent Residential,Eclipse Office Park,5205.6, 10-Jun-2014,
639,Revenue,CCHD,Bed Purchasing - Elderly S117- North,Permanent Nursing,Eclipse Office Park,1992, 10-Jun-2014,
640,Revenue,CCHD,Section 117 Placements MH Younger,Permanent Residential,Eclipse Office Park,1356, 10-Jun-2014,
641,Revenue,CCHD,Bed purchasing - Elderly PWLD - South,Permanent Nursing,Eclipse Office Park,3389.36, 10-Jun-2014,
642,Revenue,CCHD,Bed Purchasing - Elderly - South,Permanent Residential,Eclipse Office Park,3389.48, 10-Jun-2014,
643,Revenue,CCHD,Bed Purchasing - LD S28A- Over 65- South,Permanent Nursing,Eclipse Office Park,2981.68, 10-Jun-2014,
644,Revenue,CCHD,Bed Purchasing - LD S28A- Over 65- South,Permanent Nursing,Eclipse Office Park,2767.44, 10-Jun-2014,
645,Revenue,CCHD,Bed Purchasing - S28A - Over 65- North,Permanent Nursing,Eclipse Office Park,3700.72, 10-Jun-2014,
646,Revenue,CCHD,Bed Purchasing - S28A - Over 65- North,Permanent Nursing,Eclipse Office Park,3716.72, 10-Jun-2014,
647,Revenue,CCHD,MH Purchasing - Younger,Respite Planned - Residential,Eclipse Office Park,3734.48, 10-Jun-2014,
648,Revenue,CCHD,Adults Safeguarding,Training Expenses,Edge Training & Consultancy Limited,850, 04-Jun-2014,
649,Revenue,CCHD,Bed Purchasing - Elderly - South,Permanent Residential,Edgecumbe Lodge,1533.8, 10-Jun-2014,
650,Revenue,CCHD,Bed Purchasing - Southmead Hospital,Permanent Residential,Edgecumbe Lodge,1260.2, 10-Jun-2014,
651,Revenue,CCHD,Bed Purchasing - Elderly - South,Permanent Residential,Edgecumbe Lodge,1056.36, 10-Jun-2014,
652,Revenue,CCHD,Bed Purchasing - Elderly - South,Permanent Residential,Edgecumbe Lodge,1453.32, 10-Jun-2014,
653,Revenue,CCHD,Bed Purchasing - Southmead Hospital,Permanent Residential,Edgecumbe Lodge,2131.08, 10-Jun-2014,
654,Revenue,CCHD,Bed Purchasing - Elderly - South,Permanent Residential,Edgecumbe Lodge,1427, 10-Jun-2014,
655,Revenue,CCHD,Bed Purchasing - Southmead Hospital,Permanent Residential,Edgecumbe Lodge,1533.8, 10-Jun-2014,
656,Revenue,CCHD,Bed Purchasing - Elderly - South,Permanent Residential,Edgecumbe Lodge,1141.04, 10-Jun-2014,
657,Revenue,CCHD,Bed Purchasing - Elderly - South,Permanent Residential,Edgecumbe Lodge,1286.84, 10-Jun-2014,
658,Revenue,CCHD,Bed Purchasing - Elderly - South,Permanent Residential,Edgecumbe Lodge,1231.12, 10-Jun-2014,
659,Revenue,CCHD,Bed purchasing - Elderly MH - North,Permanent Residential,Edgecumbe Lodge,1372.64, 10-Jun-2014,
660,Revenue,CCHD,Bed Purchasing - Southmead Hospital,Permanent Residential,Edgemont House Ltd,1432.2, 10-Jun-2014,
661,Revenue,CCHD,Bed Purchasing - Elderly - South,Permanent Residential,Edgemont House Ltd,1472.92, 10-Jun-2014,
662,Revenue,CCHD,Bed Purchasing - Elderly - South,Permanent Residential,Edgemont House Ltd,1260.2, 10-Jun-2014,
663,Revenue,CCHD,Bed Purchasing - Elderly - South,Permanent Residential,Edgemont House Ltd,1260.2, 10-Jun-2014,
664,Revenue,CCHD,Bed Purchasing - Elderly - South,Permanent Residential,Edgemont House Ltd,1430.32, 10-Jun-2014,
665,Revenue,CCHD,Bed Purchasing - Elderly - South,Permanent Residential,Edgemont House Ltd,1286.96, 10-Jun-2014,
666,Revenue,CCHD,South Glos Users in South Glos Homes,Permanent Nursing,Edgemont View Nursing Home,1537.06, 10-Jun-2014,
667,Revenue,CCHD,Bed Purchasing - Elderly - North,Permanent Nursing,Edgemont View Nursing Home,1217.24, 10-Jun-2014,
668,Revenue,CCHD,South Glos Users in South Glos Homes,Permanent Nursing,Edgemont View Nursing Home,871.28, 10-Jun-2014,
669,Revenue,CCHD,Bed Purchasing - Elderly - South,Permanent Nursing,Edgemont View Nursing Home,1445.88, 10-Jun-2014,
670,Revenue,CCHD,Bed Purchasing - Elderly - South,Permanent Nursing,Edgemont View Nursing Home,1320.36, 10-Jun-2014,
671,Revenue,CCHD,Bed Purchasing - Elderly - South,Permanent Nursing,Edgemont View Nursing Home,1634.8, 10-Jun-2014,
672,Revenue,CCHD,Bed Purchasing - Elderly - South,Permanent Nursing,Edgemont View Nursing Home,1196.68, 10-Jun-2014,
673,Revenue,CCHD,Home Care - Elderly - South,Other Small Contracts,Elite Home Care Ltd,5589.23, 30-Jun-2014,
674,Revenue,CCHD,Home Care - Elderly - North,Other Small Contracts,Elite Home Care Ltd,332.12, 30-Jun-2014,
675,Revenue,CCHD,Home Care - Elderly - South,Other Small Contracts,Elite Home Care Ltd,5431.91, 30-Jun-2014,
676,Revenue,CCHD,Home Care - Elderly - North,Other Small Contracts,Elite Home Care Ltd,336.49, 30-Jun-2014,
677,Revenue,CCHD,Home Care - Elderly - South,Other Small Contracts,Elite Home Care Ltd,5410.06, 30-Jun-2014,
678,Revenue,CCHD,Home Care - Elderly - North,Other Small Contracts,Elite Home Care Ltd,332.12, 30-Jun-2014,
679,Revenue,CCHD,Home Care - Elderly - South,Other Small Contracts,Elite Home Care Ltd,5244, 30-Jun-2014,
680,Revenue,CCHD,Home Care - Elderly - North,Other Small Contracts,Elite Home Care Ltd,332.12, 30-Jun-2014,
681,Revenue,CCHD,Bed Purchasing - Elderly - South,Permanent Residential,Elmbridge Residential Home Ltd,1338.08, 10-Jun-2014,
682,Revenue,CCHD,Bed Purchasing - Frenchay Hospital,Permanent Nursing,Elmwood Nursing Home,2248.8, 10-Jun-2014,
683,Revenue,CCHD,Sexual Health,Other Supplies & Services,Emersons Green Medical Centre,738, 02-Jun-2014,
684,Revenue,CCHD,Sexual Health,Other Supplies & Services,Emersons Green Medical Centre,980.74, 16-Jun-2014,
685,Revenue,CCHD,Tenancy Start Up Scheme,Other Supplies & Services,Emma Baker,698, 19-Jun-2014,
686,Revenue,CCHD,Day Care - South,Private & Voluntary Day Care,Enham,638.72, 13-Jun-2014,
687,Revenue,CCHD,Home Care - Elderly - South,Other Small Contracts,Everycare (Bristol) Ltd,5410.25, 16-Jun-2014,
688,Revenue,CCHD,Home Care - Elderly - North,Other Small Contracts,Everycare (Bristol) Ltd,3149.25, 16-Jun-2014,
689,Revenue,CCHD,Day Care - South,Private & Voluntary Day Care,Everycare (Bristol) Ltd,102, 16-Jun-2014,
690,Revenue,CCHD,Under 65s -MH  Home Care Purch,Other Small Contracts,Everycare (Bristol) Ltd,93.5, 16-Jun-2014,
691,Revenue,CCHD,Home Care - Elderly - South,Other Small Contracts,Everycare (Bristol) Ltd,5274.25, 16-Jun-2014,
692,Revenue,CCHD,Home Care - Elderly - North,Other Small Contracts,Everycare (Bristol) Ltd,2375.75, 16-Jun-2014,
693,Revenue,CCHD,Day Care - South,Private & Voluntary Day Care,Everycare (Bristol) Ltd,97.75, 16-Jun-2014,
694,Revenue,CCHD,Under 65s -MH  Home Care Purch,Other Small Contracts,Everycare (Bristol) Ltd,85, 16-Jun-2014,
695,Revenue,CCHD,Home Care - Elderly - South,Other Small Contracts,Everycare (Bristol) Ltd,5380.5, 16-Jun-2014,
696,Revenue,CCHD,Home Care - Elderly - North,Other Small Contracts,Everycare (Bristol) Ltd,2805, 16-Jun-2014,
697,Revenue,CCHD,Day Care - South,Private & Voluntary Day Care,Everycare (Bristol) Ltd,102, 16-Jun-2014,
698,Revenue,CCHD,Under 65s -MH  Home Care Purch,Other Small Contracts,Everycare (Bristol) Ltd,85, 16-Jun-2014,
699,Revenue,CCHD,Home Care - Elderly - South,Other Small Contracts,Everycare (Bristol) Ltd,5316.75, 30-Jun-2014,
700,Revenue,CCHD,Home Care - Elderly - North,Other Small Contracts,Everycare (Bristol) Ltd,2966.5, 30-Jun-2014,
701,Revenue,CCHD,Day Care - South,Private & Voluntary Day Care,Everycare (Bristol) Ltd,102, 30-Jun-2014,
702,Revenue,CCHD,Under 65s -MH  Home Care Purch,Other Small Contracts,Everycare (Bristol) Ltd,85, 30-Jun-2014,
703,Revenue,CCHD,Bed Purchasing - Elderly MH - South,Permanent Residential,Exmouth House,1420.84, 10-Jun-2014,
704,Revenue,CCHD,Bed Purchasing - Southmead Hospital,Permanent Residential,Fairfield House Care Home,1474.96, 10-Jun-2014,
705,Revenue,CCHD,Bed Purchasing - Elderly - South,Permanent Nursing,Fairview Court,1186.56, 10-Jun-2014,
706,Revenue,CCHD,Bed Purchasing - Elderly MH - South,Permanent Nursing,Fairview Court,1880.16, 10-Jun-2014,
707,Revenue,CCHD,Bed Purchasing - Frenchay Hospital,Respite Planned - Nursing,Fairview Court,2362.66, 10-Jun-2014,
708,Revenue,CCHD,Bed Purchasing - Elderly MH - South,Permanent Nursing,Fairview Court,1962.56, 10-Jun-2014,
709,Revenue,CCHD,Bed Purchasing - Elderly MH - South,Permanent Residential,Fairview Court,1432.2, 10-Jun-2014,
710,Revenue,CCHD,Bed Purchasing - Elderly - South,Permanent Nursing,Fairview Court,3105.62, 10-Jun-2014,
711,Revenue,CCHD,Bed Purchasing - Elderly - South,Permanent Nursing,Fairview Court,1774.64, 10-Jun-2014,
712,Revenue,CCHD,Bed Purchasing - Elderly - South,Permanent Residential,Fairview Court,2687.76, 10-Jun-2014,
713,Revenue,CCHD,Bed Purchasing - Elderly MH - South,Permanent Nursing,Fairview Court,2001.48, 10-Jun-2014,
714,Revenue,CCHD,Bed Purchasing - Elderly - South,Permanent Nursing,Fairview Court,1858.8, 10-Jun-2014,
715,Revenue,CCHD,Bed Purchasing - Frenchay Hospital,Permanent Nursing,Fairview Court,1860.64, 10-Jun-2014,
716,Revenue,CCHD,Bed Purchasing - Elderly - South,Permanent Nursing,Fairview Court,2739.96, 10-Jun-2014,
717,Revenue,CCHD,Bed Purchasing - Elderly - South,Permanent Residential,Fairview Court,1723.28, 10-Jun-2014,
718,Revenue,CCHD,Bed Purchasing - Elderly MH - South,Permanent Nursing,Fairview Court,1951.44, 10-Jun-2014,
719,Revenue,CCHD,Bed purchasing - Elderly MH - North,Permanent Nursing,Fairview Court,1713.92, 10-Jun-2014,
720,Revenue,CCHD,Bed Purchasing - Elderly - South,Permanent Nursing,Fairview Court Care Home,1163.96, 02-Jun-2014,
721,Revenue,CCHD,Bed purchasing - Elderly S117 - South,Permanent Nursing,Fairview Court Care Home,1018, 02-Jun-2014,
722,Revenue,CCHD,Bed Purchasing - Elderly MH - South,Permanent Nursing,Fairview Court Care Home,2063.67, 02-Jun-2014,
723,Revenue,CCHD,Bed Purchasing - Frenchay Hospital,Permanent Nursing,Fairview Court Care Home,1571.88, 02-Jun-2014,
724,Revenue,CCHD,Bed purchasing - Elderly S117 - South,Permanent Nursing,Fairview Court Care Home,2612.59, 02-Jun-2014,
725,Revenue,CCHD,Bed Purchasing - Elderly MH - South,Permanent Nursing,Fairview Court Care Home,844.9, 02-Jun-2014,
726,Revenue,CCHD,Bed purchasing - Phys Dis - North,Permanent Nursing,Fairview Court Care Home,2057.43, 02-Jun-2014,
727,Revenue,CCHD,S75 CCG Interim Beds,Permanent Nursing,Fairview Court Care Home,6800, 18-Jun-2014,
728,Revenue,CCHD,Bed Purchasing - Elderly - South,Permanent Residential,Fairview House,872.32, 10-Jun-2014,
729,Revenue,CCHD,Bed Purchasing - Elderly - South,Permanent Residential,Fairview House,1287.28, 10-Jun-2014,
730,Revenue,CCHD,Bed Purchasing - Elderly - South,Permanent Residential,Fairview House,936.6, 10-Jun-2014,
731,Revenue,CCHD,Bed purchasing - Elderly S117 - South,Permanent Residential,Fairview House,1916.84, 10-Jun-2014,
732,Revenue,CCHD,Bed Purchasing - Elderly - South,Permanent Residential,Fairview House,721.24, 10-Jun-2014,
733,Revenue,CCHD,Bed Purchasing - Elderly - South,Permanent Residential,Fairview House,1192.92, 10-Jun-2014,
734,Revenue,CCHD,Bed Purchasing - Southmead Hospital,Permanent Residential,Fairview House,1130.96, 10-Jun-2014,
735,Revenue,CCHD,Bed Purchasing - Elderly MH - South,Permanent Residential,Fairview House,1125.84, 10-Jun-2014,
736,Revenue,CCHD,Bed Purchasing - Frenchay Hospital,Permanent Residential,Fairview House,1260.2, 10-Jun-2014,
737,Revenue,CCHD,Bed Purchasing - Southmead Hospital,Permanent Residential,Fairview House,1077.32, 10-Jun-2014,
738,Revenue,CCHD,Bed Purchasing - Elderly MH - South,Permanent Residential,Fairview House,1039.6, 10-Jun-2014,
739,Revenue,CCHD,Bed Purchasing - Frenchay Hospital,Permanent Residential,Faith House,1223.28, 10-Jun-2014,
740,Revenue,CCHD,Bed purchasing - Under 65s PWLD - North,Permanent Residential,Fernbank,7706, 10-Jun-2014,
741,Revenue,CCHD,Home Care - Elderly - South,Other Small Contracts,Firstpoint Homecare Ltd,1363.2, 03-Jun-2014,
742,Revenue,CCHD,Home Care - Elderly - North,Private & Voluntary Day Care,Firstpoint Homecare Ltd,92.16, 03-Jun-2014,
743,Revenue,CCHD,Home Care - Elderly - North,Other Small Contracts,Firstpoint Homecare Ltd,2223.31, 03-Jun-2014,
744,Revenue,CCHD,Day Care - South,Private & Voluntary Day Care,Firstpoint Homecare Ltd,153.6, 03-Jun-2014,
745,Revenue,CCHD,Under 65s -MH  Home Care Purch,Other Small Contracts,Firstpoint Homecare Ltd,46.08, 03-Jun-2014,
746,Revenue,CCHD,Home care - Elderly MH - North,Other Small Contracts,Firstpoint Homecare Ltd,46.08, 03-Jun-2014,
747,Revenue,CCHD,Elderly MH Day Care North,Private & Voluntary Day Care,Firstpoint Homecare Ltd,92.16, 03-Jun-2014,
748,Revenue,CCHD,Home Care - Elderly - South,Other Small Contracts,Firstpoint Homecare Ltd,1390.08, 10-Jun-2014,
749,Revenue,CCHD,Home Care - Elderly - North,Private & Voluntary Day Care,Firstpoint Homecare Ltd,92.16, 10-Jun-2014,
750,Revenue,CCHD,Home Care - Elderly - North,Other Small Contracts,Firstpoint Homecare Ltd,2211.6, 10-Jun-2014,
751,Revenue,CCHD,Day Care - South,Private & Voluntary Day Care,Firstpoint Homecare Ltd,145.92, 10-Jun-2014,
752,Revenue,CCHD,Under 65s -MH  Home Care Purch,Other Small Contracts,Firstpoint Homecare Ltd,46.08, 10-Jun-2014,
753,Revenue,CCHD,Elderly MH Day Care North,Private & Voluntary Day Care,Firstpoint Homecare Ltd,92.16, 10-Jun-2014,
754,Revenue,CCHD,Home Care - Elderly - South,Other Small Contracts,Firstpoint Homecare Ltd,1424.64, 16-Jun-2014,
755,Revenue,CCHD,Home Care - Elderly - North,Private & Voluntary Day Care,Firstpoint Homecare Ltd,84.48, 16-Jun-2014,
756,Revenue,CCHD,Home Care - Elderly - North,Other Small Contracts,Firstpoint Homecare Ltd,1879.47, 16-Jun-2014,
757,Revenue,CCHD,Day Care - South,Private & Voluntary Day Care,Firstpoint Homecare Ltd,149.76, 16-Jun-2014,
758,Revenue,CCHD,Under 65s -MH  Home Care Purch,Other Small Contracts,Firstpoint Homecare Ltd,46.08, 16-Jun-2014,
759,Revenue,CCHD,Elderly MH Day Care North,Private & Voluntary Day Care,Firstpoint Homecare Ltd,92.16, 16-Jun-2014,
760,Revenue,CCHD,Home Care - Elderly - South,Other Small Contracts,Firstpoint Homecare Ltd,1340.16, 16-Jun-2014,
761,Revenue,CCHD,Home Care - Elderly - North,Private & Voluntary Day Care,Firstpoint Homecare Ltd,30.72, 16-Jun-2014,
762,Revenue,CCHD,Home Care - Elderly - North,Other Small Contracts,Firstpoint Homecare Ltd,1440, 16-Jun-2014,
763,Revenue,CCHD,Day Care - South,Private & Voluntary Day Care,Firstpoint Homecare Ltd,115.2, 16-Jun-2014,
764,Revenue,CCHD,Under 65s -MH  Home Care Purch,Other Small Contracts,Firstpoint Homecare Ltd,42.24, 16-Jun-2014,
765,Revenue,CCHD,Home care - Elderly MH - North,Other Small Contracts,Firstpoint Homecare Ltd,46.08, 16-Jun-2014,
766,Revenue,CCHD,Elderly MH Day Care North,Private & Voluntary Day Care,Firstpoint Homecare Ltd,92.16, 16-Jun-2014,
767,Revenue,CCHD,Home Care - Elderly - South,Other Small Contracts,Firstpoint Homecare Ltd,1309.44, 16-Jun-2014,
768,Revenue,CCHD,Home Care - Elderly - North,Private & Voluntary Day Care,Firstpoint Homecare Ltd,92.16, 16-Jun-2014,
769,Revenue,CCHD,Home Care - Elderly - North,Other Small Contracts,Firstpoint Homecare Ltd,1359.36, 16-Jun-2014,
770,Revenue,CCHD,Day Care - South,Private & Voluntary Day Care,Firstpoint Homecare Ltd,61.44, 16-Jun-2014,
771,Revenue,CCHD,Under 65s -MH  Home Care Purch,Other Small Contracts,Firstpoint Homecare Ltd,38.4, 16-Jun-2014,
772,Revenue,CCHD,Home care - Elderly MH - North,Other Small Contracts,Firstpoint Homecare Ltd,46.08, 16-Jun-2014,
773,Revenue,CCHD,Elderly MH Day Care North,Private & Voluntary Day Care,Firstpoint Homecare Ltd,96, 16-Jun-2014,
774,Revenue,CCHD,Home Care - Elderly - South,Other Small Contracts,Firstpoint Homecare Ltd,1098.24, 30-Jun-2014,
775,Revenue,CCHD,Home Care - Elderly - North,Private & Voluntary Day Care,Firstpoint Homecare Ltd,92.16, 30-Jun-2014,
776,Revenue,CCHD,Home Care - Elderly - North,Other Small Contracts,Firstpoint Homecare Ltd,1328.64, 30-Jun-2014,
777,Revenue,CCHD,Day Care - South,Private & Voluntary Day Care,Firstpoint Homecare Ltd,122.88, 30-Jun-2014,
778,Revenue,CCHD,Under 65s -MH  Home Care Purch,Other Small Contracts,Firstpoint Homecare Ltd,30.72, 30-Jun-2014,
779,Revenue,CCHD,Home care - Elderly MH - North,Other Small Contracts,Firstpoint Homecare Ltd,42.24, 30-Jun-2014,
780,Revenue,CCHD,Elderly MH Day Care North,Private & Voluntary Day Care,Firstpoint Homecare Ltd,103.68, 30-Jun-2014,
781,Revenue,CCHD,Home Care - Elderly - South,Other Small Contracts,Firstpoint Homecare Ltd,1186.56, 30-Jun-2014,
782,Revenue,CCHD,Home Care - Elderly - North,Private & Voluntary Day Care,Firstpoint Homecare Ltd,7.68, 30-Jun-2014,
783,Revenue,CCHD,Home Care - Elderly - North,Other Small Contracts,Firstpoint Homecare Ltd,1274.88, 30-Jun-2014,
784,Revenue,CCHD,Day Care - South,Private & Voluntary Day Care,Firstpoint Homecare Ltd,153.6, 30-Jun-2014,
785,Revenue,CCHD,Under 65s -MH  Home Care Purch,Other Small Contracts,Firstpoint Homecare Ltd,46.08, 30-Jun-2014,
786,Revenue,CCHD,Home care - Elderly MH - North,Other Small Contracts,Firstpoint Homecare Ltd,46.08, 30-Jun-2014,
787,Revenue,CCHD,Bed Purchasing - Elderly - South,Permanent Nursing,Four Seasons Health Care,1196.88, 10-Jun-2014,
788,Revenue,CCHD,Bed Purchasing - Elderly S117- North,Permanent Residential,Four Seasons Health Care,2060.4, 10-Jun-2014,
789,Revenue,CCHD,Bed Purchasing - Frenchay Hospital,Permanent Residential,Four Seasons Health Care,1550.64, 10-Jun-2014,
790,Revenue,CCHD,Freeways,Permanent Residential,Freeways Trust Limited,1906.43, 25-Jun-2014,
791,Revenue,CCHD,Freeways,Permanent Residential,Freeways Trust Limited,1206.64, 25-Jun-2014,
792,Revenue,CCHD,Freeways,Permanent Residential,Freeways Trust Limited,1238.68, 25-Jun-2014,
793,Revenue,CCHD,Freeways,Permanent Residential,Freeways Trust Limited,1580.14, 25-Jun-2014,
794,Revenue,CCHD,Freeways,Permanent Residential,Freeways Trust Limited,1238.68, 25-Jun-2014,
795,Revenue,CCHD,Freeways,Permanent Residential,Freeways Trust Limited,1774.06, 25-Jun-2014,
796,Revenue,CCHD,Freeways,Permanent Residential,Freeways Trust Limited,1711.54, 25-Jun-2014,
797,Revenue,CCHD,Freeways,Permanent Residential,Freeways Trust Limited,1859.55, 25-Jun-2014,
798,Revenue,CCHD,Freeways,Permanent Residential,Freeways Trust Limited,1622.42, 25-Jun-2014,
799,Revenue,CCHD,Freeways,Permanent Residential,Freeways Trust Limited,1514.94, 25-Jun-2014,
800,Revenue,CCHD,Freeways,Permanent Residential,Freeways Trust Limited,1702.06, 25-Jun-2014,
801,Revenue,CCHD,Freeways,Permanent Residential,Freeways Trust Limited,1624.29, 25-Jun-2014,
802,Revenue,CCHD,Freeways,Permanent Residential,Freeways Trust Limited,1887.95, 25-Jun-2014,
803,Revenue,CCHD,Freeways,Permanent Residential,Freeways Trust Limited,1288.76, 25-Jun-2014,
804,Revenue,CCHD,Freeways,Permanent Residential,Freeways Trust Limited,1280.44, 25-Jun-2014,
805,Revenue,CCHD,Freeways,Permanent Residential,Freeways Trust Limited,1280.44, 25-Jun-2014,
806,Revenue,CCHD,Freeways,Permanent Residential,Freeways Trust Limited,1676.91, 25-Jun-2014,
807,Revenue,CCHD,Freeways,Permanent Residential,Freeways Trust Limited,1053.5, 25-Jun-2014,
808,Revenue,CCHD,Freeways,Permanent Residential,Freeways Trust Limited,1089.62, 25-Jun-2014,
809,Revenue,CCHD,Freeways,Permanent Residential,Freeways Trust Limited,1389.94, 25-Jun-2014,
810,Revenue,CCHD,Freeways,Permanent Residential,Freeways Trust Limited,1089.62, 25-Jun-2014,
811,Revenue,CCHD,Freeways,Permanent Residential,Freeways Trust Limited,1558.81, 25-Jun-2014,
812,Revenue,CCHD,Freeways,Permanent Residential,Freeways Trust Limited,1505.51, 25-Jun-2014,
813,Revenue,CCHD,Freeways,Permanent Residential,Freeways Trust Limited,1635.34, 25-Jun-2014,
814,Revenue,CCHD,Freeways,Permanent Residential,Freeways Trust Limited,1428.83, 25-Jun-2014,
815,Revenue,CCHD,Freeways,Permanent Residential,Freeways Trust Limited,1332.59, 25-Jun-2014,
816,Revenue,CCHD,Freeways,Permanent Residential,Freeways Trust Limited,1491.04, 25-Jun-2014,
817,Revenue,CCHD,Freeways,Permanent Residential,Freeways Trust Limited,1428.77, 25-Jun-2014,
818,Revenue,CCHD,Freeways,Permanent Residential,Freeways Trust Limited,1659.23, 25-Jun-2014,
819,Revenue,CCHD,Freeways,Permanent Residential,Freeways Trust Limited,1130.59, 25-Jun-2014,
820,Revenue,CCHD,Freeways,Permanent Residential,Freeways Trust Limited,1126.13, 25-Jun-2014,
821,Revenue,CCHD,Freeways,Permanent Residential,Freeways Trust Limited,1126.13, 25-Jun-2014,
822,Revenue,CCHD,Freeways,Permanent Residential,Freeways Trust Limited,1148.23, 25-Jun-2014,
823,Revenue,CCHD,Freeways,Permanent Residential,Freeways Trust Limited,1480.89, 25-Jun-2014,
824,Revenue,CCHD,Freeways,Permanent Residential,Freeways Trust Limited,3611.8, 25-Jun-2014,
825,Revenue,CCHD,Freeways,Permanent Residential,Freeways Trust Limited,2269.08, 25-Jun-2014,
826,Revenue,CCHD,Freeways,Permanent Residential,Freeways Trust Limited,2346.88, 25-Jun-2014,
827,Revenue,CCHD,Freeways,Permanent Residential,Freeways Trust Limited,2993.72, 25-Jun-2014,
828,Revenue,CCHD,Freeways,Permanent Residential,Freeways Trust Limited,2346.88, 25-Jun-2014,
829,Revenue,CCHD,Freeways,Permanent Residential,Freeways Trust Limited,3357.44, 25-Jun-2014,
830,Revenue,CCHD,Freeways,Permanent Residential,Freeways Trust Limited,3242.64, 25-Jun-2014,
831,Revenue,CCHD,Freeways,Permanent Residential,Freeways Trust Limited,3522.28, 25-Jun-2014,
832,Revenue,CCHD,Freeways,Permanent Residential,Freeways Trust Limited,3077.48, 25-Jun-2014,
833,Revenue,CCHD,Freeways,Permanent Residential,Freeways Trust Limited,2870.2, 25-Jun-2014,
834,Revenue,CCHD,Freeways,Permanent Residential,Freeways Trust Limited,3211.48, 25-Jun-2014,
835,Revenue,CCHD,Freeways,Permanent Residential,Freeways Trust Limited,3077.36, 25-Jun-2014,
836,Revenue,CCHD,Freeways,Permanent Residential,Freeways Trust Limited,3573.72, 25-Jun-2014,
837,Revenue,CCHD,Freeways,Permanent Residential,Freeways Trust Limited,2435.12, 25-Jun-2014,
838,Revenue,CCHD,Freeways,Permanent Residential,Freeways Trust Limited,2425.52, 25-Jun-2014,
839,Revenue,CCHD,Freeways,Permanent Residential,Freeways Trust Limited,2425.52, 25-Jun-2014,
840,Revenue,CCHD,Supported Living - South,Private & Voluntary Home Care,Freeways Trust Limited,1168.86, 16-Jun-2014,
841,Revenue,CCHD,Supported Living - South,Private & Voluntary Home Care,Freeways Trust Limited,1253.56, 16-Jun-2014,
842,Revenue,CCHD,Supported Living - South,Private & Voluntary Home Care,Freeways Trust Limited,1216.49, 17-Jun-2014,
843,Revenue,CCHD,Bed purchasing - Under 65s PWLD - North,Permanent Residential,Freeways Trust Ltd,2860.04, 10-Jun-2014,
844,Revenue,CCHD,Bed purchasing - S28A Under 65 - South,Permanent Residential,Freeways Trust Ltd,2924.48, 10-Jun-2014,
845,Revenue,CCHD,Bed purchasing - Under 65s PWLD - North,Permanent Residential,Freeways Trust Ltd,3085.48, 10-Jun-2014,
846,Revenue,CCHD,Bed purchasing - Under 65s PWLD - North,Permanent Residential,Freeways Trust Ltd,2286.96, 10-Jun-2014,
847,Revenue,CCHD,Bed purchasing - Under 65s PWLD - North,Permanent Residential,Freeways Trust Ltd,2731.36, 10-Jun-2014,
848,Revenue,CCHD,Bed Purchasing - Under 65s PWLD - South,Permanent Residential,Freeways Trust Ltd,3338.76, 10-Jun-2014,
849,Revenue,CCHD,Bed purchasing - Elderly PWLD - North,Permanent Residential,Freeways Trust Ltd,2266.4, 10-Jun-2014,
850,Revenue,CCHD,Bed Purchasing - Under 65s PWLD - South,Permanent Residential,Freeways Trust Ltd,2415, 10-Jun-2014,
851,Revenue,CCHD,Bed purchasing - Under 65s PWLD - North,Permanent Residential,Freeways Trust Ltd,2731.36, 10-Jun-2014,
852,Revenue,CCHD,Bed purchasing - Elderly PWLD - North,Permanent Residential,Freeways Trust Ltd,3155.72, 10-Jun-2014,
853,Revenue,CCHD,Section 117 Placements MH Younger,Permanent Residential,Freeways Trust Ltd,3373.2, 10-Jun-2014,
854,Revenue,CCHD,Bed purchasing - Under 65s PWLD - North,Permanent Residential,Freeways Trust Ltd,3901.68, 10-Jun-2014,
855,Revenue,CCHD,Bed Purchasing - Under 65s PWLD - South,Permanent Residential,Freeways Trust Ltd,7906.56, 10-Jun-2014,
856,Revenue,CCHD,Bed Purchasing - Frenchay Hospital,Permanent Nursing,Frenchay Park Nursing Home,1010, 10-Jun-2014,
857,Revenue,CCHD,Bed Purchasing - Elderly - South,Permanent Nursing,Frenchay Park Nursing Home,1328.2, 10-Jun-2014,
858,Revenue,CCHD,Sexual Health,Other Supplies & Services,Frome Valley Medical Centre,1110, 02-Jun-2014,
859,Revenue,CCHD,Sexual Health,Other Supplies & Services,Frome Valley Medical Centre,825.9, 16-Jun-2014,
860,Revenue,CCHD,Bed Purchasing - Elderly - South,Permanent Nursing,Fshc  1St Floor,896.16, 10-Jun-2014,
861,Revenue,CCHD,Bed Purchasing - Frenchay Hospital,Permanent Residential,Fshc  1St Floor,894.12, 10-Jun-2014,
862,Revenue,CCHD,Bed Purchasing - Southmead Hospital,Permanent Nursing,Fshc  1St Floor,795.2, 10-Jun-2014,
863,Revenue,CCHD,Bed Purchasing - Frenchay Hospital,Permanent Residential,Fshc  1St Floor,1260.2, 10-Jun-2014,
864,Revenue,CCHD,Bed Purchasing - Frenchay Hospital,Permanent Nursing,Fshc  1St Floor,1388.2, 10-Jun-2014,
865,Revenue,CCHD,Bed Purchasing - Elderly - South,Permanent Nursing,Fshc  1St Floor,779.12, 10-Jun-2014,
866,Revenue,CCHD,Bed Purchasing - Southmead Hospital,Permanent Nursing,Fshc  1St Floor,1388.2, 10-Jun-2014,
867,Revenue,CCHD,Bed Purchasing - Southmead Hospital,Permanent Nursing,Fshc  1St Floor,774.4, 10-Jun-2014,
868,Revenue,CCHD,Bed Purchasing - Frenchay Hospital,Permanent Nursing,Fshc  1St Floor,2429.35, 10-Jun-2014,
869,Revenue,CCHD,Bed Purchasing - Frenchay Hospital,Permanent Nursing,Fshc  1St Floor,2055, 10-Jun-2014,
870,Revenue,CCHD,Bed Purchasing - Frenchay Hospital,Permanent Nursing,Fshc  1St Floor,1388.2, 10-Jun-2014,
871,Revenue,CCHD,Bed Purchasing - Elderly - South,Permanent Residential,Fshc  1St Floor,2128.42, 10-Jun-2014,
872,Revenue,CCHD,Bed Purchasing - Elderly - South,Permanent Residential,Fshc  1St Floor,1216.24, 10-Jun-2014,
873,Revenue,CCHD,Bed Purchasing - Elderly - South,Permanent Nursing,Fshc  1St Floor,1012.92, 10-Jun-2014,
874,Revenue,CCHD,Bed Purchasing - Southmead Hospital,Permanent Nursing,Fshc  1St Floor,1388.2, 10-Jun-2014,
875,Revenue,CCHD,Bed Purchasing - Elderly - South,Permanent Nursing,Fshc  1St Floor,1115.96, 10-Jun-2014,
876,Revenue,CCHD,Bed Purchasing - Elderly - South,Permanent Nursing,Fshc  1St Floor,1226.68, 10-Jun-2014,
877,Revenue,CCHD,Bed Purchasing - Elderly - South,Permanent Nursing,Fshc  1St Floor,843.67, 10-Jun-2014,
878,Revenue,CCHD,Bed Purchasing - Elderly - South,Permanent Nursing,Fshc  1St Floor,1324.48, 10-Jun-2014,
879,Revenue,CCHD,Bed Purchasing - Southmead Hospital,Permanent Nursing,Fshc  1St Floor,1388.2, 10-Jun-2014,
880,Revenue,CCHD,Bed Purchasing - Frenchay Hospital,Permanent Nursing,Fshc  1St Floor,748.43, 10-Jun-2014,
881,Revenue,CCHD,Bed Purchasing - Elderly - North,Permanent Nursing,Fshc  1St Floor,1388.2, 10-Jun-2014,
882,Revenue,CCHD,Bed Purchasing - Frenchay Hospital,Permanent Nursing,Fshc  1St Floor,1884, 10-Jun-2014,
883,Revenue,CCHD,Bed Purchasing - Elderly - North,Permanent Nursing,Fshc  1St Floor,1884, 10-Jun-2014,
884,Revenue,CCHD,Bed Purchasing - Frenchay Hospital,Permanent Nursing,Fshc  1St Floor,1204.12, 10-Jun-2014,
885,Revenue,CCHD,Bed Purchasing - Elderly - South,Permanent Nursing,Fshc  1St Floor,1388.2, 10-Jun-2014,
886,Revenue,CCHD,Bed Purchasing - Elderly - South,Permanent Nursing,Fshc  1St Floor,1337.12, 10-Jun-2014,
887,Revenue,CCHD,Bed Purchasing - Elderly - South,Permanent Nursing,Fshc  1St Floor,1372.2, 10-Jun-2014,
888,Revenue,CCHD,Bed Purchasing - Frenchay Hospital,Permanent Nursing,Fshc  1St Floor,1096.6, 10-Jun-2014,
889,Revenue,CCHD,Bed Purchasing - Elderly MH - South,Permanent Residential,Fshc  1St Floor,1131.72, 10-Jun-2014,
890,Revenue,CCHD,Bed Purchasing - Elderly - South,Permanent Nursing,Fshc  1St Floor,1352.2, 10-Jun-2014,
891,Revenue,CCHD,Bed Purchasing - Southmead Hospital,Permanent Nursing,Fshc  1St Floor,1388.2, 10-Jun-2014,
892,Revenue,CCHD,Bed Purchasing - Elderly MH - South,Permanent Nursing,Fshc  1St Floor,1229.44, 10-Jun-2014,
893,Revenue,CCHD,Bed Purchasing - Southmead Hospital,Permanent Nursing,Fshc  1St Floor,2369.78, 10-Jun-2014,
894,Revenue,CCHD,Bed Purchasing - Southmead Hospital,Permanent Nursing,Fshc  1St Floor,1354.16, 10-Jun-2014,
895,Revenue,CCHD,Bed Purchasing - Southmead Hospital,Permanent Nursing,Fshc  1St Floor,904.51, 10-Jun-2014,
896,Revenue,CCHD,Bed purchasing - Elderly MH - North,Permanent Nursing,Fshc  1St Floor,781.44, 10-Jun-2014,
897,Revenue,CCHD,Bed Purchasing - Elderly - South,Permanent Nursing,Fshc  1St Floor,993.48, 10-Jun-2014,
898,Revenue,CCHD,Bed Purchasing - Elderly - North,Permanent Nursing,Fshc  1St Floor,1137.44, 10-Jun-2014,
899,Revenue,CCHD,Bed Purchasing - Elderly - North,Permanent Nursing,Fshc  1St Floor,985.88, 10-Jun-2014,
900,Revenue,CCHD,Bed Purchasing - Frenchay Hospital,Permanent Nursing,Fshc  1St Floor,944.48, 10-Jun-2014,
901,Revenue,CCHD,Bed Purchasing - Elderly - North,Permanent Nursing,Fshc  1St Floor,1290.68, 10-Jun-2014,
902,Revenue,CCHD,Bed Purchasing - Frenchay Hospital,Permanent Nursing,Fshc  1St Floor,1564.2, 10-Jun-2014,
903,Revenue,CCHD,Bed Purchasing - Elderly - North,Permanent Nursing,Fshc  1St Floor,1782.27, 10-Jun-2014,
904,Revenue,CCHD,Bed Purchasing - Elderly - North,Permanent Nursing,Fshc  1St Floor,1018.44, 10-Jun-2014,
905,Revenue,CCHD,Bed Purchasing - Frenchay Hospital,Permanent Residential,Fshc  1St Floor,2000.11, 10-Jun-2014,
906,Revenue,CCHD,Bed Purchasing - Frenchay Hospital,Permanent Residential,Fshc  1St Floor,1142.92, 10-Jun-2014,
907,Revenue,CCHD,Bed Purchasing - Frenchay Hospital,Permanent Residential,Fshc  1St Floor,1059.98, 10-Jun-2014,
908,Revenue,CCHD,Bed Purchasing - Elderly - North,Permanent Nursing,Fshc  1St Floor,1347.08, 10-Jun-2014,
909,Revenue,CCHD,Bed Purchasing - Southmead Hospital,Permanent Nursing,Fshc  1St Floor,1257.21, 10-Jun-2014,
910,Revenue,CCHD,Bed Purchasing - Elderly - North,Permanent Nursing,Fshc  1St Floor,1039.6, 10-Jun-2014,
911,Revenue,CCHD,Bed Purchasing - Southmead Hospital,Permanent Nursing,Fshc  1St Floor,1220.2, 10-Jun-2014,
912,Revenue,CCHD,Bed Purchasing - Elderly - North,Permanent Residential,Fshc  1St Floor,1077, 10-Jun-2014,
913,Revenue,CCHD,Bed Purchasing - Elderly - North,Permanent Residential,Fshc  1St Floor,1367.48, 10-Jun-2014,
914,Revenue,CCHD,Bed Purchasing - Frenchay Hospital,Permanent Nursing,Fshc  1St Floor,931.84, 10-Jun-2014,
915,Revenue,CCHD,Bed Purchasing - Frenchay Hospital,Permanent Nursing,Fshc  1St Floor,1104.08, 10-Jun-2014,
916,Revenue,CCHD,Bed Purchasing - Frenchay Hospital,Permanent Nursing,Fshc  1St Floor,1129, 10-Jun-2014,
917,Revenue,CCHD,Bed purchasing - Elderly MH - North,Permanent Nursing,Fshc  1St Floor,1031.68, 10-Jun-2014,
918,Revenue,CCHD,Bed Purchasing - Southmead Hospital,Permanent Nursing,Fshc  1St Floor,1289.2, 10-Jun-2014,
919,Revenue,CCHD,Bed Purchasing - Elderly - North,Permanent Nursing,Fshc  1St Floor,1220.16, 10-Jun-2014,
920,Revenue,CCHD,Bed Purchasing - Frenchay Hospital,Permanent Nursing,Fshc  1St Floor,1128.8, 10-Jun-2014,
921,Revenue,CCHD,Bed Purchasing - Frenchay Hospital,Permanent Nursing,Fshc  1St Floor,1588.2, 10-Jun-2014,
922,Revenue,CCHD,Bed Purchasing - Frenchay Hospital,Permanent Nursing,Fshc  1St Floor,1531.48, 10-Jun-2014,
923,Revenue,CCHD,South Glos Users in South Glos Homes,Permanent Nursing,Fshc  1St Floor,941.06, 10-Jun-2014,
924,Revenue,CCHD,Bed Purchasing - Elderly - South,Permanent Nursing,Fshc  1St Floor,1288.12, 10-Jun-2014,
925,Revenue,CCHD,Bed Purchasing - Elderly - South,Permanent Residential,Fshc  1St Floor,1132.6, 10-Jun-2014,
926,Revenue,CCHD,Bed Purchasing - Frenchay Hospital,Permanent Nursing,Fshc  1St Floor,2060, 10-Jun-2014,
927,Revenue,CCHD,Bed Purchasing - Frenchay Hospital,Permanent Nursing,Fshc  1St Floor,1375.6, 10-Jun-2014,
928,Revenue,CCHD,Bed Purchasing - Southmead Hospital,Permanent Nursing,Fshc  1St Floor,1388.2, 10-Jun-2014,
929,Revenue,CCHD,Bed Purchasing - Elderly - North,Permanent Nursing,Fshc  1St Floor,574.28, 10-Jun-2014,
930,Revenue,CCHD,Bed purchasing - Elderly MH - North,Permanent Nursing,Fshc  1St Floor,1489.72, 10-Jun-2014,
931,Revenue,CCHD,Bed Purchasing - Elderly - North,Permanent Nursing,Fshc  1St Floor,1289.2, 10-Jun-2014,
932,Revenue,CCHD,Bed Purchasing - Southmead Hospital,Permanent Nursing,Fshc  1St Floor,1268.96, 10-Jun-2014,
933,Revenue,CCHD,Bed Purchasing - Frenchay Hospital,Permanent Nursing,Fshc  1St Floor,1029.8, 10-Jun-2014,
934,Revenue,CCHD,Bed Purchasing - Frenchay Hospital,Permanent Residential,Fshc  1St Floor,621.36, 10-Jun-2014,
935,Revenue,CCHD,Bed Purchasing - Frenchay Hospital,Permanent Nursing,Fshc  1St Floor,1294.72, 10-Jun-2014,
936,Revenue,CCHD,Bed Purchasing - Frenchay Hospital,Permanent Nursing,Fshc  1St Floor,1372.56, 10-Jun-2014,
937,Revenue,CCHD,Bed Purchasing - Elderly - North,Permanent Nursing,Fshc  1St Floor,1312.76, 10-Jun-2014,
938,Revenue,CCHD,Bed Purchasing - Elderly - North,Permanent Residential,Fshc  1St Floor,779.72, 10-Jun-2014,
939,Revenue,CCHD,Bed Purchasing - Southmead Hospital,Permanent Nursing,Fshc  1St Floor,1475.48, 10-Jun-2014,
940,Revenue,CCHD,South Glos Users in South Glos Homes,Permanent Nursing,Fshc  1St Floor,698.79, 10-Jun-2014,
941,Revenue,CCHD,Bed Purchasing - Southmead Hospital,Permanent Nursing,Fshc  1St Floor,1564.2, 10-Jun-2014,
942,Revenue,CCHD,Bed Purchasing - Elderly MH - South,Permanent Nursing,Fshc  1St Floor,1338.84, 10-Jun-2014,
943,Revenue,CCHD,Bed Purchasing - Elderly - North,Permanent Nursing,Fshc  1St Floor,1471.32, 10-Jun-2014,
944,Revenue,CCHD,Bed Purchasing - Elderly MH - South,Permanent Nursing,Fshc  1St Floor,1309.96, 10-Jun-2014,
945,Revenue,CCHD,Bed purchasing - Elderly MH - North,Permanent Residential,Fshc  1St Floor,1456.2, 10-Jun-2014,
946,Revenue,CCHD,Bed Purchasing - Elderly - North,Permanent Nursing,Fshc  1St Floor,1552.64, 10-Jun-2014,
947,Revenue,CCHD,Bed purchasing - Elderly S117 - South,Permanent Nursing,Fshc  1St Floor,1884, 10-Jun-2014,
948,Revenue,CCHD,Bed purchasing - Elderly MH - North,Permanent Residential,Fshc  1St Floor,1263.96, 10-Jun-2014,
949,Revenue,CCHD,Bed Purchasing - Southmead Hospital,Permanent Residential,Fshc  1St Floor,1260.2, 10-Jun-2014,
950,Revenue,CCHD,Bed Purchasing - Elderly - North,Permanent Residential,Fshc  1St Floor,1171.36, 10-Jun-2014,
951,Revenue,CCHD,Bed Purchasing - Elderly - South,Permanent Nursing,Fshc  1St Floor,1564.2, 10-Jun-2014,
952,Revenue,CCHD,Bed purchasing - Elderly MH - North,Permanent Residential,Fshc  1St Floor,1401.92, 10-Jun-2014,
953,Revenue,CCHD,Bed Purchasing - Southmead Hospital,Permanent Residential,Fshc  1St Floor,1484.2, 10-Jun-2014,
954,Revenue,CCHD,Bed Purchasing - Frenchay Hospital,Respite Planned - Nursing,Fshc  1St Floor,583.71, 10-Jun-2014,
955,Revenue,CCHD,Bed Purchasing - Elderly - North,Permanent Nursing,Fshc  1St Floor,1388.2, 10-Jun-2014,
956,Revenue,CCHD,Bed Purchasing - Elderly - North,Permanent Residential,Fshc  1St Floor,1260.2, 10-Jun-2014,
957,Revenue,CCHD,Bed Purchasing - Elderly - North,Permanent Nursing,Fshc  1St Floor,1153.32, 10-Jun-2014,
958,Revenue,CCHD,Bed Purchasing - Frenchay Hospital,Permanent Residential,Fshc  1St Floor,1260.2, 10-Jun-2014,
959,Revenue,CCHD,Bed Purchasing - Elderly - North,Permanent Nursing,Fshc  1St Floor,587.4, 10-Jun-2014,
960,Revenue,CCHD,Bed Purchasing - Southmead Hospital,Permanent Nursing,Fshc  1St Floor,1388.2, 10-Jun-2014,
961,Revenue,CCHD,Bed Purchasing - Elderly - North,Permanent Nursing,Fshc  1St Floor,4092.92, 10-Jun-2014,
962,Revenue,CCHD,Bed Purchasing - Elderly - North,Permanent Nursing,Fshc  1St Floor,1388.2, 10-Jun-2014,
963,Revenue,CCHD,Bed Purchasing - Frenchay Hospital,Permanent Nursing,Fshc  1St Floor,1327.96, 10-Jun-2014,
964,Revenue,CCHD,Bed Purchasing - Elderly - North,Permanent Nursing,Fshc  1St Floor,903.52, 10-Jun-2014,
965,Revenue,CCHD,Bed Purchasing - Elderly - North,Permanent Nursing,Fshc  1St Floor,1017.2, 10-Jun-2014,
966,Revenue,CCHD,Bed Purchasing - Southmead Hospital,Permanent Nursing,Fshc  1St Floor,1024.92, 10-Jun-2014,
967,Revenue,CCHD,Bed Purchasing - Southmead Hospital,Permanent Nursing,Fshc  1St Floor,636, 10-Jun-2014,
968,Revenue,CCHD,Bed Purchasing - Frenchay Hospital,Permanent Nursing,Fshc  1St Floor,1388.2, 10-Jun-2014,
969,Revenue,CCHD,Bed Purchasing - Elderly - South,Permanent Nursing,Fshc  1St Floor,1394.12, 10-Jun-2014,
970,Revenue,CCHD,Bed Purchasing - Frenchay Hospital,Permanent Nursing,Fshc  1St Floor,1321.92, 10-Jun-2014,
971,Revenue,CCHD,Bed Purchasing - Frenchay Hospital,Permanent Nursing,Fshc  1St Floor,1388.2, 10-Jun-2014,
972,Revenue,CCHD,Bed Purchasing - Southmead Hospital,Permanent Nursing,Fshc  1St Floor,586.56, 10-Jun-2014,
973,Revenue,CCHD,Bed Purchasing - Elderly - North,Permanent Nursing,Fshc  1St Floor,1288.16, 10-Jun-2014,
974,Revenue,CCHD,Bed Purchasing - Elderly - North,Permanent Nursing,Fshc  1St Floor,1083.08, 10-Jun-2014,
975,Revenue,CCHD,Bed Purchasing - Southmead Hospital,Permanent Nursing,Fshc  1St Floor,762.08, 10-Jun-2014,
976,Revenue,CCHD,Bed Purchasing - Frenchay Hospital,Permanent Nursing,Fshc  1St Floor,873.88, 10-Jun-2014,
977,Revenue,CCHD,Bed Purchasing - Southmead Hospital,Permanent Nursing,Fshc  1St Floor,1312.68, 10-Jun-2014,
978,Revenue,CCHD,Bed Purchasing - Elderly - North,Permanent Nursing,Fshc  1St Floor,1270.2, 10-Jun-2014,
979,Revenue,CCHD,Bed Purchasing - Elderly - South,Permanent Nursing,Fshc  1St Floor,794.4, 10-Jun-2014,
980,Revenue,CCHD,Bed Purchasing - Southmead Hospital,Permanent Nursing,Fshc  1St Floor,1360.32, 10-Jun-2014,
981,Revenue,CCHD,Bed Purchasing - Southmead Hospital,Permanent Nursing,Fshc  1St Floor,6058.15, 10-Jun-2014,
982,Revenue,CCHD,Bed Purchasing - Southmead Hospital,Permanent Nursing,Fshc  1St Floor,1822.56, 10-Jun-2014,
983,Revenue,CCHD,Bed Purchasing - Elderly - North,Permanent Residential,Fshc  1St Floor,3000.64, 10-Jun-2014,
984,Revenue,CCHD,Bed purchasing - Phys Dis - North,Permanent Nursing,Fshc  1St Floor,1394.04, 10-Jun-2014,
985,Revenue,CCHD,Bed Purchasing - Elderly - South,Permanent Nursing,Fshc  1St Floor,1242.76, 10-Jun-2014,
986,Revenue,CCHD,Bed Purchasing - Southmead Hospital,Permanent Nursing,Fshc  1St Floor,1388.2, 10-Jun-2014,
987,Revenue,CCHD,Bed Purchasing - Southmead Hospital,Permanent Nursing,Fshc  1St Floor,1319.28, 10-Jun-2014,
988,Revenue,CCHD,Bed Purchasing - Elderly MH - South,Permanent Residential,Fshc  1St Floor,1952, 10-Jun-2014,
989,Revenue,CCHD,Bed Purchasing - Frenchay Hospital,Permanent Nursing,Fshc  1St Floor,1381, 10-Jun-2014,
990,Revenue,CCHD,Bed Purchasing - Southmead Hospital,Permanent Residential,Fshc  1St Floor,1484.2, 10-Jun-2014,
991,Revenue,CCHD,Bed Purchasing - Elderly - South,Permanent Residential,Fshc  1St Floor,1424.4, 10-Jun-2014,
992,Revenue,CCHD,Bed Purchasing - Elderly - North,Permanent Residential,Fshc  1St Floor,1167.12, 10-Jun-2014,
993,Revenue,CCHD,Bed Purchasing - Elderly - North,Permanent Nursing,Fshc  1St Floor,1143.32, 10-Jun-2014,
994,Revenue,CCHD,Bed Purchasing - Frenchay Hospital,Permanent Nursing,Fshc  1St Floor,1248.96, 10-Jun-2014,
995,Revenue,CCHD,Bed Purchasing - Elderly - North,Permanent Nursing,Fshc  1St Floor,1388.2, 10-Jun-2014,
996,Revenue,CCHD,Bed purchasing - Elderly MH - North,Permanent Residential,Fshc  1St Floor,1456.2, 10-Jun-2014,
997,Revenue,CCHD,Bed Purchasing - Southmead Hospital,Permanent Nursing,Fshc  1St Floor,1203.24, 10-Jun-2014,
998,Revenue,CCHD,Bed Purchasing - Southmead Hospital,Permanent Nursing,Fshc  1St Floor,1384.2, 10-Jun-2014,
999,Revenue,CCHD,Bed Purchasing - Elderly - South,Permanent Residential,Fshc  1St Floor,901.6, 10-Jun-2014,
1000,Revenue,CCHD,Bed purchasing - Elderly PWLD - South,Permanent Residential,Fshc  1St Floor,1260.2, 10-Jun-2014,
1001,Revenue,CCHD,Bed Purchasing - Frenchay Hospital,Permanent Nursing,Fshc  1St Floor,1388.2, 10-Jun-2014,
1002,Revenue,CCHD,Bed Purchasing - Southmead Hospital,Permanent Nursing,Fshc  1St Floor,1107.48, 10-Jun-2014,
1003,Revenue,CCHD,Bed Purchasing - Elderly - North,Permanent Residential,Fshc  1St Floor,1199.08, 10-Jun-2014,
1004,Revenue,CCHD,Bed Purchasing - Frenchay Hospital,Permanent Nursing,Fshc  1St Floor,728.56, 10-Jun-2014,
1005,Revenue,CCHD,Bed Purchasing - Frenchay Hospital,Permanent Nursing,Fshc  1St Floor,1388.2, 10-Jun-2014,
1006,Revenue,CCHD,Bed Purchasing - Southmead Hospital,Permanent Nursing,Fshc  1St Floor,1094.12, 10-Jun-2014,
1007,Revenue,CCHD,Bed Purchasing - Southmead Hospital,Permanent Residential,Fshc  1St Floor,1475.64, 10-Jun-2014,
1008,Revenue,CCHD,Bed Purchasing - Elderly - South,Permanent Nursing,Fshc  1St Floor,1227.24, 10-Jun-2014,
1009,Revenue,CCHD,Bed Purchasing - Elderly - South,Permanent Nursing,Fshc  1St Floor,944.52, 10-Jun-2014,
1010,Revenue,CCHD,Bed purchasing - Elderly S117 - South,Permanent Nursing,Fshc  1St Floor,1884, 10-Jun-2014,
1011,Revenue,CCHD,Bed Purchasing - Frenchay Hospital,Permanent Residential,Fshc  1St Floor,1122.08, 10-Jun-2014,
1012,Revenue,CCHD,Bed Purchasing - Elderly - North,Permanent Nursing,Fshc  1St Floor,1327.84, 10-Jun-2014,
1013,Revenue,CCHD,Bed Purchasing - Elderly - South,Permanent Residential,Fshc  1St Floor,1371.4, 10-Jun-2014,
1014,Revenue,CCHD,South Glos Users in South Glos Homes,Permanent Nursing,Fshc  1St Floor,1050.85, 10-Jun-2014,
1015,Revenue,CCHD,South Glos Users in South Glos Homes,Permanent Nursing,Fshc  1St Floor,871.28, 10-Jun-2014,
1016,Revenue,CCHD,Bed Purchasing - Frenchay Hospital,Permanent Nursing,Fshc  1St Floor,777.8, 10-Jun-2014,
1017,Revenue,CCHD,Bed Purchasing - Elderly - North,Permanent Residential,Fshc  1St Floor,1216.92, 10-Jun-2014,
1018,Revenue,CCHD,Bed Purchasing - Elderly - South,Permanent Nursing,Fshc  1St Floor,1304.72, 10-Jun-2014,
1019,Revenue,CCHD,Bed Purchasing - Elderly - South,Permanent Nursing,Fshc  1St Floor,1668.4, 10-Jun-2014,
1020,Revenue,CCHD,Bed Purchasing - Southmead Hospital,Permanent Nursing,Fshc  1St Floor,1884, 10-Jun-2014,
1021,Revenue,CCHD,Bed Purchasing - Frenchay Hospital,Permanent Nursing,Fshc  1St Floor,1116.56, 10-Jun-2014,
1022,Revenue,CCHD,Bed Purchasing - Southmead Hospital,Permanent Nursing,Fshc  1St Floor,1121.72, 10-Jun-2014,
1023,Revenue,CCHD,Bed Purchasing - Frenchay Hospital,Permanent Nursing,Fshc  1St Floor,958.64, 10-Jun-2014,
1024,Revenue,CCHD,Bed Purchasing - Frenchay Hospital,Permanent Nursing,Fshc  1St Floor,1309.72, 10-Jun-2014,
1025,Revenue,CCHD,Bed Purchasing - Frenchay Hospital,Permanent Nursing,Fshc  1St Floor,1549, 10-Jun-2014,
1026,Revenue,CCHD,Bed Purchasing - Southmead Hospital,Permanent Nursing,Fshc  1St Floor,1317.24, 10-Jun-2014,
1027,Revenue,CCHD,Bed Purchasing - Southmead Hospital,Permanent Nursing,Fshc  1St Floor,1365.08, 10-Jun-2014,
1028,Revenue,CCHD,Bed Purchasing - Frenchay Hospital,Permanent Nursing,Fshc  1St Floor,1388.2, 10-Jun-2014,
1029,Revenue,CCHD,Bed Purchasing - Southmead Hospital,Permanent Nursing,Fshc  1St Floor,881.8, 10-Jun-2014,
1030,Revenue,CCHD,Bed Purchasing - Southmead Hospital,Permanent Residential,Fshc  1St Floor,1756, 10-Jun-2014,
1031,Revenue,CCHD,Bed Purchasing - Frenchay Hospital,Permanent Nursing,Fshc  1St Floor,1320.2, 10-Jun-2014,
1032,Revenue,CCHD,Bed Purchasing - Elderly - North,Permanent Nursing,Fshc  1St Floor,1258.31, 10-Jun-2014,
1033,Revenue,CCHD,Bed purchasing - Phys Dis - North,Permanent Nursing,Fshc  1St Floor,775.72, 10-Jun-2014,
1034,Revenue,CCHD,Bed Purchasing - Elderly - North,Permanent Nursing,Fshc  1St Floor,1496.2, 10-Jun-2014,
1035,Revenue,CCHD,Bed Purchasing - Elderly - North,Permanent Nursing,Fshc  1St Floor,1229.36, 10-Jun-2014,
1036,Revenue,CCHD,Bed Purchasing - Frenchay Hospital,Permanent Nursing,Fshc  1St Floor,1344.2, 10-Jun-2014,
1037,Revenue,CCHD,Bed purchasing - Elderly MH - North,Permanent Nursing,Fshc  1St Floor,857.04, 10-Jun-2014,
1038,Revenue,CCHD,Bed Purchasing - Southmead Hospital,Permanent Nursing,Fshc  1St Floor,1496.2, 10-Jun-2014,
1039,Revenue,CCHD,Bed Purchasing - Elderly - North,Permanent Nursing,Fshc  1St Floor,1368.56, 10-Jun-2014,
1040,Revenue,CCHD,Bed Purchasing - Frenchay Hospital,Permanent Nursing,Fshc  1St Floor,1376.68, 10-Jun-2014,
1041,Revenue,CCHD,Bed Purchasing - Frenchay Hospital,Permanent Residential,Fshc  1St Floor,1233.08, 10-Jun-2014,
1042,Revenue,CCHD,South Glos Users in South Glos Homes,Permanent Nursing,Fshc  1St Floor,3701.49, 10-Jun-2014,
1043,Revenue,CCHD,Bed Purchasing - Southmead Hospital,Permanent Nursing,Fshc  1St Floor,1307.2, 10-Jun-2014,
1044,Revenue,CCHD,South Glos Users in South Glos Homes,Permanent Nursing,Fshc  1St Floor,871.28, 10-Jun-2014,
1045,Revenue,CCHD,Bed Purchasing - Southmead Hospital,Permanent Nursing,Fshc  1St Floor,1263.24, 10-Jun-2014,
1046,Revenue,CCHD,Bed Purchasing - Southmead Hospital,Permanent Nursing,Fshc  1St Floor,1467.24, 10-Jun-2014,
1047,Revenue,CCHD,Bed purchasing - Elderly S117 - South,Permanent Nursing,Fshc  1St Floor,1992, 10-Jun-2014,
1048,Revenue,CCHD,Bed Purchasing - Frenchay Hospital,Permanent Nursing,Fshc  1St Floor,950.68, 10-Jun-2014,
1049,Revenue,CCHD,Bed Purchasing - Elderly S117- North,Permanent Nursing,Fshc  1St Floor,1992, 10-Jun-2014,
1050,Revenue,CCHD,Bed Purchasing - Elderly - North,Permanent Residential,Fshc  1St Floor,1432.2, 10-Jun-2014,
1051,Revenue,CCHD,Bed Purchasing - Frenchay Hospital,Permanent Nursing,Fshc  1St Floor,1100.44, 10-Jun-2014,
1052,Revenue,CCHD,Bed Purchasing - Elderly - South,Permanent Residential,Fshc  1St Floor,1361, 10-Jun-2014,
1053,Revenue,CCHD,Bed Purchasing - Southmead Hospital,Permanent Residential,FSHC 1st Floor,806.6, 10-Jun-2014,
1054,Revenue,CCHD,Tenancy Start Up Scheme,Other Supplies & Services,Gail Holt,795, 27-Jun-2014,
1055,Revenue,CCHD,DAT Treatment,Project Funding,Gateway Revival Church,1000, 13-Jun-2014,
1056,Revenue,CCHD,Alexandra Way,Prop.Serv. General Repairs,George Grimes,1006, 11-Jun-2014,
1057,Revenue,CCHD,Section 117 Placements MH Younger,Permanent Residential,Gladstone House,2762.16, 10-Jun-2014,
1058,Revenue,CCHD,Bed Purchasing - Under 65s PWLD - South,Permanent Residential,Glasallt Fawr,4615.6, 10-Jun-2014,
1059,Revenue,CCHD,Bed purchasing - Elderly MH - North,Permanent Residential,Glebe House Nursing Home,1807.4, 10-Jun-2014,
1060,Revenue,CCHD,Bed Purchasing - Frenchay Hospital,Permanent Residential,Glebe House Nursing Home,1490.39, 10-Jun-2014,
1061,Revenue,CCHD,Bed Purchasing - Frenchay Hospital,Permanent Residential,Glebe House Nursing Home,1346.16, 10-Jun-2014,
1062,Revenue,CCHD,Bed purchasing - Elderly MH - North,Permanent Residential,Glebe House Nursing Home,2044.08, 10-Jun-2014,
1063,Revenue,CCHD,Bed Purchasing - Elderly - North,Permanent Nursing,Glebe House Nursing Home,1395.84, 10-Jun-2014,
1064,Revenue,CCHD,Bed Purchasing - Elderly - North,Permanent Residential,Glebe House Nursing Home,1173.84, 10-Jun-2014,
1065,Revenue,CCHD,Bed Purchasing - Elderly - North,Permanent Residential,Glebe House Nursing Home,921.24, 10-Jun-2014,
1066,Revenue,CCHD,Bed Purchasing - Elderly - North,Permanent Nursing,Glebe House Nursing Home,1832.52, 10-Jun-2014,
1067,Revenue,CCHD,Bed Purchasing - Elderly - North,Permanent Nursing,Glebe House Nursing Home,2165.56, 10-Jun-2014,
1068,Revenue,CCHD,Bed Purchasing - Elderly - South,Permanent Residential,Glebe House Nursing Home,2004.44, 10-Jun-2014,
1069,Revenue,CCHD,Bed Purchasing - Elderly - North,Permanent Residential,Glebe House Nursing Home,2593, 10-Jun-2014,
1070,Revenue,CCHD,Bed Purchasing - Under 65s PWLD - South,Permanent Residential,Gordena Care Home,2113.64, 10-Jun-2014,
1071,Revenue,CCHD,Bed purchasing - Elderly PWLD - South,Permanent Residential,Gordena Care Home,4799.84, 10-Jun-2014,
1072,Revenue,CCHD,Bed purchasing - Elderly PWLD - South,Permanent Residential,Gordena Care Home,3159.76, 10-Jun-2014,
1073,Revenue,CCHD,Bed purchasing - Elderly PWLD - South,Permanent Residential,Gordena Care Home,2968.16, 10-Jun-2014,
1074,Revenue,CCHD,Bed Purchasing - Under 65s PWLD - South,Permanent Residential,Gordena Care Home,1933.24, 10-Jun-2014,
1075,Revenue,CCHD,Bed Purchasing - Under 65s PWLD - South,Permanent Residential,Gordena Care Limited,4217.76, 10-Jun-2014,
1076,Revenue,CCHD,Bed purchasing - S28A Under 65 - South,Permanent Residential,Gordena Care Limited,4116, 10-Jun-2014,
1077,Revenue,CCHD,Bed purchasing - Under 65s PWLD - North,Permanent Residential,Gordena Care Limited,4218.96, 10-Jun-2014,
1078,Revenue,CCHD,S75 CCG Interim Beds,Permanent Nursing,Gracefields Nursing Home,41800, 30-Jun-2014,
1079,Revenue,CCHD,Bed Purchasing - Elderly - North,Permanent Residential,Greensleeves,1331.92, 10-Jun-2014,
1080,Revenue,CCHD,Bed Purchasing - Elderly - North,Permanent Residential,Gwendoline House,887.84, 10-Jun-2014,
1081,Revenue,CCHD,Bed Purchasing - Elderly - South,Permanent Residential,Gwendoline House,1510, 10-Jun-2014,
1082,Revenue,CCHD,Bed Purchasing - Elderly - North,Permanent Residential,Gwendoline House,1661.96, 10-Jun-2014,
1083,Revenue,CCHD,Bed Purchasing - Elderly MH - South,Permanent Residential,Gwendoline House,1288.2, 10-Jun-2014,
1084,Revenue,CCHD,Bed Purchasing - Elderly - South,Permanent Residential,Gwendoline House,1143.56, 10-Jun-2014,
1085,Revenue,CCHD,Breakthrough and Inclusion Work,Other Supplies & Services,Hambly`s Sport Matter Limited,630, 10-Jun-2014,
1086,Revenue,CCHD,Social Lettings Agency,Fees - General,Hamid Salehpoor,15.78, 09-Jun-2014,
1087,Revenue,CCHD,Social Lettings Agency,Other Supplies & Services,Hamid Salehpoor,536.55, 09-Jun-2014,
1088,Revenue,CCHD,Social Lettings Agency,Fees - General,Hamid Salehpoor,15.78, 27-Jun-2014,
1089,Revenue,CCHD,Social Lettings Agency,Other Supplies & Services,Hamid Salehpoor,536.55, 27-Jun-2014,
1090,Revenue,CCHD,Bed Purchasing - Elderly - South,Permanent Residential,Harefield Hall,1347.12, 10-Jun-2014,
1091,Revenue,CCHD,Bed Purchasing - Elderly - South,Permanent Residential,Harefield Hall,2000.12, 10-Jun-2014,
1092,Revenue,CCHD,Bed Purchasing - Elderly - South,Permanent Residential,Harefield Hall,1115.32, 10-Jun-2014,
1093,Revenue,CCHD,Bed Purchasing - Elderly MH - South,Permanent Residential,Harefield Hall,1036.4, 10-Jun-2014,
1094,Revenue,CCHD,Bed Purchasing - Elderly - South,Permanent Residential,Harefield Hall,1304.48, 10-Jun-2014,
1095,Revenue,CCHD,Bed Purchasing - Elderly - South,Permanent Residential,Harefield Hall,666.4, 10-Jun-2014,
1096,Revenue,CCHD,Bed Purchasing - Southmead Hospital,Permanent Nursing,Hc-One Ltd,1634.8, 10-Jun-2014,
1097,Revenue,CCHD,Bed Purchasing - Elderly - North,Permanent Nursing,Hc-One Ltd,1492.36, 10-Jun-2014,
1098,Revenue,CCHD,Bed Purchasing - Elderly - North,Permanent Nursing,Hc-One Ltd,1533.56, 10-Jun-2014,
1099,Revenue,CCHD,Bed Purchasing - Elderly S117- North,Permanent Nursing,Hc-One Ltd,1299.6, 10-Jun-2014,
1100,Revenue,CCHD,Bed Purchasing - Elderly - North,Permanent Residential,Hc-One Ltd,1006.84, 10-Jun-2014,
1101,Revenue,CCHD,Bed Purchasing - Elderly - North,Permanent Nursing,Hc-One Ltd,1518.6, 10-Jun-2014,
1102,Revenue,CCHD,Bed purchasing - Elderly PWLD - South,Permanent Nursing,Hc-One Ltd,1955.92, 10-Jun-2014,
1103,Revenue,CCHD,Bed Purchasing - Elderly - North,Permanent Nursing,Hc-One Ltd,1816.82, 10-Jun-2014,
1104,Revenue,CCHD,Bed Purchasing - Elderly - North,Permanent Nursing,Hc-One Ltd,1496.2, 10-Jun-2014,
1105,Revenue,CCHD,South Glos Users in South Glos Homes,Permanent Nursing,Hc-One Ltd,982.17, 10-Jun-2014,
1106,Revenue,CCHD,Bed purchasing - Elderly MH - North,Permanent Nursing,Hc-One Ltd,1496.2, 10-Jun-2014,
1107,Revenue,CCHD,Bed purchasing - Elderly MH - North,Permanent Nursing,Hc-One Ltd,1239.28, 10-Jun-2014,
1108,Revenue,CCHD,Bed Purchasing - Elderly - South,Permanent Nursing,Hc-One Ltd,1152.48, 10-Jun-2014,
1109,Revenue,CCHD,Bed purchasing - Elderly MH - North,Permanent Nursing,Hc-One Ltd,1197.44, 10-Jun-2014,
1110,Revenue,CCHD,Bed Purchasing - Elderly S117- North,Permanent Nursing,Hc-One Ltd,1976.56, 10-Jun-2014,
1111,Revenue,CCHD,Day Care - South,Private & Voluntary Day Care,Headway Bristol,570.06, 27-Jun-2014,
1112,Revenue,CCHD,Bed Purchasing - Elderly - South,Permanent Residential,Heathwood Rest Home,2519.66, 18-Jun-2014,
1113,Revenue,CCHD,Bed Purchasing - Frenchay Hospital,Permanent Residential,Heathwood Rest Home,3034.45, 18-Jun-2014,
1114,Revenue,CCHD,Home Care - Elderly - South,Other Small Contracts,Helping Hands Homecare,195.5, 06-Jun-2014,
1115,Revenue,CCHD,Home Care - Elderly - North,Other Small Contracts,Helping Hands Homecare,2087.94, 06-Jun-2014,
1116,Revenue,CCHD,Day Care - North,Private & Voluntary Day Care,Helping Hands Homecare,86.02, 06-Jun-2014,
1117,Revenue,CCHD,Under 65s -MH  Home Care Purch,Other Small Contracts,Helping Hands Homecare,31.28, 06-Jun-2014,
1118,Revenue,CCHD,Home care - Elderly MH - North,Other Small Contracts,Helping Hands Homecare,62.56, 06-Jun-2014,
1119,Revenue,CCHD,Home Care - Elderly - South,Other Small Contracts,Helping Hands Homecare,234.6, 06-Jun-2014,
1120,Revenue,CCHD,Home Care - Elderly - North,Other Small Contracts,Helping Hands Homecare,2357.73, 06-Jun-2014,
1121,Revenue,CCHD,Day Care - North,Private & Voluntary Day Care,Helping Hands Homecare,93.84, 06-Jun-2014,
1122,Revenue,CCHD,Under 65s -MH  Home Care Purch,Other Small Contracts,Helping Hands Homecare,35.19, 06-Jun-2014,
1123,Revenue,CCHD,Home care - Elderly MH - North,Other Small Contracts,Helping Hands Homecare,62.56, 06-Jun-2014,
1124,Revenue,CCHD,Home Care - Elderly - South,Other Small Contracts,Helping Hands Homecare,289.34, 30-Jun-2014,
1125,Revenue,CCHD,Home Care - Elderly - North,Other Small Contracts,Helping Hands Homecare,2541.5, 30-Jun-2014,
1126,Revenue,CCHD,Day Care - North,Private & Voluntary Day Care,Helping Hands Homecare,93.84, 30-Jun-2014,
1127,Revenue,CCHD,Under 65s -MH  Home Care Purch,Other Small Contracts,Helping Hands Homecare,31.28, 30-Jun-2014,
1128,Revenue,CCHD,Home care - Elderly MH - North,Other Small Contracts,Helping Hands Homecare,66.47, 30-Jun-2014,
1129,Revenue,CCHD,Home Care - Elderly - South,Other Small Contracts,Helping Hands Homecare,324.53, 30-Jun-2014,
1130,Revenue,CCHD,Home Care - Elderly - North,Other Small Contracts,Helping Hands Homecare,2205.24, 30-Jun-2014,
1131,Revenue,CCHD,Day Care - North,Private & Voluntary Day Care,Helping Hands Homecare,86.02, 30-Jun-2014,
1132,Revenue,CCHD,Under 65s -MH  Home Care Purch,Other Small Contracts,Helping Hands Homecare,31.28, 30-Jun-2014,
1133,Revenue,CCHD,Home care - Elderly MH - North,Other Small Contracts,Helping Hands Homecare,62.56, 30-Jun-2014,
1134,Revenue,CCHD,Home Care - Elderly - South,Other Small Contracts,Helping Hands Homecare,320.62, 30-Jun-2014,
1135,Revenue,CCHD,Home Care - Elderly - North,Other Small Contracts,Helping Hands Homecare,1884.62, 30-Jun-2014,
1136,Revenue,CCHD,Day Care - North,Private & Voluntary Day Care,Helping Hands Homecare,93.84, 30-Jun-2014,
1137,Revenue,CCHD,Under 65s -MH  Home Care Purch,Other Small Contracts,Helping Hands Homecare,31.28, 30-Jun-2014,
1138,Revenue,CCHD,Home care - Elderly MH - North,Other Small Contracts,Helping Hands Homecare,31.28, 30-Jun-2014,
1139,Revenue,CCHD,S117 Placements PCT,Permanent Residential,Hesley Hall,18209.52, 10-Jun-2014,
1140,Revenue,CCHD,Bed Purchasing - Southmead Hospital,Permanent Residential,High Border Lodge,1442.96, 10-Jun-2014,
1141,Revenue,CCHD,Bed Purchasing - Frenchay Hospital,Permanent Residential,Highfield House,1227.52, 10-Jun-2014,
1142,Revenue,CCHD,Bed Purchasing - Southmead Hospital,Permanent Residential,Highgate Studios,1174.24, 10-Jun-2014,
1143,Revenue,CCHD,Bed purchasing - Under 65s PWLD - North,Permanent Residential,Holmleigh Care Homes Ltd,4059.84, 10-Jun-2014,
1144,Revenue,CCHD,Bed Purchasing - Under 65s PWLD - South,Permanent Residential,Holmleigh Care Homes Ltd,5102.6, 10-Jun-2014,
1145,Revenue,CCHD,Bed purchasing - Under 65s PWLD - North,Permanent Residential,Home Farm Trust Ltd  5-6 Brook Office Pa,2852.08, 10-Jun-2014,
1146,Revenue,CCHD,Bed purchasing - Elderly PWLD - South,Permanent Residential,Home Farm Trust Ltd  5-6 Brook Office Pa,5114.4, 10-Jun-2014,
1147,Revenue,CCHD,Bed purchasing - Under 65s PWLD - North,Permanent Residential,Home Farm Trust Ltd  5-6 Brook Office Pa,3442.72, 10-Jun-2014,
1148,Revenue,CCHD,Bed Purchasing - Under 65s PWLD - South,Permanent Residential,Home Farm Trust Ltd  5-6 Brook Office Pa,4572.16, 10-Jun-2014,
1149,Revenue,CCHD,Bed purchasing - Under 65s PWLD - North,Permanent Residential,Home From Home Care Ltd,8988.2, 10-Jun-2014,
1150,Revenue,CCHD,Bed purchasing - Under 65s PWLD - North,Permanent Residential,Homes Caring For Autism Ltd  Churchill H,9895.04, 10-Jun-2014,
1151,Revenue,CCHD,Bed Purchasing - Under 65s PWLD - South,Permanent Residential,Homes Caring For Autism Ltd  Churchill H,12903.72, 10-Jun-2014,
1152,Revenue,CCHD,Bed Purchasing - Southmead Hospital,Permanent Nursing,Horfield Care Limited,1717.67, 13-Jun-2014,
1153,Revenue,CCHD,Bed Purchasing - Frenchay Hospital,Respite Emergency - Nursing,Horfield Care Limited,1375.25, 13-Jun-2014,
1154,Revenue,CCHD,Bed Purchasing - Frenchay Hospital,Permanent Nursing,Horfield Care Limited,1716.91, 13-Jun-2014,
1155,Revenue,CCHD,Bed Purchasing - Frenchay Hospital,Permanent Nursing,Horfield Care Limited,1470.15, 13-Jun-2014,
1156,Revenue,CCHD,Bed Purchasing - Southmead Hospital,Respite Emergency - Nursing,Horfield Care Limited,2266.59, 13-Jun-2014,
1157,Revenue,CCHD,Bed Purchasing - Elderly - North,Permanent Nursing,Horfield Care Limited,1730.95, 13-Jun-2014,
1158,Revenue,CCHD,Bed Purchasing - Southmead Hospital,Permanent Nursing,Horfield Care Limited,1912.97, 13-Jun-2014,
1159,Revenue,CCHD,Bed Purchasing - Elderly - North,Permanent Nursing,Horfield Care Limited,1189.6, 13-Jun-2014,
1160,Revenue,CCHD,Bed Purchasing - Southmead Hospital,Permanent Nursing,Horfield Care Limited,1356.47, 13-Jun-2014,
1161,Revenue,CCHD,Bed Purchasing - Southmead Hospital,Permanent Nursing,Horfield Care Limited,898.03, 13-Jun-2014,
1162,Revenue,CCHD,Bed Purchasing - Frenchay Hospital,Respite Emergency - Nursing,Horfield Care Limited,1221.18, 13-Jun-2014,
1163,Revenue,CCHD,Bed Purchasing - Frenchay Hospital,Permanent Nursing,Horfield Care Limited,954.64, 13-Jun-2014,
1164,Revenue,CCHD,Home Care - Elderly - North,Private & Voluntary Home Care,Housing 21,37580.45, 10-Jun-2014,
1165,Revenue,CCHD,Information Systems - Software,Software Support & Maintenance,Infosol Limited,2546.9, 16-Jun-2014,
1166,Revenue,CCHD,Care Management Team - South,Agency Staff (Operational)/PCT Pay,IPE,934.38, 09-Jun-2014,
1167,Revenue,CCHD,Care Management Team - South,Agency Staff (Operational)/PCT Pay,IPE,1763.13, 26-Jun-2014,
1168,Revenue,CCHD,Social Lettings Agency,Fees - General,J & C Hawkins,11.6, 11-Jun-2014,
1169,Revenue,CCHD,Social Lettings Agency,Other Supplies & Services,J & C Hawkins,655.41, 11-Jun-2014,
1170,Revenue,CCHD,Alexandra Way,Furniture & Fittings Loose,J&P Healthcare LLP,783, 26-Jun-2014,
1171,Revenue,CCHD,Bed Purchasing - Elderly - North,Permanent Residential,Jah Jireh Charity Homes,575.22, 10-Jun-2014,
1172,Revenue,CCHD,Homeless - Private Sector Leasing,Other Supplies & Services,Jill Collins,594, 13-Jun-2014,
1173,Revenue,CCHD,Bed Purchasing - Under 65s PWLD - South,Permanent Residential,Julia Simone- Supp. Ind.,3960.52, 10-Jun-2014,
1174,Revenue,CCHD,Bed purchasing -S28A  Under 65 - North,Permanent Residential,Julia Simone- Supp. Ind.,3494.52, 10-Jun-2014,
1175,Revenue,CCHD,Bed Purchasing - Elderly - South,Permanent Residential,Karenza Ltd,1756, 10-Jun-2014,
1176,Revenue,CCHD,Sexual Health,Other Supplies & Services,Kennedy Way Surgery,970.42, 16-Jun-2014,
1177,Revenue,CCHD,NHS Health Checks & Tobacco Control,Other Supplies & Services,Kennedy Way Surgery,700, 23-Jun-2014,
1178,Revenue,CCHD,Bed Purchasing - Frenchay Hospital,Respite Planned - Residential,Kenver House,980, 20-Jun-2014,
1179,Revenue,CCHD,Bed Purchasing - Elderly - South,Permanent Residential,Kenver House Residential Home,1568.68, 10-Jun-2014,
1180,Revenue,CCHD,Bed Purchasing - Frenchay Hospital,Permanent Residential,Kenver House Residential Home,1119.36, 10-Jun-2014,
1181,Revenue,CCHD,Bed Purchasing - Frenchay Hospital,Permanent Residential,Kenver House Residential Home,1643.72, 10-Jun-2014,
1182,Revenue,CCHD,Bed Purchasing - Southmead Hospital,Permanent Residential,Kenver House Residential Home,1671.08, 10-Jun-2014,
1183,Revenue,CCHD,Bed Purchasing - Elderly - South,Permanent Residential,Kenver House Residential Home,1527.68, 10-Jun-2014,
1184,Revenue,CCHD,Bed Purchasing - Elderly - South,Permanent Residential,Kenver House Residential Home,1136.68, 10-Jun-2014,
1185,Revenue,CCHD,Bed Purchasing - Elderly MH - South,Permanent Residential,Kenver House Residential Home,1307.52, 10-Jun-2014,
1186,Revenue,CCHD,Bed Purchasing - Elderly - South,Permanent Residential,Kenver House Residential Home,1691.08, 10-Jun-2014,
1187,Revenue,CCHD,Bed Purchasing - Frenchay Hospital,Respite Planned - Residential,Kenver House Residential Home,2166.88, 10-Jun-2014,
1188,Revenue,CCHD,Bed Purchasing - Elderly - South,Permanent Residential,Kenver House Residential Home,1209.32, 10-Jun-2014,
1189,Revenue,CCHD,Bed Purchasing - Elderly - South,Permanent Residential,Kenver House Residential Home,2166.88, 10-Jun-2014,
1190,Revenue,CCHD,Bed Purchasing - Elderly - South,Permanent Residential,Kenver House Residential Home,1603, 10-Jun-2014,
1191,Revenue,CCHD,Bed Purchasing - Elderly - South,Respite Planned - Residential,Kenver House Residential Home,1857.33, 10-Jun-2014,
1192,Revenue,CCHD,Bed Purchasing - Southmead Hospital,Permanent Residential,Kenver House Residential Home,1671, 10-Jun-2014,
1193,Revenue,CCHD,Bed Purchasing - Elderly - South,Permanent Residential,Kenver House Residential Home,1414.64, 10-Jun-2014,
1194,Revenue,CCHD,Bed Purchasing - Elderly - North,Respite Emergency - Residential,Kenver House Residential Home,2198.84, 10-Jun-2014,
1195,Revenue,CCHD,Bed Purchasing - Frenchay Hospital,Permanent Residential,Kenver House Residential Home,1562.4, 10-Jun-2014,
1196,Revenue,CCHD,Bed Purchasing - Elderly - North,Permanent Nursing,Kingfisher Lodge Care Centre,2514.24, 10-Jun-2014,
1197,Revenue,CCHD,Sexual Health,Other Supplies & Services,Kingswood Health Centre,1890, 02-Jun-2014,
1198,Revenue,CCHD,Sexual Health,Other Supplies & Services,Kingswood Health Centre,1352.44, 16-Jun-2014,
1199,Revenue,CCHD,NHS Health Checks & Tobacco Control,Other Supplies & Services,Kingswood Health Centre,680, 23-Jun-2014,
1200,Revenue,CCHD,Woodleaze,Operational Staff Pay,Kirby Sheppard Solicitors,5937, 13-Jun-2014,
1201,Revenue,CCHD,Bed purchasing - Under 65s PWLD - North,Permanent Residential,Kisimul Group,11388.88, 10-Jun-2014,
1202,Revenue,CCHD,Home Care - Elderly - South,Other Small Contracts,Kumari Care Limited,3311.88, 17-Jun-2014,
1203,Revenue,CCHD,Home Care - Elderly - North,Other Small Contracts,Kumari Care Limited,104.23, 17-Jun-2014,
1204,Revenue,CCHD,Day Care - South,Private & Voluntary Day Care,Kumari Care Limited,96.5, 17-Jun-2014,
1205,Revenue,CCHD,Home Care - Elderly - South,Other Small Contracts,Kumari Care Limited,3381.36, 17-Jun-2014,
1206,Revenue,CCHD,Home Care - Elderly - North,Other Small Contracts,Kumari Care Limited,780.36, 17-Jun-2014,
1207,Revenue,CCHD,Day Care - South,Private & Voluntary Day Care,Kumari Care Limited,92.64, 17-Jun-2014,
1208,Revenue,CCHD,Home Care - Elderly - South,Other Small Contracts,Kumari Care Limited,3481.72, 30-Jun-2014,
1209,Revenue,CCHD,Home Care - Elderly - North,Other Small Contracts,Kumari Care Limited,864.74, 30-Jun-2014,
1210,Revenue,CCHD,Day Care - South,Private & Voluntary Day Care,Kumari Care Limited,96.5, 30-Jun-2014,
1211,Revenue,CCHD,Home Care - Elderly - South,Other Small Contracts,Kumari Care Limited,3396.8, 30-Jun-2014,
1212,Revenue,CCHD,Home Care - Elderly - North,Other Small Contracts,Kumari Care Limited,864.74, 30-Jun-2014,
1213,Revenue,CCHD,Day Care - South,Private & Voluntary Day Care,Kumari Care Limited,96.5, 30-Jun-2014,
1214,Revenue,CCHD,Under 65s -MH  Home Care Purch,Other Small Contracts,Kumari Care Limited,108.08, 30-Jun-2014,
1215,Revenue,CCHD,Bed purchasing - Phys Dis - North,Permanent Nursing,Leonard Cheshire  National Account Centr,5036.48, 10-Jun-2014,
1216,Revenue,CCHD,Bed purchasing - Phys Dis - North,Permanent Residential,Leonard Cheshire  National Account Centr,2910.92, 10-Jun-2014,
1217,Revenue,CCHD,Bed Purchasing - Under 65s PWLD - South,Permanent Residential,Leonard Cheshire  National Account Centr,3003.72, 10-Jun-2014,
1218,Revenue,CCHD,Bed Purchasing - Elderly - North,Permanent Nursing,Leonard Cheshire  National Account Centr,3520.6, 10-Jun-2014,
1219,Revenue,CCHD,Bed purchasing - Phys Dis - North,Permanent Nursing,Leonard Cheshire  National Account Centr,2764.56, 10-Jun-2014,
1220,Revenue,CCHD,Bed Purchasing - Elderly - North,Permanent Residential,Leonard Cheshire  National Account Centr,3196.52, 10-Jun-2014,
1221,Revenue,CCHD,Bed Purchasing - Elderly - South,Permanent Residential,Leonard Cheshire  National Account Centr,4492.08, 10-Jun-2014,
1222,Revenue,CCHD,Bed purchasing - Phys Dis - North,Permanent Nursing,Leonard Cheshire  National Account Centr,2881.12, 10-Jun-2014,
1223,Revenue,CCHD,Bed purchasing - Phys Dis - North,Permanent Nursing,Leonard Cheshire  National Account Centr,3869.32, 10-Jun-2014,
1224,Revenue,CCHD,Bed purchasing - Phys Dis - North,Permanent Residential,Leonard Cheshire  National Account Centr,2932.64, 10-Jun-2014,
1225,Revenue,CCHD,Bed purchasing - Phys Dis - North,Permanent Nursing,Leonard Cheshire  National Account Centr,4535, 10-Jun-2014,
1226,Revenue,CCHD,Bed purchasing - Phys Dis - North,Permanent Nursing,Leonard Cheshire  National Account Centr,3271.52, 10-Jun-2014,
1227,Revenue,CCHD,Bed purchasing - Phys Dis - North,Permanent Nursing,Leonard Cheshire  National Account Centr,5603.08, 10-Jun-2014,
1228,Revenue,CCHD,Bed Purchasing - Elderly - South,Permanent Nursing,Leonard Cheshire  National Account Centr,2908.6, 10-Jun-2014,
1229,Revenue,CCHD,Bed Purchasing - Southmead Hospital,Permanent Nursing,Leonard Cheshire  National Account Centr,3041.76, 10-Jun-2014,
1230,Revenue,CCHD,South Glos Users in South Glos Homes,Permanent Nursing,Leonard Cheshire  National Account Centr,610.44, 10-Jun-2014,
1231,Revenue,CCHD,Bed purchasing - Phys Dis - North,Permanent Nursing,Leonard Cheshire  National Account Centr,3358.64, 10-Jun-2014,
1232,Revenue,CCHD,Bed purchasing - Phys Dis - North,Permanent Nursing,Leonard Cheshire  National Account Centr,4127.12, 10-Jun-2014,
1233,Revenue,CCHD,Bed Purchasing - Elderly - South,Permanent Nursing,Leonard Cheshire  National Account Centr,4560.88, 10-Jun-2014,
1234,Revenue,CCHD,Bed Purchasing - Elderly S117- North,Permanent Nursing,Leonard Elms Care Home,2891, 10-Jun-2014,
1235,Revenue,CCHD,Bed Purchasing - Elderly - South,Permanent Nursing,Leonard Elms Care Home,1562.76, 10-Jun-2014,
1236,Revenue,CCHD,Bed Purchasing - Frenchay Hospital,Permanent Residential,Little Croft,1268.2, 10-Jun-2014,
1237,Revenue,CCHD,Bed Purchasing - Elderly - South,Permanent Residential,Little Croft,1570.6, 10-Jun-2014,
1238,Revenue,CCHD,Bed Purchasing - Elderly - South,Permanent Residential,Little Croft,1602.64, 10-Jun-2014,
1239,Revenue,CCHD,Bed Purchasing - Elderly - South,Respite Emergency - Residential,Little Croft,2200, 10-Jun-2014,
1240,Revenue,CCHD,Bed Purchasing - Elderly - South,Respite Emergency - Residential,Little Croft,785.71, 10-Jun-2014,
1241,Revenue,CCHD,Bed Purchasing - Southmead Hospital,Permanent Residential,Little Croft,1748.76, 10-Jun-2014,
1242,Revenue,CCHD,Bed Purchasing - Elderly - South,Permanent Residential,Little Croft,1883.48, 10-Jun-2014,
1243,Revenue,CCHD,Bed Purchasing - Frenchay Hospital,Permanent Residential,Little Croft,3478.2, 10-Jun-2014,
1244,Revenue,CCHD,Bed Purchasing - Frenchay Hospital,Permanent Residential,Little Croft,1189.72, 10-Jun-2014,
1245,Revenue,CCHD,Bed Purchasing - Southmead Hospital,Permanent Residential,Little Croft,619.24, 10-Jun-2014,
1246,Revenue,CCHD,Bed Purchasing - Elderly MH - South,Permanent Residential,Little Croft,1181.96, 10-Jun-2014,
1247,Revenue,CCHD,Bed Purchasing - Elderly - South,Permanent Residential,Little Croft,1050.36, 10-Jun-2014,
1248,Revenue,CCHD,Bed Purchasing - Elderly MH - South,Permanent Residential,Little Croft,1633.2, 10-Jun-2014,
1249,Revenue,CCHD,Bed purchasing - Elderly MH - North,Permanent Residential,Little Croft,2458.89, 10-Jun-2014,
1250,Revenue,CCHD,Bed purchasing - Elderly MH - North,Permanent Residential,Little Croft,1405.08, 10-Jun-2014,
1251,Revenue,CCHD,Bed Purchasing - Southmead Hospital,Permanent Residential,Little Croft,1260.2, 10-Jun-2014,
1252,Revenue,CCHD,Bed Purchasing - Elderly - North,Permanent Residential,Little Croft,1367.56, 10-Jun-2014,
1253,Revenue,CCHD,Bed Purchasing - Frenchay Hospital,Respite Planned - Residential,Little Croft,2232.56, 10-Jun-2014,
1254,Revenue,CCHD,Bed Purchasing - Southmead Hospital,Permanent Residential,Little Croft,1260.2, 10-Jun-2014,
1255,Revenue,CCHD,Bed purchasing - Under 65s PWLD - North,Permanent Residential,Littlecroft Residential Homes  Longcroft,6481.28, 10-Jun-2014,
1256,Revenue,CCHD,Home Care - Elderly - North,Other Small Contracts,Lloyds TSB Commercial Finance Limited,6490.95, 16-Jun-2014,
1257,Revenue,CCHD,Day Care - North,Private & Voluntary Day Care,Lloyds TSB Commercial Finance Limited,87.34, 16-Jun-2014,
1258,Revenue,CCHD,Home Care - Elderly - North,Other Small Contracts,Lloyds TSB Commercial Finance Limited,6260.69, 30-Jun-2014,
1259,Revenue,CCHD,Day Care - North,Private & Voluntary Day Care,Lloyds TSB Commercial Finance Limited,95.28, 30-Jun-2014,
1260,Revenue,CCHD,Home Care - Elderly - North,Other Small Contracts,Lloyds TSB Commercial Finance Limited,5859.72, 16-Jun-2014,
1261,Revenue,CCHD,Day Care - North,Private & Voluntary Day Care,Lloyds TSB Commercial Finance Limited,95.28, 16-Jun-2014,
1262,Revenue,CCHD,Home Care - Elderly - North,Other Small Contracts,Lloyds TSB Commercial Finance Limited,5601.67, 30-Jun-2014,
1263,Revenue,CCHD,Day Care - North,Private & Voluntary Day Care,Lloyds TSB Commercial Finance Limited,95.28, 30-Jun-2014,
1264,Revenue,CCHD,Home Care - Elderly - North,Other Small Contracts,Lloyds TSB Commercial Finance Limited,5494.48, 30-Jun-2014,
1265,Revenue,CCHD,Day Care - North,Private & Voluntary Day Care,Lloyds TSB Commercial Finance Limited,91.31, 30-Jun-2014,
1266,Revenue,CCHD,Home Care - Elderly - North,Other Small Contracts,Lloyds TSB Commercial Finance Limited,5494.45, 30-Jun-2014,
1267,Revenue,CCHD,Day Care - North,Private & Voluntary Day Care,Lloyds TSB Commercial Finance Limited,94.8, 30-Jun-2014,
1268,Revenue,CCHD,Supported Living - South,Private & Voluntary Home Care,Lloyds TSB Commercial Finance Limited,10563.52, 20-Jun-2014,
1269,Revenue,CCHD,Supported Living - South,Private & Voluntary Home Care,Lloyds TSB Commercial Finance Limited,3861.7, 20-Jun-2014,
1270,Revenue,CCHD,Supported Living - South,Private & Voluntary Home Care,Lloyds TSB Commercial Finance Limited,3966.62, 20-Jun-2014,
1271,Revenue,CCHD,Supported Living - South,Private & Voluntary Home Care,Lloyds TSB Commercial Finance Limited,3799.63, 20-Jun-2014,
1272,Revenue,CCHD,Supported Living - South,Private & Voluntary Home Care,Lloyds TSB Commercial Finance Limited,9506.62, 20-Jun-2014,
1273,Revenue,CCHD,Supported Living - South,Private & Voluntary Home Care,Lloyds TSB Commercial Finance Limited,3915.01, 20-Jun-2014,
1274,Revenue,CCHD,Supported Living - South,Private & Voluntary Home Care,Lloyds TSB Commercial Finance Limited,8095.42, 20-Jun-2014,
1275,Revenue,CCHD,Supported Living - South,Private & Voluntary Home Care,Lloyds TSB Commercial Finance Limited,3766.09, 20-Jun-2014,
1276,Revenue,CCHD,Supported Living - North,Private & Voluntary Home Care,Lloyds TSB Commercial Finance Limited,9634.54, 20-Jun-2014,
1277,Revenue,CCHD,Supported Living - South,Private & Voluntary Home Care,Lloyds TSB Commercial Finance Limited,4280.58, 20-Jun-2014,
1278,Revenue,CCHD,Supported Living - South,Private & Voluntary Home Care,Lloyds TSB Commercial Finance Limited,3709.24, 20-Jun-2014,
1279,Revenue,CCHD,Supported Living - South,Private & Voluntary Home Care,Lloyds TSB Commercial Finance Limited,3236.99, 20-Jun-2014,
1280,Revenue,CCHD,Supported Living - South,Private & Voluntary Home Care,Lloyds TSB Commercial Finance Limited,6106.63, 20-Jun-2014,
1281,Revenue,CCHD,Supported Living - South,Private & Voluntary Home Care,Lloyds TSB Commercial Finance Limited,3554.65, 20-Jun-2014,
1282,Revenue,CCHD,Supported Living - South,Private & Voluntary Home Care,Lloyds TSB Commercial Finance Limited,3709.81, 20-Jun-2014,
1283,Revenue,CCHD,Supported Living - North,Private & Voluntary Home Care,Lloyds TSB Commercial Finance Limited,8291, 20-Jun-2014,
1284,Revenue,CCHD,Supported Living - South,Private & Voluntary Home Care,Lloyds TSB Commercial Finance Limited,3603.8, 20-Jun-2014,
1285,Revenue,CCHD,Day Care - North,Private & Voluntary Day Care,Lower Kilcott,1466, 10-Jun-2014,
1286,Revenue,CCHD,Day Care - North,Private & Voluntary Day Care,Lower Kilcott,560.64, 10-Jun-2014,
1287,Revenue,CCHD,Bed Purchasing - Southmead Hospital,Permanent Nursing,Majestic 3 Limited,1000.2, 10-Jun-2014,
1288,Revenue,CCHD,Bed Purchasing - Southmead Hospital,Permanent Nursing,Mandeville Grange Nursing Home,2040.08, 10-Jun-2014,
1289,Revenue,CCHD,Bed Purchasing - Southmead Hospital,Permanent Nursing,Mandeville Grange Nursing Home,2040.08, 10-Jun-2014,
1290,Revenue,CCHD,Bed Purchasing - Southmead Hospital,Permanent Nursing,Mandeville Grange Nursing Home,1044.68, 10-Jun-2014,
1291,Revenue,CCHD,Swift Dump Code,Permanent Residential,Mandeville Grange Nursing Home,5794.65, 10-Jun-2014,
1292,Revenue,CCHD,Bed Purchasing - Southmead Hospital,Permanent Nursing,Mandeville Grange Nursing Home,1047.52, 10-Jun-2014,
1293,Revenue,CCHD,Bed Purchasing - Frenchay Hospital,Permanent Residential,Manor Cottage,1032.52, 10-Jun-2014,
1294,Revenue,CCHD,Bed Purchasing - Elderly - South,Permanent Residential,Manor Cottage,1456.52, 10-Jun-2014,
1295,Revenue,CCHD,Bed Purchasing - Southmead Hospital,Permanent Residential,Manor Cottage,1260.2, 10-Jun-2014,
1296,Revenue,CCHD,Bed Purchasing - Elderly - North,Permanent Residential,Manton Hall Residential Home,1521.6, 10-Jun-2014,
1297,Revenue,CCHD,Supported Living - South,Private & Voluntary Home Care,Maples Community Care Limited,3044.4, 06-Jun-2014,
1298,Revenue,CCHD,Section 117 Placements MH Younger,Private & Voluntary Day Care,Maples Community Care Limited,840.75, 06-Jun-2014,
1299,Revenue,CCHD,Section 117 Placements MH Younger,Private & Voluntary Day Care,Maples Community Care Limited,2736.13, 06-Jun-2014,
1300,Revenue,CCHD,Younger MH non-res purchasing,Private & Voluntary Day Care,Maples Community Care Limited,2736.13, 06-Jun-2014,
1301,Revenue,CCHD,Section 117 Placements MH Younger,Private & Voluntary Day Care,Maples Community Care Limited,2736.13, 06-Jun-2014,
1302,Revenue,CCHD,Supported Living - South,Private & Voluntary Home Care,Maples Community Care Limited,17286, 11-Jun-2014,
1303,Revenue,CCHD,Social Lettings Agency,Fees - General,Margaret O`Hara,11.6, 20-Jun-2014,
1304,Revenue,CCHD,Social Lettings Agency,Other Supplies & Services,Margaret O`Hara,655.41, 20-Jun-2014,
1305,Revenue,CCHD,Bed Purchasing - Under 65s PWLD - South,Permanent Residential,Marsden Healthcare Limited,913.72, 06-Jun-2014,
1306,Revenue,CCHD,Bed purchasing - Elderly PWLD - South,Permanent Residential,Marsden Healthcare Limited,3247.8, 06-Jun-2014,
1307,Revenue,CCHD,Bed purchasing - Elderly PWLD - South,Permanent Residential,Marsden Healthcare Limited,1525.64, 06-Jun-2014,
1308,Revenue,CCHD,Bed Purchasing - Elderly - South,Permanent Nursing,Meadow Care Home,1928.88, 10-Jun-2014,
1309,Revenue,CCHD,Home Care - Elderly - South,Other Small Contracts,Mears Care,558.25, 06-Jun-2014,
1310,Revenue,CCHD,Home Care - Elderly - North,Other Small Contracts,Mears Care,4431.35, 06-Jun-2014,
1311,Revenue,CCHD,Day Care - North,Private & Voluntary Day Care,Mears Care,111.65, 06-Jun-2014,
1312,Revenue,CCHD,Under 65s -MH  Home Care Purch,Other Small Contracts,Mears Care,107.8, 06-Jun-2014,
1313,Revenue,CCHD,Home Care - Elderly LD - KH,Private & Voluntary Home Care,Mears Care,53.9, 06-Jun-2014,
1314,Revenue,CCHD,Home Care - Elderly - South,Other Small Contracts,Mears Care,577.5, 12-Jun-2014,
1315,Revenue,CCHD,Home Care - Elderly - North,Other Small Contracts,Mears Care,4527.6, 12-Jun-2014,
1316,Revenue,CCHD,Day Care - North,Private & Voluntary Day Care,Mears Care,146.3, 12-Jun-2014,
1317,Revenue,CCHD,Under 65s -MH  Home Care Purch,Other Small Contracts,Mears Care,115.5, 12-Jun-2014,
1318,Revenue,CCHD,Home Care - Elderly LD - KH,Private & Voluntary Home Care,Mears Care,53.9, 12-Jun-2014,
1319,Revenue,CCHD,Home Care - Elderly - South,Other Small Contracts,Mears Care,573.65, 16-Jun-2014,
1320,Revenue,CCHD,Home Care - Elderly - North,Other Small Contracts,Mears Care,4315.85, 16-Jun-2014,
1321,Revenue,CCHD,Day Care - North,Private & Voluntary Day Care,Mears Care,142.45, 16-Jun-2014,
1322,Revenue,CCHD,Under 65s -MH  Home Care Purch,Other Small Contracts,Mears Care,115.5, 16-Jun-2014,
1323,Revenue,CCHD,Home Care - Elderly LD - KH,Private & Voluntary Home Care,Mears Care,53.9, 16-Jun-2014,
1324,Revenue,CCHD,Home Care - Elderly - South,Other Small Contracts,Mears Care,573.65, 16-Jun-2014,
1325,Revenue,CCHD,Home Care - Elderly - North,Other Small Contracts,Mears Care,4412.1, 16-Jun-2014,
1326,Revenue,CCHD,Day Care - North,Private & Voluntary Day Care,Mears Care,100.1, 16-Jun-2014,
1327,Revenue,CCHD,Under 65s -MH  Home Care Purch,Other Small Contracts,Mears Care,115.5, 16-Jun-2014,
1328,Revenue,CCHD,Home Care - Elderly LD - KH,Private & Voluntary Home Care,Mears Care,53.9, 16-Jun-2014,
1329,Revenue,CCHD,Home Care - Elderly - South,Private & Voluntary Home Care,Mears Care,48544, 27-Jun-2014,
1330,Revenue,CCHD,Alexandra Way,Prop.Serv. General Repairs,Mechanical Engineering Svcs (Avon) Ltd,638, 16-Jun-2014,
1331,Revenue,CCHD,Home Care - Elderly - South,Other Small Contracts,Medacs Home Care,252, 16-Jun-2014,
1332,Revenue,CCHD,Home Care - Elderly - North,Other Small Contracts,Medacs Home Care,629.7, 16-Jun-2014,
1333,Revenue,CCHD,Home care - Elderly MH - North,Other Small Contracts,Medacs Home Care,91, 16-Jun-2014,
1334,Revenue,CCHD,Home Care - Elderly - South,Other Small Contracts,Medacs Home Care,224, 30-Jun-2014,
1335,Revenue,CCHD,Home Care - Elderly - North,Other Small Contracts,Medacs Home Care,640.2, 30-Jun-2014,
1336,Revenue,CCHD,Home care - Elderly MH - North,Other Small Contracts,Medacs Home Care,91, 30-Jun-2014,
1337,Revenue,CCHD,Home Care - Elderly - South,Other Small Contracts,Medacs Home Care,224, 30-Jun-2014,
1338,Revenue,CCHD,Home Care - Elderly - North,Other Small Contracts,Medacs Home Care,608.7, 30-Jun-2014,
1339,Revenue,CCHD,Home care - Elderly MH - North,Other Small Contracts,Medacs Home Care,91, 30-Jun-2014,
1340,Revenue,CCHD,Home Care - Elderly - South,Other Small Contracts,Medacs Home Care,238, 30-Jun-2014,
1341,Revenue,CCHD,Home Care - Elderly - North,Other Small Contracts,Medacs Home Care,598.2, 30-Jun-2014,
1342,Revenue,CCHD,Home care - Elderly MH - North,Other Small Contracts,Medacs Home Care,87.5, 30-Jun-2014,
1343,Revenue,CCHD,NRS Contract,Daily Living Equipment,Medequip Assistive Technology Ltd,6000, 10-Jun-2014,
1344,Revenue,CCHD,NRS Contract,Daily Living Equipment,Medequip Assistive Technology Ltd,42763.61, 13-Jun-2014,
1345,Revenue,CCHD,NRS Contract,Daily Living Equipment,Medequip Assistive Technology Ltd,94377.19, 13-Jun-2014,
1346,Revenue,CCHD,Bed Purchasing - Under 65s PWLD - South,Permanent Residential,Mencap,2252.48, 10-Jun-2014,
1347,Revenue,CCHD,Supported Living (S28a) South,Private & Voluntary Home Care,Mencap - PS Central & Cymru,3786.86, 23-Jun-2014,
1348,Revenue,CCHD,Supported Living (S28a) South,Private & Voluntary Home Care,Mencap - PS Central & Cymru,3786.86, 23-Jun-2014,
1349,Revenue,CCHD,Intermediate Care Accommodation,Other Supplies & Services,Merlin Housing Society,613.91, 09-Jun-2014,
1350,Revenue,CCHD,Intermediate Care Accommodation,Other Supplies & Services,Merlin Housing Society,491.12, 24-Jun-2014,
1351,Revenue,CCHD,Intermediate Care Accommodation,Other Supplies & Services,Merlin Housing Society,1212.41, 24-Jun-2014,
1352,Revenue,CCHD,Intermediate Care Accommodation,Other Supplies & Services,Merlin Housing Society,1212.41, 24-Jun-2014,
1353,Revenue,CCHD,Home Care - Elderly - South,Other Small Contracts,MiHomecare,578.55, 17-Jun-2014,
1354,Revenue,CCHD,Home Care - Elderly - North,Other Small Contracts,MiHomecare,2514.27, 17-Jun-2014,
1355,Revenue,CCHD,Home Care - Elderly - South,Other Small Contracts,MiHomecare,554.61, 10-Jun-2014,
1356,Revenue,CCHD,Home Care - Elderly - North,Other Small Contracts,MiHomecare,2502.3, 10-Jun-2014,
1357,Revenue,CCHD,Home Care - Elderly - South,Other Small Contracts,MiHomecare,558.6, 10-Jun-2014,
1358,Revenue,CCHD,Home Care - Elderly - North,Other Small Contracts,MiHomecare,1756.17, 10-Jun-2014,
1359,Revenue,CCHD,Home Care - Elderly - South,Other Small Contracts,MiHomecare,546.63, 17-Jun-2014,
1360,Revenue,CCHD,Home Care - Elderly - North,Other Small Contracts,MiHomecare,1843.95, 17-Jun-2014,
1361,Revenue,CCHD,Home Care - Elderly - South,Other Small Contracts,MiHomecare,575.1, 03-Jun-2014,
1362,Revenue,CCHD,Home Care - Elderly - North,Other Small Contracts,MiHomecare,1818.24, 03-Jun-2014,
1363,Revenue,CCHD,Home Care - Elderly - South,Other Small Contracts,MiHomecare,554.85, 03-Jun-2014,
1364,Revenue,CCHD,Home Care - Elderly - North,Other Small Contracts,MiHomecare,1765.59, 03-Jun-2014,
1365,Revenue,CCHD,Home Care - Elderly - South,Other Small Contracts,MiHomecare,538.65, 17-Jun-2014,
1366,Revenue,CCHD,Home Care - Elderly - North,Other Small Contracts,MiHomecare,1834.44, 17-Jun-2014,
1367,Revenue,CCHD,Home Care - Elderly - South,Other Small Contracts,MiHomecare,558.9, 30-Jun-2014,
1368,Revenue,CCHD,Home Care - Elderly - North,Other Small Contracts,MiHomecare,1826.34, 30-Jun-2014,
1369,Revenue,CCHD,Home Care - Elderly - South,Other Small Contracts,MiHomecare,571.05, 30-Jun-2014,
1370,Revenue,CCHD,Home Care - Elderly - North,Other Small Contracts,MiHomecare,1854.69, 30-Jun-2014,
1371,Revenue,CCHD,Home Care - Elderly - South,Other Small Contracts,MiHomecare,461.7, 30-Jun-2014,
1372,Revenue,CCHD,Home Care - Elderly - North,Other Small Contracts,MiHomecare,1838.49, 30-Jun-2014,
1373,Revenue,CCHD,Bed Purchasing - Frenchay Hospital,Permanent Residential,Milburn Finance,1055.44, 10-Jun-2014,
1374,Revenue,CCHD,Home Care - Elderly - South,Other Small Contracts,Milestones Homecare & Dementia Service,1346.36, 17-Jun-2014,
1375,Revenue,CCHD,Home Care - Elderly - North,Other Small Contracts,Milestones Homecare & Dementia Service,2172.8, 17-Jun-2014,
1376,Revenue,CCHD,Home care - Elderly MH - North,Other Small Contracts,Milestones Homecare & Dementia Service,58.2, 17-Jun-2014,
1377,Revenue,CCHD,Supported Living (S28a) South,Private & Voluntary Home Care,Milestones Trust,652.37, 26-Jun-2014,
1378,Revenue,CCHD,Supported Living - South,Private & Voluntary Home Care,Milestones Trust,946.45, 25-Jun-2014,
1379,Revenue,CCHD,Supported Living (S28a) North,Private & Voluntary Home Care,Milestones Trust,3638.05, 10-Jun-2014,
1380,Revenue,CCHD,Supported Living (S28a) North,Private & Voluntary Home Care,Milestones Trust,3638.05, 10-Jun-2014,
1381,Revenue,CCHD,Supported Living (S28a) North,Private & Voluntary Home Care,Milestones Trust,4381, 10-Jun-2014,
1382,Revenue,CCHD,Elderly MH Day Care North,Private & Voluntary Day Care,Milestones Trust,708.39, 10-Jun-2014,
1383,Revenue,CCHD,Purchase of Non-Res Care - South,Private & Voluntary Day Care,Milestones Trust,564.12, 13-Jun-2014,
1384,Revenue,CCHD,Supported Living (S28a) South,Private & Voluntary Home Care,Milestones Trust,6443.36, 23-Jun-2014,
1385,Revenue,CCHD,Supported Living - South,Private & Voluntary Home Care,Milestones Trust,1292.28, 13-Jun-2014,
1386,Revenue,CCHD,Supported Living - South,Private & Voluntary Home Care,Milestones Trust,512.96, 13-Jun-2014,
1387,Revenue,CCHD,Supported Living - North,Private & Voluntary Home Care,Milestones Trust,501.23, 16-Jun-2014,
1388,Revenue,CCHD,Supported Living (S28a) South,Private & Voluntary Home Care,Milestones Trust,628.59, 23-Jun-2014,
1389,Revenue,CCHD,Supported Living - South,Private & Voluntary Home Care,Milestones Trust,511.36, 13-Jun-2014,
1390,Revenue,CCHD,Supported Living (S28a) North,Private & Voluntary Home Care,Milestones Trust,3888.78, 23-Jun-2014,
1391,Revenue,CCHD,Supported Living (S28a) North,Private & Voluntary Home Care,Milestones Trust,4302.42, 23-Jun-2014,
1392,Revenue,CCHD,Supported Living (S28a) North,Private & Voluntary Home Care,Milestones Trust,1198.76, 23-Jun-2014,
1393,Revenue,CCHD,Supported Living (S28a) North,Private & Voluntary Home Care,Milestones Trust,4302.42, 23-Jun-2014,
1394,Revenue,CCHD,Supported Living - South,Private & Voluntary Home Care,Milestones Trust,825.22, 13-Jun-2014,
1395,Revenue,CCHD,Supported Living (S28a) South,Private & Voluntary Home Care,Milestones Trust,1457.84, 23-Jun-2014,
1396,Revenue,CCHD,Supported Living (S28a) South,Private & Voluntary Home Care,Milestones Trust,3586.46, 25-Jun-2014,
1397,Revenue,CCHD,Supported Living (S28a) South,Private & Voluntary Home Care,Milestones Trust,3231.99, 25-Jun-2014,
1398,Revenue,CCHD,Supported Living - South,Private & Voluntary Home Care,Milestones Trust,3039.87, 13-Jun-2014,
1399,Revenue,CCHD,Supported Living (S28a) South,Private & Voluntary Home Care,Milestones Trust,3743.46, 23-Jun-2014,
1400,Revenue,CCHD,Supported Living - North,Private & Voluntary Home Care,Milestones Trust,5630.56, 16-Jun-2014,
1401,Revenue,CCHD,Supported Living - South,Private & Voluntary Home Care,Milestones Trust,1754.9, 13-Jun-2014,
1402,Revenue,CCHD,Supported Living - South,Private & Voluntary Home Care,Milestones Trust,664, 13-Jun-2014,
1403,Revenue,CCHD,Supported Living - South,Private & Voluntary Home Care,Milestones Trust,1924.68, 13-Jun-2014,
1404,Revenue,CCHD,Supported Living - South,Private & Voluntary Home Care,Milestones Trust,618.55, 13-Jun-2014,
1405,Revenue,CCHD,Supported Living - South,Private & Voluntary Home Care,Milestones Trust,603.3, 13-Jun-2014,
1406,Revenue,CCHD,Supported Living (S28a) South,Private & Voluntary Home Care,Milestones Trust,586.36, 25-Jun-2014,
1407,Revenue,CCHD,Supported Living - South,Private & Voluntary Home Care,Milestones Trust,3516.96, 13-Jun-2014,
1408,Revenue,CCHD,Supported Living - South,Private & Voluntary Home Care,Milestones Trust,2189.79, 13-Jun-2014,
1409,Revenue,CCHD,Supported Living - South,Private & Voluntary Home Care,Milestones Trust,3663.5, 13-Jun-2014,
1410,Revenue,CCHD,Supported Living - South,Private & Voluntary Home Care,Milestones Trust,5275.44, 13-Jun-2014,
1411,Revenue,CCHD,Supported Living - North,Private & Voluntary Home Care,Milestones Trust,1296.2, 20-Jun-2014,
1412,Revenue,CCHD,Supported Living (S28a) North,Private & Voluntary Home Care,Milestones Trust,1234.01, 23-Jun-2014,
1413,Revenue,CCHD,Supported Living - South,Private & Voluntary Home Care,Milestones Trust,3531.6, 23-Jun-2014,
1414,Revenue,CCHD,Supported Living - South,Private & Voluntary Home Care,Milestones Trust,2207.49, 23-Jun-2014,
1415,Revenue,CCHD,Supported Living - South,Private & Voluntary Home Care,Milestones Trust,3678.75, 23-Jun-2014,
1416,Revenue,CCHD,Supported Living - South,Private & Voluntary Home Care,Milestones Trust,5297.4, 23-Jun-2014,
1417,Revenue,CCHD,Purchase of Non-Res Care - South,Private & Voluntary Day Care,Milestones Trust,658.14, 25-Jun-2014,
1418,Revenue,CCHD,Supported Living (S28a) South,Private & Voluntary Home Care,Milestones Trust,6658.14, 26-Jun-2014,
1419,Revenue,CCHD,Supported Living - South,Private & Voluntary Home Care,Milestones Trust,1206.31, 25-Jun-2014,
1420,Revenue,CCHD,Supported Living - South,Private & Voluntary Home Care,Milestones Trust,592.9, 25-Jun-2014,
1421,Revenue,CCHD,Supported Living (S28a) South,Private & Voluntary Home Care,Milestones Trust,1470.59, 26-Jun-2014,
1422,Revenue,CCHD,Supported Living - South,Private & Voluntary Home Care,Milestones Trust,1861.41, 25-Jun-2014,
1423,Revenue,CCHD,Supported Living - South,Private & Voluntary Home Care,Milestones Trust,664, 25-Jun-2014,
1424,Revenue,CCHD,Supported Living - South,Private & Voluntary Home Care,Milestones Trust,1436.59, 25-Jun-2014,
1425,Revenue,CCHD,Supported Living - South,Private & Voluntary Home Care,Milestones Trust,668.03, 25-Jun-2014,
1426,Revenue,CCHD,Supported Living - South,Private & Voluntary Home Care,Milestones Trust,622.88, 25-Jun-2014,
1427,Revenue,CCHD,Supported Living (S28a) South,Private & Voluntary Home Care,Milestones Trust,559.8, 26-Jun-2014,
1428,Revenue,CCHD,Supported Living (S28a) South,Private & Voluntary Home Care,Milestones Trust,3735.91, 26-Jun-2014,
1429,Revenue,CCHD,Supported Living (S28a) South,Private & Voluntary Home Care,Milestones Trust,3445.51, 26-Jun-2014,
1430,Revenue,CCHD,Supported Living - South,Private & Voluntary Home Care,Milestones Trust,3252.86, 25-Jun-2014,
1431,Revenue,CCHD,Supported Living (S28a) South,Private & Voluntary Home Care,Milestones Trust,3889.95, 26-Jun-2014,
1432,Revenue,CCHD,Tenancy Start Up Scheme,Other Supplies & Services,Miss S Binstead,750, 11-Jun-2014,
1433,Revenue,CCHD,Tenancy Start Up Scheme,Other Supplies & Services,Miss S Binstead,750, 12-Jun-2014,
1434,Revenue,CCHD,SLA Grants - Support Serv,Grants to Voluntary Bodies,Mo Dymond Support Groups,500, 30-Jun-2014,
1435,Revenue,CCHD,SLA Grants - Support Serv,Grants to Voluntary Bodies,Mo Dymond Support Groups,500, 30-Jun-2014,
1436,Revenue,CCHD,SLA Grants - Support Serv,Grants to Voluntary Bodies,Mo Dymond Support Groups,500, 30-Jun-2014,
1437,Revenue,CCHD,Bed Purchasing - Frenchay Hospital,Permanent Residential,Mostyn Lodge Residential Home,1133.48, 10-Jun-2014,
1438,Revenue,CCHD,Social Lettings Agency,Fees - General,Mr & Mrs Howson,10, 06-Jun-2014,
1439,Revenue,CCHD,Social Lettings Agency,Other Supplies & Services,Mr & Mrs Howson,565, 06-Jun-2014,
1440,Revenue,CCHD,Social Lettings Agency,Fees - General,Mr & Mrs Howson,10, 18-Jun-2014,
1441,Revenue,CCHD,Social Lettings Agency,Other Supplies & Services,Mr & Mrs Howson,565, 18-Jun-2014,
1442,Revenue,CCHD,Social Lettings Agency,Fees - General,Mr & Mrs R Meredith,10, 20-Jun-2014,
1443,Revenue,CCHD,Social Lettings Agency,Other Supplies & Services,Mr & Mrs R Meredith,565, 20-Jun-2014,
1444,Revenue,CCHD,Social Lettings Agency,Fees - General,Mr & Mrs R Meredith,8.6, 20-Jun-2014,
1445,Revenue,CCHD,Social Lettings Agency,Other Supplies & Services,Mr & Mrs R Meredith,582, 20-Jun-2014,
1446,Revenue,CCHD,Homeless - Private Sector Leasing,Other Supplies & Services,Mr D G & Mrs L K Jenkins,565, 23-Jun-2014,
1447,Revenue,CCHD,Social Lettings Agency,Fees - General,Mr F E & Mrs M Rogers,11.71, 02-Jun-2014,
1448,Revenue,CCHD,Social Lettings Agency,Other Supplies & Services,Mr F E & Mrs M Rogers,661.96, 02-Jun-2014,
1449,Revenue,CCHD,Social Lettings Agency,Fees - General,Mr Jack Davis,10, 06-Jun-2014,
1450,Revenue,CCHD,Social Lettings Agency,Other Supplies & Services,Mr Jack Davis,565, 06-Jun-2014,
1451,Revenue,CCHD,Tenancy Start Up Scheme,Other Supplies & Services,Mr M A Chowdhury,1290, 19-Jun-2014,
1452,Revenue,CCHD,Social Lettings Agency,Fees - General,Mr Noel Hudson,11.2, 20-Jun-2014,
1453,Revenue,CCHD,Social Lettings Agency,Other Supplies & Services,Mr Noel Hudson,632.81, 20-Jun-2014,
1454,Revenue,CCHD,Social Lettings Agency,Fees - General,Mr Rakesh Harji,8.7, 16-Jun-2014,
1455,Revenue,CCHD,Social Lettings Agency,Other Supplies & Services,Mr Rakesh Harji,672.8, 16-Jun-2014,
1456,Revenue,CCHD,Social Lettings Agency,Fees - General,Mr Shaun Street,10, 30-Jun-2014,
1457,Revenue,CCHD,Social Lettings Agency,Other Supplies & Services,Mr Shaun Street,565, 30-Jun-2014,
1458,Revenue,CCHD,Social Lettings Agency,Fees - General,Mr Stephen O`Keefe,7.5, 05-Jun-2014,
1459,Revenue,CCHD,Social Lettings Agency,Other Supplies & Services,Mr Stephen O`Keefe,587.25, 05-Jun-2014,
1460,Revenue,CCHD,Home Care - Elderly - South,Other Small Contracts,Mrs B Kimber -  CM2000,10897.76, 30-Jun-2014,
1461,Revenue,CCHD,Home Care - Elderly - North,Other Small Contracts,Mrs B Kimber -  CM2000,5597.82, 30-Jun-2014,
1462,Revenue,CCHD,Day Care - South,Private & Voluntary Day Care,Mrs B Kimber -  CM2000,493.2, 30-Jun-2014,
1463,Revenue,CCHD,Day Care - North,Private & Voluntary Day Care,Mrs B Kimber -  CM2000,32.88, 30-Jun-2014,
1464,Revenue,CCHD,Under 65s -MH  Home Care Purch,Other Small Contracts,Mrs B Kimber -  CM2000,65.76, 30-Jun-2014,
1465,Revenue,CCHD,Elderly MH Day Care North,Private & Voluntary Day Care,Mrs B Kimber -  CM2000,49.32, 30-Jun-2014,
1466,Revenue,CCHD,Home Care - Elderly - South,Other Small Contracts,Mrs B Kimber -  CM2000,11043.26, 30-Jun-2014,
1467,Revenue,CCHD,Home Care - Elderly - North,Other Small Contracts,Mrs B Kimber -  CM2000,5601.93, 30-Jun-2014,
1468,Revenue,CCHD,Day Care - South,Private & Voluntary Day Care,Mrs B Kimber -  CM2000,460.32, 30-Jun-2014,
1469,Revenue,CCHD,Under 65s -MH  Home Care Purch,Other Small Contracts,Mrs B Kimber -  CM2000,65.76, 30-Jun-2014,
1470,Revenue,CCHD,Elderly MH Day Care North,Private & Voluntary Day Care,Mrs B Kimber -  CM2000,98.64, 30-Jun-2014,
1471,Revenue,CCHD,Home Care - Elderly - South,Other Small Contracts,Mrs B Kimber -  CM2000,10898.75, 30-Jun-2014,
1472,Revenue,CCHD,Home Care - Elderly - North,Other Small Contracts,Mrs B Kimber -  CM2000,5310.12, 30-Jun-2014,
1473,Revenue,CCHD,Day Care - South,Private & Voluntary Day Care,Mrs B Kimber -  CM2000,493.2, 30-Jun-2014,
1474,Revenue,CCHD,Day Care - North,Private & Voluntary Day Care,Mrs B Kimber -  CM2000,32.88, 30-Jun-2014,
1475,Revenue,CCHD,Under 65s -MH  Home Care Purch,Other Small Contracts,Mrs B Kimber -  CM2000,65.76, 30-Jun-2014,
1476,Revenue,CCHD,Elderly MH Day Care North,Private & Voluntary Day Care,Mrs B Kimber -  CM2000,49.32, 30-Jun-2014,
1477,Revenue,CCHD,Home Care - Elderly - South,Other Small Contracts,Mrs B Kimber -  CM2000,11017.28, 30-Jun-2014,
1478,Revenue,CCHD,Home Care - Elderly - North,Other Small Contracts,Mrs B Kimber -  CM2000,5343, 30-Jun-2014,
1479,Revenue,CCHD,Day Care - South,Private & Voluntary Day Care,Mrs B Kimber -  CM2000,460.32, 30-Jun-2014,
1480,Revenue,CCHD,Day Care - North,Private & Voluntary Day Care,Mrs B Kimber -  CM2000,98.64, 30-Jun-2014,
1481,Revenue,CCHD,Under 65s -MH  Home Care Purch,Other Small Contracts,Mrs B Kimber -  CM2000,65.76, 30-Jun-2014,
1482,Revenue,CCHD,Elderly MH Day Care North,Private & Voluntary Day Care,Mrs B Kimber -  CM2000,98.64, 30-Jun-2014,
1483,Revenue,CCHD,Home Care - Elderly - South,Other Small Contracts,Mrs B Kimber -  CM2000,10697.03, 30-Jun-2014,
1484,Revenue,CCHD,Home Care - Elderly - North,Other Small Contracts,Mrs B Kimber -  CM2000,5170.38, 30-Jun-2014,
1485,Revenue,CCHD,Day Care - South,Private & Voluntary Day Care,Mrs B Kimber -  CM2000,493.2, 30-Jun-2014,
1486,Revenue,CCHD,Day Care - North,Private & Voluntary Day Care,Mrs B Kimber -  CM2000,32.88, 30-Jun-2014,
1487,Revenue,CCHD,Under 65s -MH  Home Care Purch,Other Small Contracts,Mrs B Kimber -  CM2000,65.76, 30-Jun-2014,
1488,Revenue,CCHD,Elderly MH Day Care North,Private & Voluntary Day Care,Mrs B Kimber -  CM2000,98.64, 30-Jun-2014,
1489,Revenue,CCHD,Social Lettings Agency,Fees - General,Mrs Caroline Isaac,10, 17-Jun-2014,
1490,Revenue,CCHD,Social Lettings Agency,Other Supplies & Services,Mrs Caroline Isaac,565, 17-Jun-2014,
1491,Revenue,CCHD,Social Lettings Agency,Fees - General,Mrs Elaine Turner,10, 13-Jun-2014,
1492,Revenue,CCHD,Social Lettings Agency,Other Supplies & Services,Mrs Elaine Turner,565, 13-Jun-2014,
1493,Revenue,CCHD,Social Lettings Agency,Fees - General,Mrs F Wilkins,10, 24-Jun-2014,
1494,Revenue,CCHD,Social Lettings Agency,Other Supplies & Services,Mrs F Wilkins,565, 24-Jun-2014,
1495,Revenue,CCHD,Supported Living - North,Permanent Residential,Mrs I M Bowerman,1518.94, 11-Jun-2014,
1496,Revenue,CCHD,Social Lettings Agency,Fees - General,Mrs Irene Skeates,10, 12-Jun-2014,
1497,Revenue,CCHD,Social Lettings Agency,Other Supplies & Services,Mrs Irene Skeates,565, 12-Jun-2014,
1498,Revenue,CCHD,Tenancy Start Up Scheme,Other Supplies & Services,Mrs J A Scaplehorn,1250, 17-Jun-2014,
1499,Revenue,CCHD,Supported Living - North,Permanent Residential,Mrs Julie Taylor,1120.33, 11-Jun-2014,
1500,Revenue,CCHD,Social Lettings Agency,Fees - General,Mrs Vicki MacDonald,11.6, 16-Jun-2014,
1501,Revenue,CCHD,Social Lettings Agency,Other Supplies & Services,Mrs Vicki MacDonald,655.41, 16-Jun-2014,
1502,Revenue,CCHD,Social Lettings Agency,Fees - General,Mrs Y C & Mrs E Turner,10, 06-Jun-2014,
1503,Revenue,CCHD,Social Lettings Agency,Other Supplies & Services,Mrs Y C & Mrs E Turner,565, 06-Jun-2014,
1504,Revenue,CCHD,Social Lettings Agency,Fees - General,Ms Ann Hunt,15.53, 11-Jun-2014,
1505,Revenue,CCHD,Social Lettings Agency,Other Supplies & Services,Ms Ann Hunt,877.68, 11-Jun-2014,
1506,Revenue,CCHD,Learning Difficulties Development Fund,Other Supplies & Services,MultiMe Ltd,2313, 30-Jun-2014,
1507,Revenue,CCHD,Alexandra Way,Cleaning & Domestic Services,Muzzell Healthcare,482.35, 27-Jun-2014,
1508,Revenue,CCHD,Day Care - North,Private & Voluntary Day Care,NAS Services Limited,725.8, 04-Jun-2014,
1509,Revenue,CCHD,Younger MH non-res purchasing,Private & Voluntary Day Care,NAS Services Limited,718.65, 19-Jun-2014,
1510,Revenue,CCHD,Day Care - South,Private & Voluntary Day Care,NAS Services Limited,603.3, 24-Jun-2014,
1511,Revenue,CCHD,Younger MH non-res purchasing,Private & Voluntary Day Care,NAS Services Limited,520.56, 19-Jun-2014,
1512,Revenue,CCHD,Day Care - South,Private & Voluntary Day Care,NAS Services Limited,868.4, 24-Jun-2014,
1513,Revenue,CCHD,Younger MH non-res purchasing,Private & Voluntary Day Care,NAS Services Limited,792, 19-Jun-2014,
1514,Revenue,CCHD,General EPH budgets,Routine Security Costs,National Security Group,1659, 30-Jun-2014,
1515,Revenue,CCHD,Drug/Alcohol Residential Rehab,Security Systems,National Security Group,21.67, 20-Jun-2014,
1516,Revenue,CCHD,Bed Purchasing - Under 65s PWLD - South,Permanent Residential,National Star College,4615.04, 10-Jun-2014,
1517,Revenue,CCHD,Home Care - Elderly - South,Other Small Contracts,Nestor T/A Allied Healthcare,3002, 16-Jun-2014,
1518,Revenue,CCHD,Home Care - Elderly - North,Other Small Contracts,Nestor T/A Allied Healthcare,8298, 16-Jun-2014,
1519,Revenue,CCHD,Day Care - North,Private & Voluntary Day Care,Nestor T/A Allied Healthcare,281.2, 16-Jun-2014,
1520,Revenue,CCHD,Home care - Elderly MH - North,Other Small Contracts,Nestor T/A Allied Healthcare,53.2, 16-Jun-2014,
1521,Revenue,CCHD,Home Care - Elderly - South,Other Small Contracts,Nestor T/A Allied Healthcare,3499.8, 12-Jun-2014,
1522,Revenue,CCHD,Home Care - Elderly - North,Other Small Contracts,Nestor T/A Allied Healthcare,8354.1, 12-Jun-2014,
1523,Revenue,CCHD,Day Care - North,Private & Voluntary Day Care,Nestor T/A Allied Healthcare,273.6, 12-Jun-2014,
1524,Revenue,CCHD,Home care - Elderly MH - North,Other Small Contracts,Nestor T/A Allied Healthcare,45.6, 12-Jun-2014,
1525,Revenue,CCHD,Home Care - Elderly - South,Other Small Contracts,Nestor T/A Allied Healthcare,3062.8, 12-Jun-2014,
1526,Revenue,CCHD,Home Care - Elderly - North,Other Small Contracts,Nestor T/A Allied Healthcare,8454.2, 12-Jun-2014,
1527,Revenue,CCHD,Day Care - North,Private & Voluntary Day Care,Nestor T/A Allied Healthcare,266, 12-Jun-2014,
1528,Revenue,CCHD,Home care - Elderly MH - North,Other Small Contracts,Nestor T/A Allied Healthcare,53.2, 12-Jun-2014,
1529,Revenue,CCHD,Home Care - Elderly - South,Other Small Contracts,Nestor T/A Allied Healthcare,2808.2, 30-Jun-2014,
1530,Revenue,CCHD,Home Care - Elderly - North,Other Small Contracts,Nestor T/A Allied Healthcare,8484.61, 30-Jun-2014,
1531,Revenue,CCHD,Day Care - North,Private & Voluntary Day Care,Nestor T/A Allied Healthcare,182.4, 30-Jun-2014,
1532,Revenue,CCHD,Home care - Elderly MH - North,Other Small Contracts,Nestor T/A Allied Healthcare,49.4, 30-Jun-2014,
1533,Revenue,CCHD,Home Care - Elderly - South,Other Small Contracts,Nestor T/A Allied Healthcare,2701.8, 30-Jun-2014,
1534,Revenue,CCHD,Home Care - Elderly - North,Private & Voluntary Day Care,Nestor T/A Allied Healthcare,22.8, 30-Jun-2014,
1535,Revenue,CCHD,Home Care - Elderly - North,Other Small Contracts,Nestor T/A Allied Healthcare,8624.31, 30-Jun-2014,
1536,Revenue,CCHD,Day Care - North,Private & Voluntary Day Care,Nestor T/A Allied Healthcare,224.2, 30-Jun-2014,
1537,Revenue,CCHD,Home care - Elderly MH - North,Other Small Contracts,Nestor T/A Allied Healthcare,45.6, 30-Jun-2014,
1538,Revenue,CCHD,Home Care - Elderly - South,Other Small Contracts,Nestor T/A Allied Healthcare,3225.4, 30-Jun-2014,
1539,Revenue,CCHD,Home Care - Elderly - North,Private & Voluntary Day Care,Nestor T/A Allied Healthcare,45.6, 30-Jun-2014,
1540,Revenue,CCHD,Home Care - Elderly - North,Other Small Contracts,Nestor T/A Allied Healthcare,8684.22, 30-Jun-2014,
1541,Revenue,CCHD,Day Care - North,Private & Voluntary Day Care,Nestor T/A Allied Healthcare,224.2, 30-Jun-2014,
1542,Revenue,CCHD,Home care - Elderly MH - North,Other Small Contracts,Nestor T/A Allied Healthcare,53.2, 30-Jun-2014,
1543,Revenue,CCHD,Home Care - Elderly - South,Other Small Contracts,Nestor T/A Allied Healthcare,3287, 30-Jun-2014,
1544,Revenue,CCHD,Home Care - Elderly - North,Private & Voluntary Day Care,Nestor T/A Allied Healthcare,45.6, 30-Jun-2014,
1545,Revenue,CCHD,Home Care - Elderly - North,Other Small Contracts,Nestor T/A Allied Healthcare,8249.01, 30-Jun-2014,
1546,Revenue,CCHD,Day Care - North,Private & Voluntary Day Care,Nestor T/A Allied Healthcare,231.8, 30-Jun-2014,
1547,Revenue,CCHD,Home care - Elderly MH - North,Other Small Contracts,Nestor T/A Allied Healthcare,49.4, 30-Jun-2014,
1548,Revenue,CCHD,Home Care - Elderly - South,Other Small Contracts,Network Health & Social Care,635.78, 30-Jun-2014,
1549,Revenue,CCHD,Home Care - Elderly - North,Other Small Contracts,Network Health & Social Care,4956.02, 30-Jun-2014,
1550,Revenue,CCHD,Home Care - Elderly - South,Other Small Contracts,Network Health & Social Care,639.61, 30-Jun-2014,
1551,Revenue,CCHD,Home Care - Elderly - North,Other Small Contracts,Network Health & Social Care,4756.86, 30-Jun-2014,
1552,Revenue,CCHD,Home Care - Elderly - South,Other Small Contracts,Network Health & Social Care,536.2, 30-Jun-2014,
1553,Revenue,CCHD,Home Care - Elderly - North,Other Small Contracts,Network Health & Social Care,4098.1, 30-Jun-2014,
1554,Revenue,CCHD,Social Lettings Agency,Fees - General,Neville James,10, 04-Jun-2014,
1555,Revenue,CCHD,Social Lettings Agency,Other Supplies & Services,Neville James,565, 04-Jun-2014,
1556,Revenue,CCHD,Access Team,"Holidays, Outings & Visits",Neville Williams,1022, 23-Jun-2014,
1557,Revenue,CCHD,Community Promoting Independence Team,"Holidays, Outings & Visits",Neville Williams,1006, 05-Jun-2014,
1558,Revenue,CCHD,SLA Grants - Support Serv,Grants to Voluntary Bodies,NHS South Gloucestershire CCG,15000, 17-Jun-2014,
1559,Revenue,CCHD,Learning Difficulties Development Fund,Other Supplies & Services,NHS South Gloucestershire CCG,500, 13-Jun-2014,
1560,Revenue,CCHD,"Strategy, Advice and Public Protection",Other Supplies & Services,NHS South West CSU,1900.25, 13-Jun-2014,
1561,Revenue,CCHD,Bed Purchasing - Under 65s PWLD - South,Permanent Residential,Nightingale Nursing Home,3151.8, 10-Jun-2014,
1562,Revenue,CCHD,Sexual Health,Other Supplies & Services,Northville Family Practice,619.42, 16-Jun-2014,
1563,Revenue,CCHD,Bed Purchasing - Under 65s PWLD - South,Permanent Residential,Norwood   Broadway House,4972.4, 10-Jun-2014,
1564,Revenue,CCHD,Bed Purchasing - Elderly MH - South,Permanent Residential,Notaro Homes Ltd  Queensmead Court,1884.8, 10-Jun-2014,
1565,Revenue,CCHD,Bed Purchasing - Southmead Hospital,Permanent Residential,Notaro Homes Ltd  Queensmead Court,1389, 10-Jun-2014,
1566,Revenue,CCHD,Bed Purchasing - Elderly - South,Permanent Residential,Nova House Care Home,949.92, 10-Jun-2014,
1567,Revenue,CCHD,Woodleaze,Agency Staff (Admin/Support Staff) Pay,Nurse Plus and Carer Plus (UK) Limited,1173.28, 06-Jun-2014,
1568,Revenue,CCHD,Woodleaze,Agency Staff (Admin/Support Staff) Pay,Nurse Plus and Carer Plus (UK) Limited,1131.01, 06-Jun-2014,
1569,Revenue,CCHD,Woodleaze,Agency Staff (Admin/Support Staff) Pay,Nurse Plus and Carer Plus (UK) Limited,1177.5, 11-Jun-2014,
1570,Revenue,CCHD,Woodleaze,Agency Staff (Admin/Support Staff) Pay,Nurse Plus and Carer Plus (UK) Limited,1190.57, 19-Jun-2014,
1571,Revenue,CCHD,Home Care - Elderly - South,Other Small Contracts,Nursing Solutions Limited,3343.76, 12-Jun-2014,
1572,Revenue,CCHD,Home Care - Elderly - North,Other Small Contracts,Nursing Solutions Limited,709.52, 12-Jun-2014,
1573,Revenue,CCHD,Home Care - Elderly - South,Other Small Contracts,Nursing Solutions Limited,3379.04, 12-Jun-2014,
1574,Revenue,CCHD,Home Care - Elderly - North,Other Small Contracts,Nursing Solutions Limited,631.12, 12-Jun-2014,
1575,Revenue,CCHD,Home Care - Elderly - South,Other Small Contracts,Nursing Solutions Limited,3488.8, 30-Jun-2014,
1576,Revenue,CCHD,Home Care - Elderly - North,Other Small Contracts,Nursing Solutions Limited,638.96, 30-Jun-2014,
1577,Revenue,CCHD,Section 117 Placements MH Younger,Permanent Nursing,Oaklands,6088.8, 10-Jun-2014,
1578,Revenue,CCHD,Bed purchasing -S28A  Under 65 - North,Permanent Residential,Orchard End Limited,7562.88, 10-Jun-2014,
1579,Revenue,CCHD,Turnberries,"Provisions (Food, etc)",Origin Cafe,581.4, 17-Jun-2014,
1580,Revenue,CCHD,Turnberries,"Provisions (Food, etc)",Origin Cafe,524.4, 27-Jun-2014,
1581,Revenue,CCHD,Bed purchasing - Elderly S117 - South,Permanent Residential,Osbourne Court,3105.28, 10-Jun-2014,
1582,Revenue,CCHD,Bed Purchasing - Elderly - North,Permanent Residential,Osbourne Court,1796.4, 10-Jun-2014,
1583,Revenue,CCHD,Bed Purchasing - Elderly S117- North,Permanent Residential,Osbourne Court,1928, 10-Jun-2014,
1584,Revenue,CCHD,Bed Purchasing - Elderly - North,Permanent Residential,Osbourne Court,2557.32, 10-Jun-2014,
1585,Revenue,CCHD,Bed Purchasing - Under 65s PWLD - South,Permanent Residential,Osprey Court,7750.24, 10-Jun-2014,
1586,Revenue,CCHD,Bed purchasing - S28A Under 65 - South,Permanent Residential,Osprey Court,4322.88, 10-Jun-2014,
1587,Revenue,CCHD,Bed purchasing - S28A Under 65 - South,Permanent Residential,Osprey Court,6396.04, 10-Jun-2014,
1588,Revenue,CCHD,Bed Purchasing - PWLD S 117 Placements,Permanent Residential,Osprey Court,11328.56, 10-Jun-2014,
1589,Revenue,CCHD,Breakthrough and Inclusion Work,Other Supplies & Services,P3D,540.94, 10-Jun-2014,
1590,Revenue,CCHD,Breakthrough and Inclusion Work,Other Supplies & Services,P3D,1515.33, 10-Jun-2014,
1591,Revenue,CCHD,Bed Purchasing - Southmead Hospital,Permanent Nursing,Palm Court Nursing Home,1519.32, 10-Jun-2014,
1592,Revenue,CCHD,Bed Purchasing - Elderly MH - South,Permanent Residential,Park Farm House,1344.56, 10-Jun-2014,
1593,Revenue,CCHD,Bed Purchasing - Elderly MH - South,Permanent Residential,Park Farm House,1614.16, 10-Jun-2014,
1594,Revenue,CCHD,Bed Purchasing - Under 65s PWLD - South,Permanent Residential,Park Hall,5634.64, 10-Jun-2014,
1595,Revenue,CCHD,Bed purchasing - Under 65s PWLD - North,Permanent Residential,Park Hall,5202.24, 10-Jun-2014,
1596,Revenue,CCHD,Bed Purchasing - Under 65s PWLD - South,Permanent Residential,Park Hall,5014.44, 10-Jun-2014,
1597,Revenue,CCHD,Bed purchasing - Elderly PWLD - South,Permanent Residential,Park Hall,2555.68, 10-Jun-2014,
1598,Revenue,CCHD,Bed purchasing - Elderly PWLD - North,Permanent Residential,Park Hall,4967.68, 10-Jun-2014,
1599,Revenue,CCHD,Bed purchasing - S28A Under 65 - South,Permanent Residential,Park Hall,4682.92, 10-Jun-2014,
1600,Revenue,CCHD,Bed Purchasing - Under 65s PWLD - South,Permanent Residential,Park Hall,4990.4, 10-Jun-2014,
1601,Revenue,CCHD,Bed purchasing - Under 65s PWLD - North,Permanent Residential,Park Hall,4339.28, 10-Jun-2014,
1602,Revenue,CCHD,Bed Purchasing - S28A - Over 65- North,Permanent Residential,Park Hall,5382.84, 10-Jun-2014,
1603,Revenue,CCHD,Bed Purchasing - Under 65s PWLD - South,Permanent Residential,Park Hall,10767.96, 10-Jun-2014,
1604,Revenue,CCHD,Bed purchasing -S28A  Under 65 - North,Permanent Residential,Park Hall,5931.12, 10-Jun-2014,
1605,Revenue,CCHD,Bed purchasing - S28A Under 65 - South,Permanent Residential,Park Hall,5645.36, 10-Jun-2014,
1606,Revenue,CCHD,Bed Purchasing - Under 65s PWLD - South,Permanent Residential,Park Hall,7181.48, 10-Jun-2014,
1607,Revenue,CCHD,Social Lettings Agency,Fees - General,Paul Ashford,10, 27-Jun-2014,
1608,Revenue,CCHD,Social Lettings Agency,Other Supplies & Services,Paul Ashford,565, 27-Jun-2014,
1609,Revenue,CCHD,Bed Purchasing - Under 65s PWLD - South,Permanent Residential,Penleigh House Care Home,4560.48, 10-Jun-2014,
1610,Revenue,CCHD,Bed Purchasing - Under 65s PWLD - South,Permanent Residential,Penleigh House Care Home,6430.64, 10-Jun-2014,
1611,Revenue,CCHD,Bed purchasing - Elderly PWLD - South,Permanent Residential,Penleigh House Care Home,4318.88, 10-Jun-2014,
1612,Revenue,CCHD,Bed purchasing - S28A Under 65 - South,Permanent Residential,Penleigh House Care Home,5497.68, 10-Jun-2014,
1613,Revenue,CCHD,Bed Purchasing - Under 65s PWLD - South,Permanent Residential,Penleigh House Care Home,4966.16, 10-Jun-2014,
1614,Revenue,CCHD,User Involvement,Other Supplies & Services,Police and Crime Commissioner for Avon and,500, 24-Jun-2014,
1615,Revenue,CCHD,Home Care - Elderly - South,Other Small Contracts,Premier Homecare Limited,82.08, 03-Jun-2014,
1616,Revenue,CCHD,Home Care - Elderly - North,Other Small Contracts,Premier Homecare Limited,8009.07, 03-Jun-2014,
1617,Revenue,CCHD,Home care - Elderly MH - North,Other Small Contracts,Premier Homecare Limited,136.8, 03-Jun-2014,
1618,Revenue,CCHD,Elderly MH Day Care North,Private & Voluntary Day Care,Premier Homecare Limited,127.68, 03-Jun-2014,
1619,Revenue,CCHD,Home Care - Elderly - South,Other Small Contracts,Premier Homecare Limited,104.88, 03-Jun-2014,
1620,Revenue,CCHD,Home Care - Elderly - North,Other Small Contracts,Premier Homecare Limited,7747.44, 03-Jun-2014,
1621,Revenue,CCHD,Home care - Elderly MH - North,Other Small Contracts,Premier Homecare Limited,127.68, 03-Jun-2014,
1622,Revenue,CCHD,Elderly MH Day Care North,Private & Voluntary Day Care,Premier Homecare Limited,127.68, 03-Jun-2014,
1623,Revenue,CCHD,Home Care - Elderly - South,Other Small Contracts,Premier Homecare Limited,104.88, 06-Jun-2014,
1624,Revenue,CCHD,Home Care - Elderly - North,Other Small Contracts,Premier Homecare Limited,7232.16, 06-Jun-2014,
1625,Revenue,CCHD,Day Care - North,Private & Voluntary Day Care,Premier Homecare Limited,13.68, 06-Jun-2014,
1626,Revenue,CCHD,Home care - Elderly MH - North,Other Small Contracts,Premier Homecare Limited,127.68, 06-Jun-2014,
1627,Revenue,CCHD,Elderly MH Day Care North,Private & Voluntary Day Care,Premier Homecare Limited,127.68, 06-Jun-2014,
1628,Revenue,CCHD,Home Care - Elderly - South,Other Small Contracts,Premier Homecare Limited,82.08, 12-Jun-2014,
1629,Revenue,CCHD,Home Care - Elderly - North,Other Small Contracts,Premier Homecare Limited,7106.19, 12-Jun-2014,
1630,Revenue,CCHD,Home care - Elderly MH - North,Other Small Contracts,Premier Homecare Limited,127.68, 12-Jun-2014,
1631,Revenue,CCHD,Elderly MH Day Care North,Private & Voluntary Day Care,Premier Homecare Limited,127.68, 12-Jun-2014,
1632,Revenue,CCHD,Home Care - Elderly - South,Other Small Contracts,Premier Homecare Limited,104.88, 30-Jun-2014,
1633,Revenue,CCHD,Home Care - Elderly - North,Other Small Contracts,Premier Homecare Limited,7414.56, 30-Jun-2014,
1634,Revenue,CCHD,Home care - Elderly MH - North,Other Small Contracts,Premier Homecare Limited,127.68, 30-Jun-2014,
1635,Revenue,CCHD,Elderly MH Day Care North,Private & Voluntary Day Care,Premier Homecare Limited,127.68, 30-Jun-2014,
1636,Revenue,CCHD,Home Care - Elderly - South,Other Small Contracts,Premier Homecare Limited,95.76, 30-Jun-2014,
1637,Revenue,CCHD,Home Care - Elderly - North,Other Small Contracts,Premier Homecare Limited,7858.59, 30-Jun-2014,
1638,Revenue,CCHD,Home care - Elderly MH - North,Other Small Contracts,Premier Homecare Limited,127.68, 30-Jun-2014,
1639,Revenue,CCHD,Elderly MH Day Care North,Private & Voluntary Day Care,Premier Homecare Limited,127.68, 30-Jun-2014,
1640,Revenue,CCHD,Home Care - Elderly - South,Other Small Contracts,Prestige Nursing,919.8, 30-Jun-2014,
1641,Revenue,CCHD,Home Care - Elderly - North,Other Small Contracts,Prestige Nursing,3119.7, 30-Jun-2014,
1642,Revenue,CCHD,Day Care - South,Private & Voluntary Day Care,Prestige Nursing,122.64, 30-Jun-2014,
1643,Revenue,CCHD,Day Care - North,Private & Voluntary Day Care,Prestige Nursing,70.08, 30-Jun-2014,
1644,Revenue,CCHD,Home Care - Elderly - South,Other Small Contracts,Prestige Nursing,884.76, 10-Jun-2014,
1645,Revenue,CCHD,Home Care - Elderly - North,Other Small Contracts,Prestige Nursing,2744.8, 10-Jun-2014,
1646,Revenue,CCHD,Day Care - South,Private & Voluntary Day Care,Prestige Nursing,122.64, 10-Jun-2014,
1647,Revenue,CCHD,Day Care - North,Private & Voluntary Day Care,Prestige Nursing,74.46, 10-Jun-2014,
1648,Revenue,CCHD,Home Care - Elderly - South,Other Small Contracts,Prestige Nursing,897.9, 10-Jun-2014,
1649,Revenue,CCHD,Home Care - Elderly - North,Other Small Contracts,Prestige Nursing,3276.59, 10-Jun-2014,
1650,Revenue,CCHD,Day Care - South,Private & Voluntary Day Care,Prestige Nursing,122.64, 10-Jun-2014,
1651,Revenue,CCHD,Day Care - North,Private & Voluntary Day Care,Prestige Nursing,70.08, 10-Jun-2014,
1652,Revenue,CCHD,Home Care - Elderly - South,Other Small Contracts,Prestige Nursing,897.9, 30-Jun-2014,
1653,Revenue,CCHD,Home Care - Elderly - North,Other Small Contracts,Prestige Nursing,3076.34, 30-Jun-2014,
1654,Revenue,CCHD,Day Care - South,Private & Voluntary Day Care,Prestige Nursing,122.64, 30-Jun-2014,
1655,Revenue,CCHD,Day Care - North,Private & Voluntary Day Care,Prestige Nursing,70.08, 30-Jun-2014,
1656,Revenue,CCHD,Home Care - Elderly - South,Other Small Contracts,Prestige Nursing,889.14, 10-Jun-2014,
1657,Revenue,CCHD,Home Care - Elderly - North,Other Small Contracts,Prestige Nursing,3232.54, 10-Jun-2014,
1658,Revenue,CCHD,Day Care - South,Private & Voluntary Day Care,Prestige Nursing,127.02, 10-Jun-2014,
1659,Revenue,CCHD,Day Care - North,Private & Voluntary Day Care,Prestige Nursing,48.18, 10-Jun-2014,
1660,Revenue,CCHD,Home Care - Elderly - South,Other Small Contracts,Prestige Nursing,854.1, 30-Jun-2014,
1661,Revenue,CCHD,Home Care - Elderly - North,Other Small Contracts,Prestige Nursing,3023.16, 30-Jun-2014,
1662,Revenue,CCHD,Day Care - South,Private & Voluntary Day Care,Prestige Nursing,122.64, 30-Jun-2014,
1663,Revenue,CCHD,Day Care - North,Private & Voluntary Day Care,Prestige Nursing,70.08, 30-Jun-2014,
1664,Revenue,CCHD,Home Care - Elderly - South,Other Small Contracts,Prestige Nursing,854.1, 30-Jun-2014,
1665,Revenue,CCHD,Home Care - Elderly - North,Other Small Contracts,Prestige Nursing,3249.04, 30-Jun-2014,
1666,Revenue,CCHD,Day Care - South,Private & Voluntary Day Care,Prestige Nursing,127.02, 30-Jun-2014,
1667,Revenue,CCHD,Day Care - North,Private & Voluntary Day Care,Prestige Nursing,70.08, 30-Jun-2014,
1668,Revenue,CCHD,Home Care - Elderly - South,Other Small Contracts,Prestige Nursing,569.4, 30-Jun-2014,
1669,Revenue,CCHD,Home Care - Elderly - North,Other Small Contracts,Prestige Nursing,3005.01, 30-Jun-2014,
1670,Revenue,CCHD,Day Care - South,Private & Voluntary Day Care,Prestige Nursing,122.64, 30-Jun-2014,
1671,Revenue,CCHD,Day Care - North,Private & Voluntary Day Care,Prestige Nursing,70.08, 30-Jun-2014,
1672,Revenue,CCHD,Home Care - Elderly - South,Other Small Contracts,Prestige Nursing,516.84, 30-Jun-2014,
1673,Revenue,CCHD,Home Care - Elderly - North,Other Small Contracts,Prestige Nursing,3262.18, 30-Jun-2014,
1674,Revenue,CCHD,Day Care - South,Private & Voluntary Day Care,Prestige Nursing,131.4, 30-Jun-2014,
1675,Revenue,CCHD,Day Care - North,Private & Voluntary Day Care,Prestige Nursing,70.08, 30-Jun-2014,
1676,Revenue,CCHD,Alexandra Way,Agency Staff (Admin/Support Staff) Pay,Prestige Nursing,490.37, 16-Jun-2014,
1677,Revenue,CCHD,Alexandra Way,Agency Staff (Admin/Support Staff) Pay,Prestige Nursing,538.48, 16-Jun-2014,
1678,Revenue,CCHD,Alexandra Way,Agency Staff (Admin/Support Staff) Pay,Prestige Nursing,836.74, 25-Jun-2014,
1679,Revenue,CCHD,Alexandra Way,Agency Staff (Admin/Support Staff) Pay,Prestige Nursing,482.63, 25-Jun-2014,
1680,Revenue,CCHD,Bed Purchasing - Frenchay Hospital,Permanent Nursing,Ravenswood,2103.28, 10-Jun-2014,
1681,Revenue,CCHD,Bed purchasing - Elderly MH - North,Permanent Nursing,Ravenswood,1279.04, 10-Jun-2014,
1682,Revenue,CCHD,Bed Purchasing - PWLD S 117 Placements,Permanent Residential,Real Life Options,8098.04, 10-Jun-2014,
1683,Revenue,CCHD,Breakthrough and Inclusion Work,Other Supplies & Services,Redefine Mentoring Ltd,3102.09, 09-Jun-2014,
1684,Revenue,CCHD,Bed Purchasing - Elderly S117- North,Permanent Nursing,Redholme Memory Care Limited,1991.84, 10-Jun-2014,
1685,Revenue,CCHD,Bed Purchasing - Elderly - South,Permanent Nursing,Regent House,2255.28, 10-Jun-2014,
1686,Revenue,CCHD,Bed Purchasing - Elderly - South,Permanent Nursing,Regent House,2391.04, 10-Jun-2014,
1687,Revenue,CCHD,Bed Purchasing - Elderly - South,Permanent Nursing,Regent House,1670.88, 10-Jun-2014,
1688,Revenue,CCHD,Bed Purchasing - Elderly - South,Permanent Nursing,Regent House,1978.4, 10-Jun-2014,
1689,Revenue,CCHD,Bed Purchasing - Elderly MH - South,Permanent Nursing,Regent House,2008.44, 10-Jun-2014,
1690,Revenue,CCHD,Bed Purchasing - Elderly - South,Permanent Nursing,Regent House,1726.76, 10-Jun-2014,
1691,Revenue,CCHD,Bed Purchasing - Elderly - South,Permanent Nursing,Regent House,1894.92, 10-Jun-2014,
1692,Revenue,CCHD,Bed Purchasing - Frenchay Hospital,Permanent Nursing,Regent House,2181.2, 10-Jun-2014,
1693,Revenue,CCHD,Bed Purchasing - Elderly - North,Permanent Nursing,Regent House,2004.36, 10-Jun-2014,
1694,Revenue,CCHD,Bed Purchasing - Southmead Hospital,Permanent Nursing,Regent House,1600.76, 10-Jun-2014,
1695,Revenue,CCHD,Bed Purchasing - Elderly - South,Permanent Nursing,Regent House,1826.2, 10-Jun-2014,
1696,Revenue,CCHD,Bed Purchasing - Elderly - South,Permanent Nursing,Regent House,1675.68, 10-Jun-2014,
1697,Revenue,CCHD,Bed Purchasing - Southmead Hospital,Permanent Nursing,Regent House,1406.44, 10-Jun-2014,
1698,Revenue,CCHD,Bed Purchasing - Elderly - South,Permanent Nursing,Regent House,1668.12, 10-Jun-2014,
1699,Revenue,CCHD,Bed Purchasing - Elderly MH - South,Permanent Nursing,Regent House,1197.6, 10-Jun-2014,
1700,Revenue,CCHD,Bed purchasing - Elderly MH - North,Permanent Nursing,Regent House,1283.84, 10-Jun-2014,
1701,Revenue,CCHD,Bed Purchasing - Elderly - South,Permanent Nursing,Regent House,32744.32, 10-Jun-2014,
1702,Revenue,CCHD,Bed Purchasing - Elderly - South,Permanent Nursing,Regent House,2001.48, 10-Jun-2014,
1703,Revenue,CCHD,Bed Purchasing - Under 65s PWLD - South,Permanent Residential,Ridgeway House,3502.08, 10-Jun-2014,
1704,Revenue,CCHD,Bed Purchasing - Under 65s PWLD - South,Permanent Residential,Riverside House,3611.04, 10-Jun-2014,
1705,Revenue,CCHD,Bed Purchasing - Frenchay Hospital,Permanent Nursing,Riversway Nursing Home,2685.28, 10-Jun-2014,
1706,Revenue,CCHD,Bed purchasing - Elderly PWLD - South,Permanent Residential,Rockleaze,1426.8, 10-Jun-2014,
1707,Revenue,CCHD,Bed Purchasing - LD S28A- Over 65- South,Permanent Residential,Rockleaze,2082.04, 10-Jun-2014,
1708,Revenue,CCHD,Bed purchasing - Elderly PWLD - South,Permanent Residential,Rockleaze,2414.96, 10-Jun-2014,
1709,Revenue,CCHD,Bed purchasing - Elderly PWLD - South,Permanent Residential,Rockleaze,1426.8, 10-Jun-2014,
1710,Revenue,CCHD,Bed Purchasing - Frenchay Hospital,Permanent Residential,Rodney House Residential Home,1432.2, 10-Jun-2014,
1711,Revenue,CCHD,Bed Purchasing - Under 65s PWLD - South,Permanent Residential,Rosewood Lodge & Brook House,4569.72, 10-Jun-2014,
1712,Revenue,CCHD,Bed Purchasing - Elderly - North,Permanent Nursing,Saffron Gardens,1860.64, 10-Jun-2014,
1713,Revenue,CCHD,Bed Purchasing - Frenchay Hospital,Permanent Nursing,Saffron Gardens,1853.12, 10-Jun-2014,
1714,Revenue,CCHD,Bed Purchasing - Elderly - North,Permanent Nursing,Saffron Gardens,1982.58, 10-Jun-2014,
1715,Revenue,CCHD,Bed Purchasing - Southmead Hospital,Permanent Residential,Saffron Gardens,1270.68, 10-Jun-2014,
1716,Revenue,CCHD,Bed Purchasing - Elderly MH - South,Permanent Nursing,Saffron Gardens,2072.32, 10-Jun-2014,
1717,Revenue,CCHD,Bed Purchasing - Southmead Hospital,Permanent Nursing,Saffron Gardens,1391.72, 10-Jun-2014,
1718,Revenue,CCHD,Bed Purchasing - Elderly - North,Permanent Nursing,Saffron Gardens,986.64, 10-Jun-2014,
1719,Revenue,CCHD,Bed Purchasing - Frenchay Hospital,Permanent Nursing,Saffron Gardens,597.04, 10-Jun-2014,
1720,Revenue,CCHD,Bed Purchasing - Elderly - South,Permanent Residential,Saffron Gardens,1296.84, 10-Jun-2014,
1721,Revenue,CCHD,Bed Purchasing - Under 65s PWLD - South,Permanent Residential,Salters Hill Barn,2039.36, 10-Jun-2014,
1722,Revenue,CCHD,Bed Purchasing - Southmead Hospital,Permanent Residential,Sanctuary Care Ltd,1284.2, 10-Jun-2014,
1723,Revenue,CCHD,Woodleaze,"Provisions (Food, etc)",School Milk Services Limited,900.12, 30-Jun-2014,
1724,Revenue,CCHD,Bed purchasing - Under 65s PWLD - North,Permanent Residential,Scope   Accounts Dept,5030.36, 10-Jun-2014,
1725,Revenue,CCHD,Supported Living - North,Private & Voluntary Home Care,SeeAbility,5977.97, 09-Jun-2014,
1726,Revenue,CCHD,Supported Living - North,Private & Voluntary Home Care,SeeAbility,1298.58, 09-Jun-2014,
1727,Revenue,CCHD,Supported Living - North,Private & Voluntary Home Care,SeeAbility,7364.61, 09-Jun-2014,
1728,Revenue,CCHD,Supported Living - North,Private & Voluntary Home Care,SeeAbility,1213.8, 09-Jun-2014,
1729,Revenue,CCHD,Supported Living - South,Private & Voluntary Home Care,Selborne Care Ltd,4250.56, 17-Jun-2014,
1730,Revenue,CCHD,Supported Living - South,Private & Voluntary Home Care,Selborne Care Ltd,2550.22, 27-Jun-2014,
1731,Revenue,CCHD,Supported Living - South,Private & Voluntary Home Care,Selborne Care Ltd,653.2, 27-Jun-2014,
1732,Revenue,CCHD,Supported Living - South,Private & Voluntary Home Care,Selborne Care Ltd,5205.08, 27-Jun-2014,
1733,Revenue,CCHD,Supported Living - South,Private & Voluntary Home Care,Selborne Care Ltd,4657.02, 27-Jun-2014,
1734,Revenue,CCHD,Supported Living - South,Private & Voluntary Home Care,Selborne Care Ltd,2076.88, 27-Jun-2014,
1735,Revenue,CCHD,Turnberries,Other Supplies & Services,Sensory Technology Limited,1354, 18-Jun-2014,
1736,Revenue,CCHD,Bed Purchasing - Under 65s PWLD - South,Permanent Residential,Shaldon House (Positive Care Ltd),2226.92, 10-Jun-2014,
1737,Revenue,CCHD,Bed Purchasing - Elderly S117- North,Permanent Nursing,Shaw Healthcare Ltd,2647.96, 10-Jun-2014,
1738,Revenue,CCHD,Bed purchasing - Elderly S117 - South,Permanent Nursing,Shaw Healthcare Ltd,2677.88, 10-Jun-2014,
1739,Revenue,CCHD,Bed purchasing - Elderly MH - North,Permanent Nursing,Shaw Healthcare Ltd,2085.32, 10-Jun-2014,
1740,Revenue,CCHD,Bed purchasing - S28A Under 65 - South,Permanent Residential,Shaw Healthcare Ltd,9968.4, 10-Jun-2014,
1741,Revenue,CCHD,Bed purchasing - S28A Under 65 - South,Permanent Residential,Shaw Healthcare Ltd,9792, 10-Jun-2014,
1742,Revenue,CCHD,Bed purchasing - S28A Under 65 - South,Permanent Residential,Shaw Healthcare Ltd,9796, 10-Jun-2014,
1743,Revenue,CCHD,Bed Purchasing - Under 65s PWLD - South,Permanent Residential,Shaw Healthcare Ltd,9905.52, 10-Jun-2014,
1744,Revenue,CCHD,Bed purchasing - Elderly PWLD - South,Permanent Residential,Shaw Healthcare Ltd,3962.92, 10-Jun-2014,
1745,Revenue,CCHD,Bed Purchasing - S28A - Over 65- North,Permanent Residential,Shaw Healthcare Ltd,4299.04, 10-Jun-2014,
1746,Revenue,CCHD,Bed Purchasing - S28A - Over 65- North,Permanent Residential,Shaw Healthcare Ltd,4306.44, 10-Jun-2014,
1747,Revenue,CCHD,Bed Purchasing - LD S28A- Over 65- South,Permanent Residential,Shaw Healthcare Ltd,4831.08, 10-Jun-2014,
1748,Revenue,CCHD,Bed Purchasing - LD S28A- Over 65- South,Permanent Residential,Shaw Healthcare Ltd,4384.44, 10-Jun-2014,
1749,Revenue,CCHD,Bed purchasing -S28A  Under 65 - North,Permanent Residential,Shaw Healthcare Ltd,9310.24, 10-Jun-2014,
1750,Revenue,CCHD,Bed Purchasing - S28A - Over 65- North,Permanent Residential,Shaw Healthcare Ltd,8704.56, 10-Jun-2014,
1751,Revenue,CCHD,Bed Purchasing - Elderly - North,Permanent Residential,Shaw Healthcare Ltd,4146.08, 10-Jun-2014,
1752,Revenue,CCHD,Bed Purchasing - Southmead Hospital,Permanent Residential,Shaw Healthcare Ltd,1685.4, 10-Jun-2014,
1753,Revenue,CCHD,Bed Purchasing - Elderly - North,Permanent Residential,Shaw Healthcare Ltd,1272.2, 10-Jun-2014,
1754,Revenue,CCHD,Bed Purchasing - Frenchay Hospital,Permanent Residential,Shaw Healthcare Ltd,1134.52, 10-Jun-2014,
1755,Revenue,CCHD,Day Care - North,Private & Voluntary Day Care,Silva Care Limited,1103.07, 04-Jun-2014,
1756,Revenue,CCHD,Supported Living (S28a) North,Private & Voluntary Home Care,Silva Care Limited,4415.44, 19-Jun-2014,
1757,Revenue,CCHD,Alexandra Way,Refuse Collection Charges,SITA UK LTD,742.04, 16-Jun-2014,
1758,Revenue,CCHD,Bed purchasing - Under 65s PWLD - North,Permanent Residential,Small House Homes Limited,18014.64, 10-Jun-2014,
1759,Revenue,CCHD,Purchase of Non-Res Care - North,Private & Voluntary Day Care,Smile Independent Living Support Limited,1460.82, 12-Jun-2014,
1760,Revenue,CCHD,Supported Living - North,Private & Voluntary Home Care,Smile Independent Living Support Limited,3396.67, 23-Jun-2014,
1761,Revenue,CCHD,Supported Living - North,Private & Voluntary Home Care,Smile Independent Living Support Limited,3396.67, 16-Jun-2014,
1762,Revenue,CCHD,Purchase of Non-Res Care - North,Private & Voluntary Home Care,Smile Independent Living Support Limited,589.21, 16-Jun-2014,
1763,Revenue,CCHD,Supported Living - North,Private & Voluntary Home Care,Smile Independent Living Support Limited,3396.67, 19-Jun-2014,
1764,Revenue,CCHD,Supported Living - North,Private & Voluntary Home Care,Smile Independent Living Support Limited,725.93, 19-Jun-2014,
1765,Revenue,CCHD,Purchase of Non-Res Care - South,Private & Voluntary Day Care,Smile Independent Living Support Limited,723.82, 13-Jun-2014,
1766,Revenue,CCHD,Purchase of Non-Res Care - South,Private & Voluntary Day Care,Smile Independent Living Support Limited,1070.85, 13-Jun-2014,
1767,Revenue,CCHD,Purchase of Non-Res Care - North,Private & Voluntary Day Care,Smile Independent Living Support Limited,695.02, 19-Jun-2014,
1768,Revenue,CCHD,Purchase of Non-Res Care - North,Private & Voluntary Day Care,Smile Independent Living Support Limited,1378.5, 20-Jun-2014,
1769,Revenue,CCHD,Purchase of Non-Res Care - North,Private & Voluntary Day Care,Smile Independent Living Support Limited,733.48, 16-Jun-2014,
1770,Revenue,CCHD,Purchase of Non-Res Care - North,Private & Voluntary Day Care,Smile Independent Living Support Limited,500.1, 16-Jun-2014,
1771,Revenue,CCHD,Purchase of Non-Res Care - North,Private & Voluntary Home Care,Smile Independent Living Support Limited,756.05, 19-Jun-2014,
1772,Revenue,CCHD,Woodleaze,Premises Maintenance by Contractor,South West Glass Limited,475, 27-Jun-2014,
1773,Revenue,CCHD,Community Support - South,Preventative Assistance,Sovereign,2273.18, 05-Jun-2014,
1774,Revenue,CCHD,Minor Adaptations Service,Premises Maintenance by Contractor,SSE Contracting Limited,135.27, 23-Jun-2014,
1775,Revenue,CCHD,Bed Purchasing - Under 65s PWLD - South,Permanent Residential,St Brigas,2086.44, 10-Jun-2014,
1776,Revenue,CCHD,Bed Purchasing - Under 65s PWLD - South,Permanent Residential,St Brigas,3016.52, 10-Jun-2014,
1777,Revenue,CCHD,Bed Purchasing - Under 65s PWLD - South,Permanent Residential,St Brigas,2033.44, 10-Jun-2014,
1778,Revenue,CCHD,Bed Purchasing - Frenchay Hospital,Permanent Nursing,St George Nursing Home,1320.2, 10-Jun-2014,
1779,Revenue,CCHD,Bed Purchasing - Southmead Hospital,Permanent Nursing,St George Nursing Home,9421.26, 10-Jun-2014,
1780,Revenue,CCHD,Bed Purchasing - Elderly - South,Permanent Nursing,St George Nursing Home,1320.2, 10-Jun-2014,
1781,Revenue,CCHD,Bed Purchasing - Frenchay Hospital,Permanent Nursing,St George Nursing Home,1320.2, 10-Jun-2014,
1782,Revenue,CCHD,Bed Purchasing - Frenchay Hospital,Permanent Nursing,St George Nursing Home,760.37, 10-Jun-2014,
1783,Revenue,CCHD,Bed Purchasing - Southmead Hospital,Permanent Nursing,St George Nursing Home,1332.2, 10-Jun-2014,
1784,Revenue,CCHD,Bed Purchasing - Southmead Hospital,Permanent Nursing,St George Nursing Home,1320.2, 10-Jun-2014,
1785,Revenue,CCHD,Bed Purchasing - Frenchay Hospital,Permanent Nursing,St George Nursing Home,1095.8, 10-Jun-2014,
1786,Revenue,CCHD,Bed Purchasing - Southmead Hospital,Permanent Nursing,St George Nursing Home,1320.2, 10-Jun-2014,
1787,Revenue,CCHD,Bed Purchasing - Frenchay Hospital,Respite Planned - Nursing,St Monicas Trust,503.31, 10-Jun-2014,
